Workbook

Sheet Instructions
B3: Source data provided by New Constructs, LLC © All rights reserved. Delivered by iexcloud.io
A4: This spreadsheet is the personal work of Tim Baker, and is not an official IEX Cloud product. All data is sourced via the IEX Cloud API.
A5: IEX Cloud Services LLC makes no promises or guarantees herein regarding results from particular products and services, and neither the information, nor any opinion expressed here, constitutes a solicitation or offer to buy or sell any securities or provide any investment advice or service.
A6: About this spreadsheet | B6: Links
A7: This spreadsheet can be used to analyse the detailed financial statements of US listed companies. This is the personal work of Tim Baker, and is not an official IEX Cloud product.
A8: It is supplied free of charge. Should you make improvements to this spreadsheet, feel free to contribute it back to the excel community at iexcloud. Here -------------------------------------------------> | B8: community@iexcloud.io
A9: In order to update this spreadsheet with different companies, you will need to sign up for a paid IEX Cloud account by signing up here: ---------------------------------------------------------------------------------> | B9: https://iexcloud.io/cloud-login#/register
A10: This spreadhseet is provided "as is" and may contain errors or differences to some calculation conventions used in financial analysis. Do let us know if you have any questions, or corrections.
A11: Additional information about our Financial Statements endpoints can be found here: --------------> | B11: data-migration-updates-to-financial-statements
A12: This spreadsheet is formatted for Industrial (ie non-financial/bank) companies.
A13: Feel free to share this file with friends and colleagues (remembering to remove your IEX Cloud credentials)
A14: Should you publish your analysis, please source the data as follows: “Underlying data provided by New Constructs, LLC © All rights reserved. iexcloud.io"
A16: Overview & Instructions
A17: Sign up for an iexcloud account. | B17: https://iexcloud.io/cloud-login#/register
A18: Go to the settings tab:
A19: Enter your iexcloud token into the settings TAB. Select the Ticker of the required company.
A20: Enter the Ticker into the indicated field, and once the correct company is shown, hit the LOAD button. If you have macros disabled, you can also hit Data/Refresh instead.
A21: The Financial Statements and Ratios, and Charts tab will be updated for the selected company.
A22: If you would like to take out blank lines, select Y in the filter in column J.
A23: Note - if a company does not pay Dividends, the Dividends chart will NOT update from the prior company.
A24: For convenience print ranges have been set for you (for US page sizes).
A25: There are some hidden tabs which is where PowerQuery pulls data into from the IEX Cloud API.
A26: For convenience, your remaining message quota for this month is shown in the Settings tab.

Sheet Settings
A4: Ticker | B4: KO | D4: < ----------- Enter Ticker here
A5: Company | B5: =_xlfn.WEBSERVICE("https://cloud.iexapis.com/stable/stock/"&Ticker&"/stats/companyName?token="&my_token) ->  | D5: If correct company shows here, hit LOAD (below), or Data / Refresh All
A6: Period Type | B6: annual | D6: Select ttm (trailing twelve months, quarterly, or annual (12 months)
A7: # of period | B7: =VLOOKUP(period_type,PeriodType[],2,FALSE) -> 7y | D7: This is the reccomended # of periods for the period type. You can over write this, or edit the defaults here-->
A10: Prices Loaded | B10: =Price_Vol!D2=Ticker -> TRUE
A11: Financials Loaded | B11: =VLOOKUP("symbol",FetchFundies[],2,FALSE)=Ticker -> TRUE
A12: Dividends Loaded | B12: =IF(Dividends!H23=Ticker,TRUE,"No Dividends Loaded, ignore Dividend Chart") -> TRUE
A13: Annual Ratings and Estimates Loaded | B13: =IF(#REF!=Ticker,TRUE,FALSE) -> 
A15: Scale in Millions | B15: Y
B16: =IF(B15="Y",1000000,1) -> 1000000
A18: Your personal Token
A19: IEX Cloud Token | D19: < ----------- Enter your iexcloud token here. Go to your consolde to copy your token.
A20: Secret Token | D20: < ----------- Enter your secret iexcloud token here (prefix sk) - OPTIONAL!
A21: Use Cloud Cache | B21: Hide
A23: Download Latest New Constructs Report
A24: ="https://cloud.iexapis.com/stable/files/download/NEW_CONSTRUCTS_REPORT?token="&my_token&"&symbol="&Ticker&"&date="&TEXT(TODAY()-1,"YYYYMMDD") -> https://cloud.iexapis.com/stable/files/download/NEW_CONSTRUCTS_REPORT?token=&symbol=KO&date=20210515
A25: copy and paste this link to your browser, may require premium credits
A28: Your Account (requires secret token)
A29: =+account!A7 -> creditLimit | B29: =+account!B7 -> 50000
A30: =+account!A9 -> creditsUsed | B30: =+account!B9 -> 50000
A31: =+account!A4 -> subscriptionTermType | B31: =+account!B4 -> annual
A32: =+account!A5 -> tierName | B32: =+account!B5 -> start
A44: Financial Period Defualts
A45: Period_type | B45: ReccomendedPeriod
A46: annual | B46: 7y
A47: ttm | B47: 3y
A48: quarterly | B48: 2y
A50: Price Chart Inputs
A51: Type | B51: Period | C51: Day Count | D51: From | E51: To
A52: y | B52: 7 | C52: =IF(A52="y",360,30)*(B52+1) -> 2880 | D52: =+E52-C52 -> 2013-06-27 | E52: =TODAY() -> 2021-05-16

Sheet Table of Contents
A2: Table of Contents (links below)
A3: Settings
A4: Income Statement | C4: Charts Tab
A5: Balance Sheet - Assets | D5: Stock Chart
B6: Current Assets | D6: Growth and Profitability
B7: Fixed Assets | D7: Balance Sheet Makeup
B8: Current/Investment Liabilities | D8: Valuation
A9: Cash Flow Statement | D9: Margin Analysis
D10: Cashflow Trends
A11: Calculated Fields and Ratios | D11: Stock Price and Dividends
B12: Per Share Data
B13: Valuation Inputs
B14: Valuation Ratios
B15: Margin Analysis
B16: Growth Analysis
B17: Dupont Analysis
B18: Leverage Ratios
B19: Cash Conversion Cycle

Sheet Financial Statements and Ratios
D1: =IF(E1>1,E1-1,0) -> 2 | E1: 3 | F1: 4 | G1: =IF(H1>1,H1-1,0) -> 5 | H1: =IF(I1>1,I1-1,0) -> 6 | I1: =MATCH(MAX(Fundies!183:183),Fundies!183:183)-1 -> 7
A2: date | D2: =IFERROR(VLOOKUP($A2,FetchFundies[],D$1+1,FALSE),0)/86400000+25569 -> 2015-12-31 | E2: =IFERROR(VLOOKUP($A2,FetchFundies[],E$1+1,FALSE),0)/86400000+25569 -> 2016-12-31 | F2: =IFERROR(VLOOKUP($A2,FetchFundies[],F$1+1,FALSE),0)/86400000+25569 -> 2017-12-31 | G2: =IFERROR(VLOOKUP($A2,FetchFundies[],G$1+1,FALSE),0)/86400000+25569 -> 2018-12-31 | H2: =IFERROR(VLOOKUP($A2,FetchFundies[],H$1+1,FALSE),0)/86400000+25569 -> 2019-12-31 | I2: =MAX(Fundies!183:183)/86400000+25569 -> 2020-12-31
A3: Year | D3: =YEAR(D2) -> 2015 | E3: 2016 | F3: 2017 | G3: 2018 | H3: 2019 | I3: =YEAR(I2) -> 2020
A4: Quarter | D4: =ROUNDUP(MONTH(D2)/3,0) -> 4 | E4: 4 | F4: 4 | G4: 4 | H4: 4 | I4: =ROUNDUP(MONTH(I2)/3,0) -> 4
A5: Quarter Lookups (for Dividends) | C5: Last Quarter | E5: =+E3&"Q"&E4 -> 2016Q4 | F5: =+F3&"Q"&F4 -> 2017Q4 | G5: =+G3&"Q"&G4 -> 2018Q4 | H5: =+H3&"Q"&H4 -> 2019Q4 | I5: =+I3&"Q"&I4 -> 2020Q4
C6: Last Q-1 | E6: =IF(E4=4,E3&"Q3",IF(E4=3,E3&"Q2",IF(E4=2,E3&"Q1",IF(E4=1,E3-1&"Q4")))) -> 2016Q3 | F6: =IF(F4=4,F3&"Q3",IF(F4=3,F3&"Q2",IF(F4=2,F3&"Q1",IF(F4=1,F3-1&"Q4")))) -> 2017Q3 | G6: =IF(G4=4,G3&"Q3",IF(G4=3,G3&"Q2",IF(G4=2,G3&"Q1",IF(G4=1,G3-1&"Q4")))) -> 2018Q3 | H6: =IF(H4=4,H3&"Q3",IF(H4=3,H3&"Q2",IF(H4=2,H3&"Q1",IF(H4=1,H3-1&"Q4")))) -> 2019Q3 | I6: =IF(I4=4,I3&"Q3",IF(I4=3,I3&"Q2",IF(I4=2,I3&"Q1",IF(I4=1,I3-1&"Q4")))) -> 2020Q3
C7: Last Q-2 | E7: =IF(E4=4,E3&"Q2",IF(E4=3,E3&"Q1",IF(E4=2,E3-1&"Q4",IF(E4=1,E3-1&"Q3")))) -> 2016Q2 | F7: =IF(F4=4,F3&"Q2",IF(F4=3,F3&"Q1",IF(F4=2,F3-1&"Q4",IF(F4=1,F3-1&"Q3")))) -> 2017Q2 | G7: =IF(G4=4,G3&"Q2",IF(G4=3,G3&"Q1",IF(G4=2,G3-1&"Q4",IF(G4=1,G3-1&"Q3")))) -> 2018Q2 | H7: =IF(H4=4,H3&"Q2",IF(H4=3,H3&"Q1",IF(H4=2,H3-1&"Q4",IF(H4=1,H3-1&"Q3")))) -> 2019Q2 | I7: =IF(I4=4,I3&"Q2",IF(I4=3,I3&"Q1",IF(I4=2,I3-1&"Q4",IF(I4=1,I3-1&"Q3")))) -> 2020Q2
C8: Last Q-3 | E8: =IF(E4=4,E3&"Q1",IF(E4=3,E3-1&"Q4",IF(E4=2,E3-1&"Q3",IF(E4=1,E3-1&"Q2")))) -> 2016Q1 | F8: =IF(F4=4,F3&"Q1",IF(F4=3,F3-1&"Q4",IF(F4=2,F3-1&"Q3",IF(F4=1,F3-1&"Q2")))) -> 2017Q1 | G8: =IF(G4=4,G3&"Q1",IF(G4=3,G3-1&"Q4",IF(G4=2,G3-1&"Q3",IF(G4=1,G3-1&"Q2")))) -> 2018Q1 | H8: =IF(H4=4,H3&"Q1",IF(H4=3,H3-1&"Q4",IF(H4=2,H3-1&"Q3",IF(H4=1,H3-1&"Q2")))) -> 2019Q1 | I8: =IF(I4=4,I3&"Q1",IF(I4=3,I3-1&"Q4",IF(I4=2,I3-1&"Q3",IF(I4=1,I3-1&"Q2")))) -> 2020Q1
A10: key | B10: =IF(Settings!B11,SUBSTITUTE(Settings!B5,"""",""),"Go to settings and hit Load") ->  | K10: Select "y" to remove blanks
B11: =IF(Millions=1000000," Amounts in millions, except per share data"," Amounts in USD") -> Amounts in millions, except per share data | D11: =IFERROR(D2,"") -> 2015-12-31 | E11: 2016-12-31 | F11: 2017-12-31 | G11: =IFERROR(G2,"") -> 2018-12-31 | H11: =+H2 -> 2019-12-31 | I11: =MAX(Fundies!183:183)/86400000+25569 -> 2020-12-31 | L11: Notes
A12: periodEndDate | C12: ="Period ending: "&TEXT(DATEVALUE(VLOOKUP($A12,FetchFundies[],I$1+1,FALSE)),"mmmmmmmm")&" / "&Fundamentals[Period_type] -> Period ending: December / annual
B13: Income Statement | K13: =IF(B13<>"","y",IF(SUM(E13:I13)=0,"","y")) -> y
B14: Revenues | K14: =IF(B14<>"","y",IF(SUM(E14:I14)=0,"","y")) -> y
A15: revenueother | C15: Operating Revenue | D15: =IFERROR(VLOOKUP($A15,FetchFundies[],D$1+1,FALSE)/Millions,0) -> 44294 | E15: =IFERROR(VLOOKUP($A15,FetchFundies[],E$1+1,FALSE)/Millions,0) -> 41863 | F15: =IFERROR(VLOOKUP($A15,FetchFundies[],F$1+1,FALSE)/Millions,0) -> 35410 | G15: =IFERROR(VLOOKUP($A15,FetchFundies[],G$1+1,FALSE)/Millions,0) -> 31856 | H15: =IFERROR(VLOOKUP($A15,FetchFundies[],H$1+1,FALSE)/Millions,0) -> 37266 | I15: =IFERROR(VLOOKUP($A15,FetchFundies[],I$1+1,FALSE)/Millions,0) -> 33014 | K15: =IF(B15<>"","y",IF(SUM(E15:I15)=0,"","y")) -> y | L15: Revenue, an item on the income statement.
A16: revenueincomeinterest | C16: Interest Income | D16: =IFERROR(VLOOKUP($A16,FetchFundies[],D$1+1,FALSE)/Millions,0) -> 0 | E16: =IFERROR(VLOOKUP($A16,FetchFundies[],E$1+1,FALSE)/Millions,0) -> 0 | F16: =IFERROR(VLOOKUP($A16,FetchFundies[],F$1+1,FALSE)/Millions,0) -> 0 | G16: =IFERROR(VLOOKUP($A16,FetchFundies[],G$1+1,FALSE)/Millions,0) -> 0 | H16: =IFERROR(VLOOKUP($A16,FetchFundies[],H$1+1,FALSE)/Millions,0) -> 0 | I16: =IFERROR(VLOOKUP($A16,FetchFundies[],I$1+1,FALSE)/Millions,0) -> 0 | L16: Interest income for financials, an item on the income statement.
A17: revenuesubsidiaryunconsolidated | C17: Unconsolidated Subsidiary Revenue | D17: =IFERROR(VLOOKUP($A17,FetchFundies[],D$1+1,FALSE)/Millions,0) -> 0 | E17: =IFERROR(VLOOKUP($A17,FetchFundies[],E$1+1,FALSE)/Millions,0) -> 0 | F17: =IFERROR(VLOOKUP($A17,FetchFundies[],F$1+1,FALSE)/Millions,0) -> 0 | G17: =IFERROR(VLOOKUP($A17,FetchFundies[],G$1+1,FALSE)/Millions,0) -> 0 | H17: =IFERROR(VLOOKUP($A17,FetchFundies[],H$1+1,FALSE)/Millions,0) -> 0 | I17: =IFERROR(VLOOKUP($A17,FetchFundies[],I$1+1,FALSE)/Millions,0) -> 0 | L17: Unconsolidated subsidiary revenue, an item on the income statement.
A18: Revenue | C18: Total Revenue | D18: =IF(ISERROR(D15+D16+D17)," ",D15+D16+D17) -> 44294 | E18: 41863 | F18: 35410 | G18: 31856 | H18: 37266 | I18: 33014 | K18: y | L18: Total revenue as reported on the income statement.
A20: incomeOperatingDiscontinuedOperations | C20: Income from Discontinued Operations (Operating) | D20: =IFERROR(VLOOKUP($A20,FetchFundies[],D$1+1,FALSE)/Millions,0) -> 0 | E20: =IFERROR(VLOOKUP($A20,FetchFundies[],E$1+1,FALSE)/Millions,0) -> 0 | F20: =IFERROR(VLOOKUP($A20,FetchFundies[],F$1+1,FALSE)/Millions,0) -> 0 | G20: =IFERROR(VLOOKUP($A20,FetchFundies[],G$1+1,FALSE)/Millions,0) -> 0 | H20: =IFERROR(VLOOKUP($A20,FetchFundies[],H$1+1,FALSE)/Millions,0) -> 0 | I20: =IFERROR(VLOOKUP($A20,FetchFundies[],I$1+1,FALSE)/Millions,0) -> 0 | L20: Income from discontinued operations, an item on the income statement for REITs.
A21: incomeOperatingSubsidiaryUnconsolidated | C21: Income from Unconsolidated Subsidiaries (Operating) | D21: =IFERROR(VLOOKUP($A21,FetchFundies[],D$1+1,FALSE)/Millions,0) -> 489 | E21: =IFERROR(VLOOKUP($A21,FetchFundies[],E$1+1,FALSE)/Millions,0) -> 835 | F21: =IFERROR(VLOOKUP($A21,FetchFundies[],F$1+1,FALSE)/Millions,0) -> 1071 | G21: =IFERROR(VLOOKUP($A21,FetchFundies[],G$1+1,FALSE)/Millions,0) -> 1008 | H21: =IFERROR(VLOOKUP($A21,FetchFundies[],H$1+1,FALSE)/Millions,0) -> 1049 | I21: =IFERROR(VLOOKUP($A21,FetchFundies[],I$1+1,FALSE)/Millions,0) -> 978 | K21: y | L21: Income from unconsolidated subsidiaries, an operating item on the income statement.
A22: incomeOperatingSubsidiaryUnconsolidatedAfterTax | C22: Income from Unconsolidated Subsidiaries After-tax (Operating) | D22: =IFERROR(VLOOKUP($A22,FetchFundies[],D$1+1,FALSE)/Millions,0) -> 0 | E22: =IFERROR(VLOOKUP($A22,FetchFundies[],E$1+1,FALSE)/Millions,0) -> 0 | F22: =IFERROR(VLOOKUP($A22,FetchFundies[],F$1+1,FALSE)/Millions,0) -> 0 | G22: =IFERROR(VLOOKUP($A22,FetchFundies[],G$1+1,FALSE)/Millions,0) -> 0 | H22: =IFERROR(VLOOKUP($A22,FetchFundies[],H$1+1,FALSE)/Millions,0) -> 0 | I22: =IFERROR(VLOOKUP($A22,FetchFundies[],I$1+1,FALSE)/Millions,0) -> 0 | L22: Income from unconsolidated subsidiaries after-tax, an operating item on the income statement.
A23: incomeOperatingOther | C23: Other Operating Income | D23: =IFERROR(VLOOKUP($A23,FetchFundies[],D$1+1,FALSE)/Millions,0) -> 0 | E23: =IFERROR(VLOOKUP($A23,FetchFundies[],E$1+1,FALSE)/Millions,0) -> 0 | F23: =IFERROR(VLOOKUP($A23,FetchFundies[],F$1+1,FALSE)/Millions,0) -> 0 | G23: =IFERROR(VLOOKUP($A23,FetchFundies[],G$1+1,FALSE)/Millions,0) -> 0 | H23: =IFERROR(VLOOKUP($A23,FetchFundies[],H$1+1,FALSE)/Millions,0) -> 0 | I23: =IFERROR(VLOOKUP($A23,FetchFundies[],I$1+1,FALSE)/Millions,0) -> 0 | L23: Other operating income.
A24: incomeOperating | C24: Total (other) Operating Income | D24: =IF(ISERROR(D20+D21+D22+D23)," ",D20+D21+D22+D23) -> 489 | E24: 835 | F24: 1071 | G24: 1008 | H24: 1049 | I24: 978 | K24: y | L24: Sum of a company’s operating income derived outside of revenues.
B25: Expenses | K25: y
A26: revenueCostOther | C26: Cost of Sales | D26: =IFERROR(VLOOKUP($A26,FetchFundies[],D$1+1,FALSE)/Millions,0) -> 17482 | E26: =IFERROR(VLOOKUP($A26,FetchFundies[],E$1+1,FALSE)/Millions,0) -> 16465 | F26: =IFERROR(VLOOKUP($A26,FetchFundies[],F$1+1,FALSE)/Millions,0) -> 13256 | G26: =IFERROR(VLOOKUP($A26,FetchFundies[],G$1+1,FALSE)/Millions,0) -> 11770 | H26: =IFERROR(VLOOKUP($A26,FetchFundies[],H$1+1,FALSE)/Millions,0) -> 14619 | I26: =IFERROR(VLOOKUP($A26,FetchFundies[],I$1+1,FALSE)/Millions,0) -> 13433 | K26: y | L26: Cost of sales, an expense on the income statement.
A27: creditlossprovision | C27: Credit Loss Provision | D27: =IFERROR(VLOOKUP($A27,FetchFundies[],D$1+1,FALSE)/Millions,0) -> 0 | E27: =IFERROR(VLOOKUP($A27,FetchFundies[],E$1+1,FALSE)/Millions,0) -> 0 | F27: =IFERROR(VLOOKUP($A27,FetchFundies[],F$1+1,FALSE)/Millions,0) -> 0 | G27: =IFERROR(VLOOKUP($A27,FetchFundies[],G$1+1,FALSE)/Millions,0) -> 0 | H27: =IFERROR(VLOOKUP($A27,FetchFundies[],H$1+1,FALSE)/Millions,0) -> 0 | I27: =IFERROR(VLOOKUP($A27,FetchFundies[],I$1+1,FALSE)/Millions,0) -> 0 | L27: Credit loss provision, an expense on the income statement recognized by financial companies or segments.
A28: salesCost | C28: Total Cost of Sales | D28: =IFERROR(VLOOKUP($A28,FetchFundies[],D$1+1,FALSE)/Millions,0) -> 17482 | E28: =IFERROR(VLOOKUP($A28,FetchFundies[],E$1+1,FALSE)/Millions,0) -> 16465 | F28: =IFERROR(VLOOKUP($A28,FetchFundies[],F$1+1,FALSE)/Millions,0) -> 13256 | G28: =IFERROR(VLOOKUP($A28,FetchFundies[],G$1+1,FALSE)/Millions,0) -> 11770 | H28: =IFERROR(VLOOKUP($A28,FetchFundies[],H$1+1,FALSE)/Millions,0) -> 14619 | I28: =IFERROR(VLOOKUP($A28,FetchFundies[],I$1+1,FALSE)/Millions,0) -> 13433 | K28: y | L28: Total cost of sales, an expense on the income statement.
A29: profitGross | C29: Gross Profit | D29: =IF(ISERROR(D18-D28)," ",D18-D28) -> 26812 | E29: 25398 | F29: 22154 | G29: 20086 | H29: 22647 | I29: 19581 | K29: y | L29: Gross Profit
A30: goodwillnet | C30: Gross Margin (%) | D30: =IF(ISERROR(D29/D18)," ",D29/D18) -> 0.6053190048 | E30: 0.6066932614 | F30: 0.6256424739 | G30: 0.6305248619 | H30: 0.6077121237 | I30: 0.5931120131 | K30: y | L30: Gross Margin %
A31: expensesSga | C31: Selling, General, and Administrative Expense | D31: =IFERROR(VLOOKUP($A31,FetchFundies[],D$1+1,FALSE)/Millions,0) -> 16427 | E31: =IFERROR(VLOOKUP($A31,FetchFundies[],E$1+1,FALSE)/Millions,0) -> 15262 | F31: =IFERROR(VLOOKUP($A31,FetchFundies[],F$1+1,FALSE)/Millions,0) -> 12496 | G31: =IFERROR(VLOOKUP($A31,FetchFundies[],G$1+1,FALSE)/Millions,0) -> 10307 | H31: =IFERROR(VLOOKUP($A31,FetchFundies[],H$1+1,FALSE)/Millions,0) -> 12103 | I31: =IFERROR(VLOOKUP($A31,FetchFundies[],I$1+1,FALSE)/Millions,0) -> 9731 | K31: y | L31: Selling, general, and administrative, an expense on the income statement.
A32: researchAndDevelopmentExpense | C32: Research and Development Expense | D32: =IFERROR(VLOOKUP($A32,FetchFundies[],D$1+1,FALSE)/Millions,0) -> 0 | E32: =IFERROR(VLOOKUP($A32,FetchFundies[],E$1+1,FALSE)/Millions,0) -> 0 | F32: =IFERROR(VLOOKUP($A32,FetchFundies[],F$1+1,FALSE)/Millions,0) -> 0 | G32: =IFERROR(VLOOKUP($A32,FetchFundies[],G$1+1,FALSE)/Millions,0) -> 0 | H32: =IFERROR(VLOOKUP($A32,FetchFundies[],H$1+1,FALSE)/Millions,0) -> 0 | I32: =IFERROR(VLOOKUP($A32,FetchFundies[],I$1+1,FALSE)/Millions,0) -> 0 | L32: Research and development expense, an expense on the income statement.
C33: Total Operating Expenses | E33: =+E31+E32 -> 15262 | F33: =+F31+F32 -> 12496 | G33: =+G31+G32 -> 10307 | H33: =+H31+H32 -> 12103 | I33: =+I31+I32 -> 9731 | K33: y | L33: Calculated as: SG&A + R&D
C34: Operating Income | E34: =+E29-E33 -> 10136 | F34: =+F29-F33 -> 9658 | G34: =+G29-G33 -> 9779 | H34: =+H29-H33 -> 10544 | I34: =+I29-I33 -> 9850 | K34: y | L34: Calculated as: Gross Profit - Total Operating Expenses
A35: expensesDepreciationAndAmortization | C35: Depreciation and Amortization | D35: =IFERROR(VLOOKUP($A35,FetchFundies[],D$1+1,FALSE)/Millions,0) -> 0 | E35: =IFERROR(VLOOKUP($A35,FetchFundies[],E$1+1,FALSE)/Millions,0) -> 0 | F35: =IFERROR(VLOOKUP($A35,FetchFundies[],F$1+1,FALSE)/Millions,0) -> 0 | G35: =IFERROR(VLOOKUP($A35,FetchFundies[],G$1+1,FALSE)/Millions,0) -> 0 | H35: =IFERROR(VLOOKUP($A35,FetchFundies[],H$1+1,FALSE)/Millions,0) -> 0 | I35: =IFERROR(VLOOKUP($A35,FetchFundies[],I$1+1,FALSE)/Millions,0) -> 0 | L35: Depreciation and amortization, an expense on the income statement.
A36: goodwillAmortizationIncomeStatement | C36: Goodwill Amortization | D36: =IFERROR(VLOOKUP($A36,FetchFundies[],D$1+1,FALSE)/Millions,0) -> 0 | E36: =IFERROR(VLOOKUP($A36,FetchFundies[],E$1+1,FALSE)/Millions,0) -> 0 | F36: =IFERROR(VLOOKUP($A36,FetchFundies[],F$1+1,FALSE)/Millions,0) -> 0 | G36: =IFERROR(VLOOKUP($A36,FetchFundies[],G$1+1,FALSE)/Millions,0) -> 0 | H36: =IFERROR(VLOOKUP($A36,FetchFundies[],H$1+1,FALSE)/Millions,0) -> 0 | I36: =IFERROR(VLOOKUP($A36,FetchFundies[],I$1+1,FALSE)/Millions,0) -> 0 | L36: Goodwill amortization, a data point on the income statement collected prior to 2001 when companies where permitted to amortize goodwill.
A37: expensesInterestFinancials | C37: Interest Expense (Operating) | D37: =IFERROR(VLOOKUP($A37,FetchFundies[],D$1+1,FALSE)/Millions,0) -> 0 | E37: =IFERROR(VLOOKUP($A37,FetchFundies[],E$1+1,FALSE)/Millions,0) -> 0 | F37: =IFERROR(VLOOKUP($A37,FetchFundies[],F$1+1,FALSE)/Millions,0) -> 0 | G37: =IFERROR(VLOOKUP($A37,FetchFundies[],G$1+1,FALSE)/Millions,0) -> 0 | H37: =IFERROR(VLOOKUP($A37,FetchFundies[],H$1+1,FALSE)/Millions,0) -> 0 | I37: =IFERROR(VLOOKUP($A37,FetchFundies[],I$1+1,FALSE)/Millions,0) -> 0 | L37: Interest expense, an exense on the income statement for financial companies or financial segments.
A38: expensesStockCompensation | C38: Stock Compensation | D38: =IFERROR(VLOOKUP($A38,FetchFundies[],D$1+1,FALSE)/Millions,0) -> 0 | E38: =IFERROR(VLOOKUP($A38,FetchFundies[],E$1+1,FALSE)/Millions,0) -> 0 | F38: =IFERROR(VLOOKUP($A38,FetchFundies[],F$1+1,FALSE)/Millions,0) -> 0 | G38: =IFERROR(VLOOKUP($A38,FetchFundies[],G$1+1,FALSE)/Millions,0) -> 0 | H38: =IFERROR(VLOOKUP($A38,FetchFundies[],H$1+1,FALSE)/Millions,0) -> 0 | I38: =IFERROR(VLOOKUP($A38,FetchFundies[],I$1+1,FALSE)/Millions,0) -> 0 | L38: Stock compensation, an expense on the income statement.
A39: expensesCompensation | C39: Other Compensation | D39: =IFERROR(VLOOKUP($A39,FetchFundies[],D$1+1,FALSE)/Millions,0) -> 0 | E39: =IFERROR(VLOOKUP($A39,FetchFundies[],E$1+1,FALSE)/Millions,0) -> 0 | F39: =IFERROR(VLOOKUP($A39,FetchFundies[],F$1+1,FALSE)/Millions,0) -> 0 | G39: =IFERROR(VLOOKUP($A39,FetchFundies[],G$1+1,FALSE)/Millions,0) -> 0 | H39: =IFERROR(VLOOKUP($A39,FetchFundies[],H$1+1,FALSE)/Millions,0) -> 0 | I39: =IFERROR(VLOOKUP($A39,FetchFundies[],I$1+1,FALSE)/Millions,0) -> 0 | L39: Other compensation, an expense on the income statement.
A40: expensesEnergy | C40: Energy Operating Expense | D40: =IFERROR(VLOOKUP($A40,FetchFundies[],D$1+1,FALSE)/Millions,0) -> 0 | E40: =IFERROR(VLOOKUP($A40,FetchFundies[],E$1+1,FALSE)/Millions,0) -> 0 | F40: =IFERROR(VLOOKUP($A40,FetchFundies[],F$1+1,FALSE)/Millions,0) -> 0 | G40: =IFERROR(VLOOKUP($A40,FetchFundies[],G$1+1,FALSE)/Millions,0) -> 0 | H40: =IFERROR(VLOOKUP($A40,FetchFundies[],H$1+1,FALSE)/Millions,0) -> 0 | I40: =IFERROR(VLOOKUP($A40,FetchFundies[],I$1+1,FALSE)/Millions,0) -> 0 | L40: Energy expense, an expense on the income statement for energy companies.
A41: cashrestricted | C41: Losses from Discontinued Operations (Operating) | D41: =IFERROR(VLOOKUP($A41,FetchFundies[],D$1+1,FALSE)/Millions,0) -> 0 | E41: =IFERROR(VLOOKUP($A41,FetchFundies[],E$1+1,FALSE)/Millions,0) -> 0 | F41: =IFERROR(VLOOKUP($A41,FetchFundies[],F$1+1,FALSE)/Millions,0) -> 0 | G41: =IFERROR(VLOOKUP($A41,FetchFundies[],G$1+1,FALSE)/Millions,0) -> 0 | H41: =IFERROR(VLOOKUP($A41,FetchFundies[],H$1+1,FALSE)/Millions,0) -> 0 | I41: =IFERROR(VLOOKUP($A41,FetchFundies[],I$1+1,FALSE)/Millions,0) -> 0 | L41: Restricted cash, a long-term asset on the balance sheet.
A42: expensesOperatingSubsidiaryUnconsolidated | C42: Losses from Unconsolidated Subsidiaries (Operating) | D42: =IFERROR(VLOOKUP($A42,FetchFundies[],D$1+1,FALSE)/Millions,0) -> 0 | E42: =IFERROR(VLOOKUP($A42,FetchFundies[],E$1+1,FALSE)/Millions,0) -> 0 | F42: =IFERROR(VLOOKUP($A42,FetchFundies[],F$1+1,FALSE)/Millions,0) -> 0 | G42: =IFERROR(VLOOKUP($A42,FetchFundies[],G$1+1,FALSE)/Millions,0) -> 0 | H42: =IFERROR(VLOOKUP($A42,FetchFundies[],H$1+1,FALSE)/Millions,0) -> 0 | I42: =IFERROR(VLOOKUP($A42,FetchFundies[],I$1+1,FALSE)/Millions,0) -> 0 | L42: Losses from unconsolidated subsidiaries, treated as operating if the corresponding asset is operating.
A43: expensesOreo | C43: Operating Other Real Estate Owned Expense | D43: =IFERROR(VLOOKUP($A43,FetchFundies[],D$1+1,FALSE)/Millions,0) -> 0 | E43: =IFERROR(VLOOKUP($A43,FetchFundies[],E$1+1,FALSE)/Millions,0) -> 0 | F43: =IFERROR(VLOOKUP($A43,FetchFundies[],F$1+1,FALSE)/Millions,0) -> 0 | G43: =IFERROR(VLOOKUP($A43,FetchFundies[],G$1+1,FALSE)/Millions,0) -> 0 | H43: =IFERROR(VLOOKUP($A43,FetchFundies[],H$1+1,FALSE)/Millions,0) -> 0 | I43: =IFERROR(VLOOKUP($A43,FetchFundies[],I$1+1,FALSE)/Millions,0) -> 0 | L43: HBS & MIT Sloan Data. Reported Non-Operating Other Real Estate Owned Expenses/(Income), net are non-operating expenses associated with foreclosed assets owned or controlled by a bank. These expenses appear directly on the income statement.
A44: expensesOperatingOther | C44: Other Operating Expense | D44: =IFERROR(VLOOKUP($A44,FetchFundies[],D$1+1,FALSE)/Millions,0) -> 0 | E44: =IFERROR(VLOOKUP($A44,FetchFundies[],E$1+1,FALSE)/Millions,0) -> 0 | F44: =IFERROR(VLOOKUP($A44,FetchFundies[],F$1+1,FALSE)/Millions,0) -> 0 | G44: =IFERROR(VLOOKUP($A44,FetchFundies[],G$1+1,FALSE)/Millions,0) -> 0 | H44: =IFERROR(VLOOKUP($A44,FetchFundies[],H$1+1,FALSE)/Millions,0) -> 0 | I44: =IFERROR(VLOOKUP($A44,FetchFundies[],I$1+1,FALSE)/Millions,0) -> 0 | L44: Other operating expense, an expense on the income statement.
A45: expenseswritedown | C45: Reported Write-Downs (Non-Operating), Net | D45: =IFERROR(VLOOKUP($A45,FetchFundies[],D$1+1,FALSE)/Millions,0) -> 0 | E45: =IFERROR(VLOOKUP($A45,FetchFundies[],E$1+1,FALSE)/Millions,0) -> 0 | F45: =IFERROR(VLOOKUP($A45,FetchFundies[],F$1+1,FALSE)/Millions,0) -> 0 | G45: =IFERROR(VLOOKUP($A45,FetchFundies[],G$1+1,FALSE)/Millions,0) -> 0 | H45: =IFERROR(VLOOKUP($A45,FetchFundies[],H$1+1,FALSE)/Millions,0) -> 0 | I45: =IFERROR(VLOOKUP($A45,FetchFundies[],I$1+1,FALSE)/Millions,0) -> 0 | L45: HBS & MIT Sloan Data. Reported Write-Downs, net are non-operating expenses related to the impairment in value of a company’s assets. These expenses appear directly on the income statement.
A46: expensesrestructuring | C46: Reported Restructuring Expenses, Net | D46: =IFERROR(VLOOKUP($A46,FetchFundies[],D$1+1,FALSE)/Millions,0) -> 0 | E46: =IFERROR(VLOOKUP($A46,FetchFundies[],E$1+1,FALSE)/Millions,0) -> 0 | F46: =IFERROR(VLOOKUP($A46,FetchFundies[],F$1+1,FALSE)/Millions,0) -> 0 | G46: =IFERROR(VLOOKUP($A46,FetchFundies[],G$1+1,FALSE)/Millions,0) -> 0 | H46: =IFERROR(VLOOKUP($A46,FetchFundies[],H$1+1,FALSE)/Millions,0) -> 0 | I46: =IFERROR(VLOOKUP($A46,FetchFundies[],I$1+1,FALSE)/Millions,0) -> 0 | L46: HBS & MIT Sloan Data. Reported Restructuring Expenses, net are the net of non-operating expenses related to the reorganization of a business that appear directly on the income statement.
A47: expensesnonrecurringother | C47: Reported Other Non-Recurring Expense/(Income), Net | D47: =IFERROR(VLOOKUP($A47,FetchFundies[],D$1+1,FALSE)/Millions,0) -> 1657 | E47: =IFERROR(VLOOKUP($A47,FetchFundies[],E$1+1,FALSE)/Millions,0) -> 1510 | F47: =IFERROR(VLOOKUP($A47,FetchFundies[],F$1+1,FALSE)/Millions,0) -> 2157 | G47: =IFERROR(VLOOKUP($A47,FetchFundies[],G$1+1,FALSE)/Millions,0) -> 1079 | H47: =IFERROR(VLOOKUP($A47,FetchFundies[],H$1+1,FALSE)/Millions,0) -> 458 | I47: =IFERROR(VLOOKUP($A47,FetchFundies[],I$1+1,FALSE)/Millions,0) -> 853 | K47: y | L47: HBS & MIT Sloan Data. Reported Other Non-Recurring Expenses/(Income), net are non-operating expenses for other costs that appear directly on the income statement. These costs should not recur in the future.
A48: expensesinterest | C48: Reported Interest Expense/(Income), Net | D48: =IFERROR(VLOOKUP($A48,FetchFundies[],D$1+1,FALSE)/Millions,0) -> 243 | E48: =IFERROR(VLOOKUP($A48,FetchFundies[],E$1+1,FALSE)/Millions,0) -> 91 | F48: =IFERROR(VLOOKUP($A48,FetchFundies[],F$1+1,FALSE)/Millions,0) -> 164 | G48: =IFERROR(VLOOKUP($A48,FetchFundies[],G$1+1,FALSE)/Millions,0) -> 237 | H48: =IFERROR(VLOOKUP($A48,FetchFundies[],H$1+1,FALSE)/Millions,0) -> 383 | I48: =IFERROR(VLOOKUP($A48,FetchFundies[],I$1+1,FALSE)/Millions,0) -> 1067 | K48: y | L48: Reported Interest Expense/(Income), net is a non-operating expense related to the cost of financing that appears directly on the income statement.
A49: expensesdiscontinuedoperations | C49: Reported Expenses/(Income) from Discontinued Operations, Net | D49: =IFERROR(VLOOKUP($A49,FetchFundies[],D$1+1,FALSE)/Millions,0) -> 0 | E49: =IFERROR(VLOOKUP($A49,FetchFundies[],E$1+1,FALSE)/Millions,0) -> 0 | F49: =IFERROR(VLOOKUP($A49,FetchFundies[],F$1+1,FALSE)/Millions,0) -> 0 | G49: =IFERROR(VLOOKUP($A49,FetchFundies[],G$1+1,FALSE)/Millions,0) -> 0 | H49: =IFERROR(VLOOKUP($A49,FetchFundies[],H$1+1,FALSE)/Millions,0) -> 0 | I49: =IFERROR(VLOOKUP($A49,FetchFundies[],I$1+1,FALSE)/Millions,0) -> 0 | L49: HBS & MIT Sloan Data. Reported Expenses/(Income) from Discontinued Operations, net are non-operating expenses associated with businesses or subsidiaries that are held for sale. These expenses appear directly on the income statement.
A50: expensesnonoperatingsubsidiaryunconsolidated | C50: Reported Losses/(Income) from Unconsolidated Subsidiaries, Net | D50: =IFERROR(VLOOKUP($A50,FetchFundies[],D$1+1,FALSE)/Millions,0) -> 0 | E50: =IFERROR(VLOOKUP($A50,FetchFundies[],E$1+1,FALSE)/Millions,0) -> 0 | F50: =IFERROR(VLOOKUP($A50,FetchFundies[],F$1+1,FALSE)/Millions,0) -> 0 | G50: =IFERROR(VLOOKUP($A50,FetchFundies[],G$1+1,FALSE)/Millions,0) -> 0 | H50: =IFERROR(VLOOKUP($A50,FetchFundies[],H$1+1,FALSE)/Millions,0) -> 0 | I50: =IFERROR(VLOOKUP($A50,FetchFundies[],I$1+1,FALSE)/Millions,0) -> 0 | L50: Reported Losses/(Income) from Unconsolidated Subsidiaries, net are non-operating expenses associated with subsidiaries that are not consolidated within the parent company’s financial statements. These expenses appear directly on the income statement.
A51: expensesforeigncurrency | C51: Reported Foreign Currency Expenses, Net | D51: =IFERROR(VLOOKUP($A51,FetchFundies[],D$1+1,FALSE)/Millions,0) -> 0 | E51: =IFERROR(VLOOKUP($A51,FetchFundies[],E$1+1,FALSE)/Millions,0) -> 0 | F51: =IFERROR(VLOOKUP($A51,FetchFundies[],F$1+1,FALSE)/Millions,0) -> 0 | G51: =IFERROR(VLOOKUP($A51,FetchFundies[],G$1+1,FALSE)/Millions,0) -> 0 | H51: =IFERROR(VLOOKUP($A51,FetchFundies[],H$1+1,FALSE)/Millions,0) -> 0 | I51: =IFERROR(VLOOKUP($A51,FetchFundies[],I$1+1,FALSE)/Millions,0) -> 0 | L51: HBS & MIT Sloan Data. Reported Foreign Currency Loss/(Gain), net is a non-operating expense related to the changes in the value of foreign currency that appears directly on the income statement.
A52: expensesoreo | C52: Reported Non-Operating Other Real Estate Owned Expense/(Income), Net | D52: =IFERROR(VLOOKUP($A52,FetchFundies[],D$1+1,FALSE)/Millions,0) -> 0 | E52: =IFERROR(VLOOKUP($A52,FetchFundies[],E$1+1,FALSE)/Millions,0) -> 0 | F52: =IFERROR(VLOOKUP($A52,FetchFundies[],F$1+1,FALSE)/Millions,0) -> 0 | G52: =IFERROR(VLOOKUP($A52,FetchFundies[],G$1+1,FALSE)/Millions,0) -> 0 | H52: =IFERROR(VLOOKUP($A52,FetchFundies[],H$1+1,FALSE)/Millions,0) -> 0 | I52: =IFERROR(VLOOKUP($A52,FetchFundies[],I$1+1,FALSE)/Millions,0) -> 0 | L52: HBS & MIT Sloan Data. Reported Non-Operating Other Real Estate Owned Expenses/(Income), net are non-operating expenses associated with foreclosed assets owned or controlled by a bank. These expenses appear directly on the income statement.
A53: expensesacquisitionmerger | C53: Reported Acquisition and Merger Expenses, Net | D53: =IFERROR(VLOOKUP($A53,FetchFundies[],D$1+1,FALSE)/Millions,0) -> 0 | E53: =IFERROR(VLOOKUP($A53,FetchFundies[],E$1+1,FALSE)/Millions,0) -> 0 | F53: =IFERROR(VLOOKUP($A53,FetchFundies[],F$1+1,FALSE)/Millions,0) -> 0 | G53: =IFERROR(VLOOKUP($A53,FetchFundies[],G$1+1,FALSE)/Millions,0) -> 0 | H53: =IFERROR(VLOOKUP($A53,FetchFundies[],H$1+1,FALSE)/Millions,0) -> 0 | I53: =IFERROR(VLOOKUP($A53,FetchFundies[],I$1+1,FALSE)/Millions,0) -> 0 | L53: HBS & MIT Sloan Data. Reported Acquisition and Merger Expenses, net are the net of non-operating expenses related to an acquisition or merger that appear directly on the income statement.
A54: expenseslegalregulatoryinsurance | C54: Reported Legal, Regulatory, and Insurance Related Expenses, Net | D54: =IFERROR(VLOOKUP($A54,FetchFundies[],D$1+1,FALSE)/Millions,0) -> 0 | E54: =IFERROR(VLOOKUP($A54,FetchFundies[],E$1+1,FALSE)/Millions,0) -> 0 | F54: =IFERROR(VLOOKUP($A54,FetchFundies[],F$1+1,FALSE)/Millions,0) -> 0 | G54: =IFERROR(VLOOKUP($A54,FetchFundies[],G$1+1,FALSE)/Millions,0) -> 0 | H54: =IFERROR(VLOOKUP($A54,FetchFundies[],H$1+1,FALSE)/Millions,0) -> 0 | I54: =IFERROR(VLOOKUP($A54,FetchFundies[],I$1+1,FALSE)/Millions,0) -> 0 | L54: HBS & MIT Sloan Data. Reported Legal, Regulatory, and Insurance Related Expenses, net are the net of non-operating expenses related to legal, regulatory, and insurance costs that appear directly on the income statement.
A55: expensesderivative | C55: Reported Derivate Related Expenses, Net | D55: =IFERROR(VLOOKUP($A55,FetchFundies[],D$1+1,FALSE)/Millions,0) -> 0 | E55: =IFERROR(VLOOKUP($A55,FetchFundies[],E$1+1,FALSE)/Millions,0) -> 0 | F55: =IFERROR(VLOOKUP($A55,FetchFundies[],F$1+1,FALSE)/Millions,0) -> 0 | G55: =IFERROR(VLOOKUP($A55,FetchFundies[],G$1+1,FALSE)/Millions,0) -> 0 | H55: =IFERROR(VLOOKUP($A55,FetchFundies[],H$1+1,FALSE)/Millions,0) -> 0 | I55: =IFERROR(VLOOKUP($A55,FetchFundies[],I$1+1,FALSE)/Millions,0) -> 0 | L55: HBS & MIT Sloan Data. Reported Derivative Related Expenses, net are the net of non-operating expenses related to derivatives that appear directly on the income statement.
A56: expensesotherfinancing | C56: Reported Other Financing Expenses, Net | D56: =IFERROR(VLOOKUP($A56,FetchFundies[],D$1+1,FALSE)/Millions,0) -> 0 | E56: =IFERROR(VLOOKUP($A56,FetchFundies[],E$1+1,FALSE)/Millions,0) -> 0 | F56: =IFERROR(VLOOKUP($A56,FetchFundies[],F$1+1,FALSE)/Millions,0) -> 0 | G56: =IFERROR(VLOOKUP($A56,FetchFundies[],G$1+1,FALSE)/Millions,0) -> 0 | H56: =IFERROR(VLOOKUP($A56,FetchFundies[],H$1+1,FALSE)/Millions,0) -> 0 | I56: =IFERROR(VLOOKUP($A56,FetchFundies[],I$1+1,FALSE)/Millions,0) -> 0 | L56: HBS & MIT Sloan Data. Reported Other Financing Expenses, net are the net of non-operating expenses related to the cost of financing that appear directly on the income statement.
A57: expensesnonoperatingcompanydefinedother | C57: Reported Company Defined Other Non-Operating Expenses, Net | D57: =IFERROR(VLOOKUP($A57,FetchFundies[],D$1+1,FALSE)/Millions,0) -> -631 | E57: =IFERROR(VLOOKUP($A57,FetchFundies[],E$1+1,FALSE)/Millions,0) -> 1234 | F57: =IFERROR(VLOOKUP($A57,FetchFundies[],F$1+1,FALSE)/Millions,0) -> 1666 | G57: =IFERROR(VLOOKUP($A57,FetchFundies[],G$1+1,FALSE)/Millions,0) -> 1121 | H57: =IFERROR(VLOOKUP($A57,FetchFundies[],H$1+1,FALSE)/Millions,0) -> -34 | I57: =IFERROR(VLOOKUP($A57,FetchFundies[],I$1+1,FALSE)/Millions,0) -> -841 | K57: y | L57: HBS & MIT Sloan Data. Reported Company Defined Other Non-Operating Expenses, net are the net of non-operating expenses for costs specifically defined as other that appear directly on the income statement.
A58: expensesnonoperatingother | C58: Reported Other Non-Operating Expense/(Income), Net | D58: =IFERROR(VLOOKUP($A58,FetchFundies[],D$1+1,FALSE)/Millions,0) -> 0 | E58: =IFERROR(VLOOKUP($A58,FetchFundies[],E$1+1,FALSE)/Millions,0) -> 0 | F58: =IFERROR(VLOOKUP($A58,FetchFundies[],F$1+1,FALSE)/Millions,0) -> 0 | G58: =IFERROR(VLOOKUP($A58,FetchFundies[],G$1+1,FALSE)/Millions,0) -> 0 | H58: =IFERROR(VLOOKUP($A58,FetchFundies[],H$1+1,FALSE)/Millions,0) -> 0 | I58: =IFERROR(VLOOKUP($A58,FetchFundies[],I$1+1,FALSE)/Millions,0) -> 0 | L58: HBS & MIT Sloan Data. Reported Other Non-Operating Expenses/(Income), net are non-operating expenses for other costs that appear directly on the income statement.
A59: expensesOperating | C59: Total Expenses | D59: =IF(ISERROR(D28+D31+D32+D35+D36+D37+D38+D39+D40+D41+D42+D43+D44+D45+D46+D47+D48+D49+D50+D51+D52+D53+D54+D55+D56+D57+D58)," ",D28+D31+D32+D35+D36+D37+D38+D39+D40+D41+D42+D43+D44+D45+D46+D47+D48+D49+D50+D51+D52+D53+D54+D55+D56+D57+D58) -> 35178 | E59: 34562 | F59: 29739 | G59: 24514 | H59: 27529 | I59: 24243 | K59: y | L59: Total operating expenses disclosed on the income statement.
A60: incomeNetPreTax | C60: Pre-Tax Income | D60: =IFERROR(VLOOKUP($A60,FetchFundies[],D$1+1,FALSE)/Millions,0) -> 9605 | E60: =IFERROR(VLOOKUP($A60,FetchFundies[],E$1+1,FALSE)/Millions,0) -> 8136 | F60: =IFERROR(VLOOKUP($A60,FetchFundies[],F$1+1,FALSE)/Millions,0) -> 6742 | G60: =IFERROR(VLOOKUP($A60,FetchFundies[],G$1+1,FALSE)/Millions,0) -> 8350 | H60: =IFERROR(VLOOKUP($A60,FetchFundies[],H$1+1,FALSE)/Millions,0) -> 10786 | I60: =IFERROR(VLOOKUP($A60,FetchFundies[],I$1+1,FALSE)/Millions,0) -> 9749 | K60: y | L60: Pre-tax income (AKA EBIT)
A61: incomeTax | C61: Income Tax Provision | D61: =IFERROR(VLOOKUP($A61,FetchFundies[],D$1+1,FALSE)/Millions,0) -> 2239 | E61: =IFERROR(VLOOKUP($A61,FetchFundies[],E$1+1,FALSE)/Millions,0) -> 1586 | F61: =IFERROR(VLOOKUP($A61,FetchFundies[],F$1+1,FALSE)/Millions,0) -> 5560 | G61: =IFERROR(VLOOKUP($A61,FetchFundies[],G$1+1,FALSE)/Millions,0) -> 1623 | H61: =IFERROR(VLOOKUP($A61,FetchFundies[],H$1+1,FALSE)/Millions,0) -> 1801 | I61: =IFERROR(VLOOKUP($A61,FetchFundies[],I$1+1,FALSE)/Millions,0) -> 1981 | K61: y | L61: A line item on a company’s income statement representing its estimated tax liability or benefit for the current year.
A62: incomeTaxRate | C62: Effective Income Tax Rate | D62: =IFERROR(VLOOKUP($A62,FetchFundies[],D$1+1,FALSE),0) -> 0.2331077564 | E62: =IFERROR(VLOOKUP($A62,FetchFundies[],E$1+1,FALSE),0) -> 0.1949360865 | F62: =IFERROR(VLOOKUP($A62,FetchFundies[],F$1+1,FALSE),0) -> 0.8246811035 | G62: =IFERROR(VLOOKUP($A62,FetchFundies[],G$1+1,FALSE),0) -> 0.1943712575 | H62: =IFERROR(VLOOKUP($A62,FetchFundies[],H$1+1,FALSE),0) -> 0.1669757093 | I62: =IFERROR(VLOOKUP($A62,FetchFundies[],I$1+1,FALSE),0) -> 0.2032003282 | K62: y | L62: The reported, effective income tax rate.
A63: expensesInterestMinority | C63: Reported Minority Interest Expense, Net | D63: =IFERROR(VLOOKUP($A63,FetchFundies[],D$1+1,FALSE)/Millions,0) -> 15 | E63: =IFERROR(VLOOKUP($A63,FetchFundies[],E$1+1,FALSE)/Millions,0) -> 23 | F63: =IFERROR(VLOOKUP($A63,FetchFundies[],F$1+1,FALSE)/Millions,0) -> 35 | G63: =IFERROR(VLOOKUP($A63,FetchFundies[],G$1+1,FALSE)/Millions,0) -> 42 | H63: =IFERROR(VLOOKUP($A63,FetchFundies[],H$1+1,FALSE)/Millions,0) -> 65 | I63: =IFERROR(VLOOKUP($A63,FetchFundies[],I$1+1,FALSE)/Millions,0) -> 21 | K63: y | L63: Reported Minority Interest Expenses, net are the net of non-operating expenses associated with significant but non-controlling ownership of a company’s voting shares.
A64: dividendspreferred | C64: Reported Preferred Dividends, Net | D64: =IFERROR(VLOOKUP($A64,FetchFundies[],D$1+1,FALSE)/Millions,0) -> 0 | E64: =IFERROR(VLOOKUP($A64,FetchFundies[],E$1+1,FALSE)/Millions,0) -> 0 | F64: =IFERROR(VLOOKUP($A64,FetchFundies[],F$1+1,FALSE)/Millions,0) -> 0 | G64: =IFERROR(VLOOKUP($A64,FetchFundies[],G$1+1,FALSE)/Millions,0) -> 0 | H64: =IFERROR(VLOOKUP($A64,FetchFundies[],H$1+1,FALSE)/Millions,0) -> 0 | I64: =IFERROR(VLOOKUP($A64,FetchFundies[],I$1+1,FALSE)/Millions,0) -> 0 | L64: Reported Preferred Stock Dividends, net are the dividends that must be paid out to preferred equity owners before common stock owners can receive any money.
A65: dividendspreferredredeemablemandatorily | C65: Reported Dividends on Redeemable Preferred Stock, Net | D65: =IFERROR(VLOOKUP($A65,FetchFundies[],D$1+1,FALSE)/Millions,0) -> 0 | E65: =IFERROR(VLOOKUP($A65,FetchFundies[],E$1+1,FALSE)/Millions,0) -> 0 | F65: =IFERROR(VLOOKUP($A65,FetchFundies[],F$1+1,FALSE)/Millions,0) -> 0 | G65: =IFERROR(VLOOKUP($A65,FetchFundies[],G$1+1,FALSE)/Millions,0) -> 0 | H65: =IFERROR(VLOOKUP($A65,FetchFundies[],H$1+1,FALSE)/Millions,0) -> 0 | I65: =IFERROR(VLOOKUP($A65,FetchFundies[],I$1+1,FALSE)/Millions,0) -> 0 | L65: Reported Redeemable Preferred Stock Dividends, net are the dividends that must be paid out to redeemable preferred equity owners before common stock owners can receive any money.
A66: chargeaftertaxdiscontinuedoperations | C66: Reported Loss/(Gain) from Discontinued Operations After-Tax, Net | D66: =IFERROR(VLOOKUP($A66,FetchFundies[],D$1+1,FALSE)/Millions,0) -> 0 | E66: =IFERROR(VLOOKUP($A66,FetchFundies[],E$1+1,FALSE)/Millions,0) -> 0 | F66: =IFERROR(VLOOKUP($A66,FetchFundies[],F$1+1,FALSE)/Millions,0) -> -101 | G66: =IFERROR(VLOOKUP($A66,FetchFundies[],G$1+1,FALSE)/Millions,0) -> 251 | H66: =IFERROR(VLOOKUP($A66,FetchFundies[],H$1+1,FALSE)/Millions,0) -> 0 | I66: =IFERROR(VLOOKUP($A66,FetchFundies[],I$1+1,FALSE)/Millions,0) -> 0 | K66: y | L66: HBS & MIT Sloan Data. Reported Loss/(Gain) from Discontinued Operations, net is the after-tax expense from assets or subsidiaries that are held for sale.
A67: chargesaftertaxother | C67: Reported Other After-Tax Charges, Net | D67: =IFERROR(VLOOKUP($A67,FetchFundies[],D$1+1,FALSE)/Millions,0) -> 0 | E67: =IFERROR(VLOOKUP($A67,FetchFundies[],E$1+1,FALSE)/Millions,0) -> 0 | F67: =IFERROR(VLOOKUP($A67,FetchFundies[],F$1+1,FALSE)/Millions,0) -> 0 | G67: =IFERROR(VLOOKUP($A67,FetchFundies[],G$1+1,FALSE)/Millions,0) -> 0 | H67: =IFERROR(VLOOKUP($A67,FetchFundies[],H$1+1,FALSE)/Millions,0) -> 0 | I67: =IFERROR(VLOOKUP($A67,FetchFundies[],I$1+1,FALSE)/Millions,0) -> 0 | L67: HBS & MIT Sloan Data. Reported Other After-tax Charges, net are other non-operating expenses and income that appear directly on the income statement after tax.
A68: incomenet | C68: GAAP Net Income | D68: =D60-D61-D63-D64-D65-D66-D67 -> 7351 | E68: 6527 | F68: 1248 | G68: 6434 | H68: 8920 | I68: 7747 | K68: y | L68: GAAP net income. Attributable to shareholders.
A69: incomenetyoydelta | C69: Annual Change in Net Income | D69: =IFERROR(VLOOKUP($A69,FetchFundies[],D$1+1,FALSE)/Millions,0) -> 253 | E69: =IFERROR(VLOOKUP($A69,FetchFundies[],E$1+1,FALSE)/Millions,0) -> -824 | F69: =IFERROR(VLOOKUP($A69,FetchFundies[],F$1+1,FALSE)/Millions,0) -> -5279 | G69: =IFERROR(VLOOKUP($A69,FetchFundies[],G$1+1,FALSE)/Millions,0) -> 5186 | H69: =IFERROR(VLOOKUP($A69,FetchFundies[],H$1+1,FALSE)/Millions,0) -> 2486 | I69: =IFERROR(VLOOKUP($A69,FetchFundies[],I$1+1,FALSE)/Millions,0) -> -1173 | K69: y | L69: The change in Net Income year over year.
B71: Balance Sheet - Assets | K71: y
B72: Current Assets | K72: y
A73: assetscurrentcash | C73: Cash and Equivalents (Non-Operating) | D73: =IFERROR(VLOOKUP($A73,FetchFundies[],D$1+1,FALSE)/Millions,0) -> 19900 | E73: =IFERROR(VLOOKUP($A73,FetchFundies[],E$1+1,FALSE)/Millions,0) -> 22201 | F73: =IFERROR(VLOOKUP($A73,FetchFundies[],F$1+1,FALSE)/Millions,0) -> 20675 | G73: =IFERROR(VLOOKUP($A73,FetchFundies[],G$1+1,FALSE)/Millions,0) -> 15964 | H73: =IFERROR(VLOOKUP($A73,FetchFundies[],H$1+1,FALSE)/Millions,0) -> 11175 | I73: =IFERROR(VLOOKUP($A73,FetchFundies[],I$1+1,FALSE)/Millions,0) -> 10914 | K73: y | L73: Cash and cash equivalents, a current asset on the balance sheet. This data point collects cash for non-financial companies.
A74: cashOperating | C74: Cash and Equivalents (Operating) | D74: =IFERROR(VLOOKUP($A74,FetchFundies[],D$1+1,FALSE)/Millions,0) -> 0 | E74: =IFERROR(VLOOKUP($A74,FetchFundies[],E$1+1,FALSE)/Millions,0) -> 0 | F74: =IFERROR(VLOOKUP($A74,FetchFundies[],F$1+1,FALSE)/Millions,0) -> 0 | G74: =IFERROR(VLOOKUP($A74,FetchFundies[],G$1+1,FALSE)/Millions,0) -> 0 | H74: =IFERROR(VLOOKUP($A74,FetchFundies[],H$1+1,FALSE)/Millions,0) -> 0 | I74: =IFERROR(VLOOKUP($A74,FetchFundies[],I$1+1,FALSE)/Millions,0) -> 0 | L74: Cash and cash equivalents, a current asset on the balance sheet. This data point collects cash for financial companies or segments.
A75: assetscurrentcashrestricted | C75: Current Restricted Cash | D75: =IFERROR(VLOOKUP($A75,FetchFundies[],D$1+1,FALSE)/Millions,0) -> 0 | E75: =IFERROR(VLOOKUP($A75,FetchFundies[],E$1+1,FALSE)/Millions,0) -> 0 | F75: =IFERROR(VLOOKUP($A75,FetchFundies[],F$1+1,FALSE)/Millions,0) -> 0 | G75: =IFERROR(VLOOKUP($A75,FetchFundies[],G$1+1,FALSE)/Millions,0) -> 0 | H75: =IFERROR(VLOOKUP($A75,FetchFundies[],H$1+1,FALSE)/Millions,0) -> 0 | I75: =IFERROR(VLOOKUP($A75,FetchFundies[],I$1+1,FALSE)/Millions,0) -> 0 | L75: Restricted cash, a current asset on the balance sheet.
A76: assetscurrentinvestments | C76: Other Investment Securities (Operating) | D76: =IFERROR(VLOOKUP($A76,FetchFundies[],D$1+1,FALSE)/Millions,0) -> 0 | E76: =IFERROR(VLOOKUP($A76,FetchFundies[],E$1+1,FALSE)/Millions,0) -> 0 | F76: =IFERROR(VLOOKUP($A76,FetchFundies[],F$1+1,FALSE)/Millions,0) -> 0 | G76: =IFERROR(VLOOKUP($A76,FetchFundies[],G$1+1,FALSE)/Millions,0) -> 0 | H76: =IFERROR(VLOOKUP($A76,FetchFundies[],H$1+1,FALSE)/Millions,0) -> 0 | I76: =IFERROR(VLOOKUP($A76,FetchFundies[],I$1+1,FALSE)/Millions,0) -> 0 | L76: Investment securities, a current asset on the balance sheet for financial companies or financial segments.
A77: accountsreceivable | C77: Accounts Receivable | D77: =IFERROR(VLOOKUP($A77,FetchFundies[],D$1+1,FALSE)/Millions,0) -> 3941 | E77: =IFERROR(VLOOKUP($A77,FetchFundies[],E$1+1,FALSE)/Millions,0) -> 3856 | F77: =IFERROR(VLOOKUP($A77,FetchFundies[],F$1+1,FALSE)/Millions,0) -> 3667 | G77: =IFERROR(VLOOKUP($A77,FetchFundies[],G$1+1,FALSE)/Millions,0) -> 3396 | H77: =IFERROR(VLOOKUP($A77,FetchFundies[],H$1+1,FALSE)/Millions,0) -> 3971 | I77: =IFERROR(VLOOKUP($A77,FetchFundies[],I$1+1,FALSE)/Millions,0) -> 3144 | K77: y | L77: Accounts receivable, a current asset on the balance sheet.
A78: inventory | C78: Inventory | D78: =IFERROR(VLOOKUP($A78,FetchFundies[],D$1+1,FALSE)/Millions,0) -> 2902 | E78: =IFERROR(VLOOKUP($A78,FetchFundies[],E$1+1,FALSE)/Millions,0) -> 2675 | F78: =IFERROR(VLOOKUP($A78,FetchFundies[],F$1+1,FALSE)/Millions,0) -> 2655 | G78: =IFERROR(VLOOKUP($A78,FetchFundies[],G$1+1,FALSE)/Millions,0) -> 2766 | H78: =IFERROR(VLOOKUP($A78,FetchFundies[],H$1+1,FALSE)/Millions,0) -> 3379 | I78: =IFERROR(VLOOKUP($A78,FetchFundies[],I$1+1,FALSE)/Millions,0) -> 3266 | K78: y | L78: Inventory, a current asset on the balance sheet.
A79: assetscurrentdeferredtax | C79: Reported Current Deferred Tax Assets | D79: =IFERROR(VLOOKUP($A79,FetchFundies[],D$1+1,FALSE)/Millions,0) -> 0 | E79: =IFERROR(VLOOKUP($A79,FetchFundies[],E$1+1,FALSE)/Millions,0) -> 0 | F79: =IFERROR(VLOOKUP($A79,FetchFundies[],F$1+1,FALSE)/Millions,0) -> 0 | G79: =IFERROR(VLOOKUP($A79,FetchFundies[],G$1+1,FALSE)/Millions,0) -> 0 | H79: =IFERROR(VLOOKUP($A79,FetchFundies[],H$1+1,FALSE)/Millions,0) -> 0 | I79: =IFERROR(VLOOKUP($A79,FetchFundies[],I$1+1,FALSE)/Millions,0) -> 0 | L79: Current deferred tax assets, a current asset on the balance sheet.
A80: assetscurrentloansnet | C80: Net Loans | D80: =IFERROR(VLOOKUP($A80,FetchFundies[],D$1+1,FALSE)/Millions,0) -> 0 | E80: =IFERROR(VLOOKUP($A80,FetchFundies[],E$1+1,FALSE)/Millions,0) -> 0 | F80: =IFERROR(VLOOKUP($A80,FetchFundies[],F$1+1,FALSE)/Millions,0) -> 0 | G80: =IFERROR(VLOOKUP($A80,FetchFundies[],G$1+1,FALSE)/Millions,0) -> 0 | H80: =IFERROR(VLOOKUP($A80,FetchFundies[],H$1+1,FALSE)/Millions,0) -> 0 | I80: =IFERROR(VLOOKUP($A80,FetchFundies[],I$1+1,FALSE)/Millions,0) -> 0 | L80: Net loans, a current asset on the balance sheet for finanial companies or financial segments
A81: nibclseparateaccounts | C81: Separate Accounts | D81: =IFERROR(VLOOKUP($A81,FetchFundies[],D$1+1,FALSE)/Millions,0) -> 0 | E81: =IFERROR(VLOOKUP($A81,FetchFundies[],E$1+1,FALSE)/Millions,0) -> 0 | F81: =IFERROR(VLOOKUP($A81,FetchFundies[],F$1+1,FALSE)/Millions,0) -> 0 | G81: =IFERROR(VLOOKUP($A81,FetchFundies[],G$1+1,FALSE)/Millions,0) -> 0 | H81: =IFERROR(VLOOKUP($A81,FetchFundies[],H$1+1,FALSE)/Millions,0) -> 0 | I81: =IFERROR(VLOOKUP($A81,FetchFundies[],I$1+1,FALSE)/Millions,0) -> 0 | K81: =IF(B81<>"","y",IF(SUM(E81:I81)=0,"","y")) ->  | L81: Separate accounts, a current liability on the balance sheet.
A82: assetscurrentother | C82: Other Current or Investment Assets | D82: =IFERROR(VLOOKUP($A82,FetchFundies[],D$1+1,FALSE)/Millions,0) -> 2752 | E82: =IFERROR(VLOOKUP($A82,FetchFundies[],E$1+1,FALSE)/Millions,0) -> 2481 | F82: =IFERROR(VLOOKUP($A82,FetchFundies[],F$1+1,FALSE)/Millions,0) -> 2000 | G82: =IFERROR(VLOOKUP($A82,FetchFundies[],G$1+1,FALSE)/Millions,0) -> 1962 | H82: =IFERROR(VLOOKUP($A82,FetchFundies[],H$1+1,FALSE)/Millions,0) -> 1886 | I82: =IFERROR(VLOOKUP($A82,FetchFundies[],I$1+1,FALSE)/Millions,0) -> 1916 | K82: y | L82: Other current assets on the balance sheet.
A83: assetscurrentdeferredcompensation | C83: Reported Current Deferred Compensation Assets | D83: =IFERROR(VLOOKUP($A83,FetchFundies[],D$1+1,FALSE)/Millions,0) -> 0 | E83: =IFERROR(VLOOKUP($A83,FetchFundies[],E$1+1,FALSE)/Millions,0) -> 0 | F83: =IFERROR(VLOOKUP($A83,FetchFundies[],F$1+1,FALSE)/Millions,0) -> 0 | G83: =IFERROR(VLOOKUP($A83,FetchFundies[],G$1+1,FALSE)/Millions,0) -> 0 | H83: =IFERROR(VLOOKUP($A83,FetchFundies[],H$1+1,FALSE)/Millions,0) -> 0 | I83: =IFERROR(VLOOKUP($A83,FetchFundies[],I$1+1,FALSE)/Millions,0) -> 0 | L83: Current deferred compensation assets, a current asset on the balance sheet.
A84: nibcldiscontinuedoperations | C84: Current Discontinued Operations (Non-Operating) | D84: =IFERROR(VLOOKUP($A84,FetchFundies[],D$1+1,FALSE)/Millions,0) -> 1133 | E84: =IFERROR(VLOOKUP($A84,FetchFundies[],E$1+1,FALSE)/Millions,0) -> 710 | F84: =IFERROR(VLOOKUP($A84,FetchFundies[],F$1+1,FALSE)/Millions,0) -> 1533 | G84: =IFERROR(VLOOKUP($A84,FetchFundies[],G$1+1,FALSE)/Millions,0) -> 1722 | H84: =IFERROR(VLOOKUP($A84,FetchFundies[],H$1+1,FALSE)/Millions,0) -> 0 | I84: =IFERROR(VLOOKUP($A84,FetchFundies[],I$1+1,FALSE)/Millions,0) -> 0 | K84: y | L84: Current liability for discontinued operations, a current liability on the balance sheet.
A85: assetscurrentleasesoperating | C85: Reported Current Operating Lease Assets | D85: =IFERROR(VLOOKUP($A85,FetchFundies[],D$1+1,FALSE)/Millions,0) -> 0 | E85: =IFERROR(VLOOKUP($A85,FetchFundies[],E$1+1,FALSE)/Millions,0) -> 0 | F85: =IFERROR(VLOOKUP($A85,FetchFundies[],F$1+1,FALSE)/Millions,0) -> 0 | G85: =IFERROR(VLOOKUP($A85,FetchFundies[],G$1+1,FALSE)/Millions,0) -> 0 | H85: =IFERROR(VLOOKUP($A85,FetchFundies[],H$1+1,FALSE)/Millions,0) -> 0 | I85: =IFERROR(VLOOKUP($A85,FetchFundies[],I$1+1,FALSE)/Millions,0) -> 0 | L85: Current operating lease assets, a current asset on the balance sheet.
A86: assetscurrentunadjusted | C86: Total Current/Investment Assets (Unadjusted) | D86: =IF(ISERROR(D73+D74+D75+D76+D77+D78+D79+D80+D81+D82+D83+D84+D85)," ",D73+D74+D75+D76+D77+D78+D79+D80+D81+D82+D83+D84+D85) -> 30628 | E86: 31923 | F86: 30530 | G86: 25810 | H86: 20411 | I86: 19240 | K86: y | L86: Total Current/Investment Assets (unadjusted) as reported on the balance sheet.
B87: Fixed Assets | K87: y
A88: ppandenet | C88: Net Property, Plant, and Equipment | D88: =IFERROR(VLOOKUP($A88,FetchFundies[],D$1+1,FALSE)/Millions,0) -> 12571 | E88: =IFERROR(VLOOKUP($A88,FetchFundies[],E$1+1,FALSE)/Millions,0) -> 10635 | F88: =IFERROR(VLOOKUP($A88,FetchFundies[],F$1+1,FALSE)/Millions,0) -> 8203 | G88: =IFERROR(VLOOKUP($A88,FetchFundies[],G$1+1,FALSE)/Millions,0) -> 8232 | H88: =IFERROR(VLOOKUP($A88,FetchFundies[],H$1+1,FALSE)/Millions,0) -> 10838 | I88: =IFERROR(VLOOKUP($A88,FetchFundies[],I$1+1,FALSE)/Millions,0) -> 10777 | K88: y | L88: Property, plant, and equipment, net, a fixed asset on the balance sheet.
A89: goodwillnet | C89: Goodwill, net | D89: =IFERROR(VLOOKUP($A89,FetchFundies[],D$1+1,FALSE)/Millions,0) -> 11289 | E89: =IFERROR(VLOOKUP($A89,FetchFundies[],E$1+1,FALSE)/Millions,0) -> 10629 | F89: =IFERROR(VLOOKUP($A89,FetchFundies[],F$1+1,FALSE)/Millions,0) -> 9401 | G89: =IFERROR(VLOOKUP($A89,FetchFundies[],G$1+1,FALSE)/Millions,0) -> 10263 | H89: =IFERROR(VLOOKUP($A89,FetchFundies[],H$1+1,FALSE)/Millions,0) -> 16764 | I89: =IFERROR(VLOOKUP($A89,FetchFundies[],I$1+1,FALSE)/Millions,0) -> 17506 | K89: y | L89: Goodwill, net, a long-term asset reported on the balance sheet.
A90: goodwillandintangiblesnetother | C90: Other Intangibles | D90: =IFERROR(VLOOKUP($A90,FetchFundies[],D$1+1,FALSE)/Millions,0) -> 12843 | E90: =IFERROR(VLOOKUP($A90,FetchFundies[],E$1+1,FALSE)/Millions,0) -> 10499 | F90: =IFERROR(VLOOKUP($A90,FetchFundies[],F$1+1,FALSE)/Millions,0) -> 7235 | G90: =IFERROR(VLOOKUP($A90,FetchFundies[],G$1+1,FALSE)/Millions,0) -> 7007 | H90: =IFERROR(VLOOKUP($A90,FetchFundies[],H$1+1,FALSE)/Millions,0) -> 10002 | I90: =IFERROR(VLOOKUP($A90,FetchFundies[],I$1+1,FALSE)/Millions,0) -> 11044 | K90: y | L90: Goodwill and intangible assets, net, a long-term asset reported on the balance sheet.
A91: cashrestricted | C91: Long-term Restricted Cash | D91: =IFERROR(VLOOKUP($A91,FetchFundies[],D$1+1,FALSE)/Millions,0) -> 0 | E91: =IFERROR(VLOOKUP($A91,FetchFundies[],E$1+1,FALSE)/Millions,0) -> 0 | F91: =IFERROR(VLOOKUP($A91,FetchFundies[],F$1+1,FALSE)/Millions,0) -> 0 | G91: =IFERROR(VLOOKUP($A91,FetchFundies[],G$1+1,FALSE)/Millions,0) -> 0 | H91: =IFERROR(VLOOKUP($A91,FetchFundies[],H$1+1,FALSE)/Millions,0) -> 0 | I91: =IFERROR(VLOOKUP($A91,FetchFundies[],I$1+1,FALSE)/Millions,0) -> 0 | L91: Restricted cash, a long-term asset on the balance sheet.
A92: assetsfixeddeferredtax | C92: Reported Deferred Tax Assets | D92: =IFERROR(VLOOKUP($A92,FetchFundies[],D$1+1,FALSE)/Millions,0) -> 0 | E92: =IFERROR(VLOOKUP($A92,FetchFundies[],E$1+1,FALSE)/Millions,0) -> 0 | F92: =IFERROR(VLOOKUP($A92,FetchFundies[],F$1+1,FALSE)/Millions,0) -> 0 | G92: =IFERROR(VLOOKUP($A92,FetchFundies[],G$1+1,FALSE)/Millions,0) -> 2667 | H92: =IFERROR(VLOOKUP($A92,FetchFundies[],H$1+1,FALSE)/Millions,0) -> 2412 | I92: =IFERROR(VLOOKUP($A92,FetchFundies[],I$1+1,FALSE)/Millions,0) -> 2460 | K92: y | L92: Fixed deferred tax assets, a fixed asset on the balance sheet.
A93: liabilitiesnoncurrentoperatingdiscontinuedoperations | C93: Discontinued Operations (Operating) | D93: =IFERROR(VLOOKUP($A93,FetchFundies[],D$1+1,FALSE)/Millions,0) -> 0 | E93: =IFERROR(VLOOKUP($A93,FetchFundies[],E$1+1,FALSE)/Millions,0) -> 0 | F93: =IFERROR(VLOOKUP($A93,FetchFundies[],F$1+1,FALSE)/Millions,0) -> 0 | G93: =IFERROR(VLOOKUP($A93,FetchFundies[],G$1+1,FALSE)/Millions,0) -> 0 | H93: =IFERROR(VLOOKUP($A93,FetchFundies[],H$1+1,FALSE)/Millions,0) -> 0 | I93: =IFERROR(VLOOKUP($A93,FetchFundies[],I$1+1,FALSE)/Millions,0) -> 0 | L93: Long-term discontinued operations, a long-term liability on the balance sheet for REITs.
A94: assetsfixedoperatingsubsidiaryunconsolidated | C94: Unconsolidated Subsidiary Assets (Operating) | D94: =IFERROR(VLOOKUP($A94,FetchFundies[],D$1+1,FALSE)/Millions,0) -> 12318 | E94: =IFERROR(VLOOKUP($A94,FetchFundies[],E$1+1,FALSE)/Millions,0) -> 16260 | F94: =IFERROR(VLOOKUP($A94,FetchFundies[],F$1+1,FALSE)/Millions,0) -> 20856 | G94: =IFERROR(VLOOKUP($A94,FetchFundies[],G$1+1,FALSE)/Millions,0) -> 19407 | H94: =IFERROR(VLOOKUP($A94,FetchFundies[],H$1+1,FALSE)/Millions,0) -> 19025 | I94: =IFERROR(VLOOKUP($A94,FetchFundies[],I$1+1,FALSE)/Millions,0) -> 19273 | K94: y | L94: Investment in unconsolidated subsidiaries that are part of operations. A fixed asset on the balance sheet.
A95: assetsfixedoreo | C95: Other Real Estate Owned | D95: =IFERROR(VLOOKUP($A95,FetchFundies[],D$1+1,FALSE)/Millions,0) -> 0 | E95: =IFERROR(VLOOKUP($A95,FetchFundies[],E$1+1,FALSE)/Millions,0) -> 0 | F95: =IFERROR(VLOOKUP($A95,FetchFundies[],F$1+1,FALSE)/Millions,0) -> 0 | G95: =IFERROR(VLOOKUP($A95,FetchFundies[],G$1+1,FALSE)/Millions,0) -> 0 | H95: =IFERROR(VLOOKUP($A95,FetchFundies[],H$1+1,FALSE)/Millions,0) -> 0 | I95: =IFERROR(VLOOKUP($A95,FetchFundies[],I$1+1,FALSE)/Millions,0) -> 0 | L95: Other Real Estate Owned (OREO) assets, a fixed asset on the balance sheet for financial companies or segments.
A96: assetsfixedother | C96: Other Fixed Assets | D96: =IFERROR(VLOOKUP($A96,FetchFundies[],D$1+1,FALSE)/Millions,0) -> 3189 | E96: =IFERROR(VLOOKUP($A96,FetchFundies[],E$1+1,FALSE)/Millions,0) -> 3135 | F96: =IFERROR(VLOOKUP($A96,FetchFundies[],F$1+1,FALSE)/Millions,0) -> 3283 | G96: =IFERROR(VLOOKUP($A96,FetchFundies[],G$1+1,FALSE)/Millions,0) -> 2917 | H96: =IFERROR(VLOOKUP($A96,FetchFundies[],H$1+1,FALSE)/Millions,0) -> 4700 | I96: =IFERROR(VLOOKUP($A96,FetchFundies[],I$1+1,FALSE)/Millions,0) -> 5066 | K96: y | L96: Other fixed assets on the balance sheet.
A97: cashlongterm | C97: Long-Term Investments (Non-Operating) | D97: =IFERROR(VLOOKUP($A97,FetchFundies[],D$1+1,FALSE)/Millions,0) -> 4488 | E97: =IFERROR(VLOOKUP($A97,FetchFundies[],E$1+1,FALSE)/Millions,0) -> 2102 | F97: =IFERROR(VLOOKUP($A97,FetchFundies[],F$1+1,FALSE)/Millions,0) -> 2373 | G97: =IFERROR(VLOOKUP($A97,FetchFundies[],G$1+1,FALSE)/Millions,0) -> 2089 | H97: =IFERROR(VLOOKUP($A97,FetchFundies[],H$1+1,FALSE)/Millions,0) -> 2229 | I97: =IFERROR(VLOOKUP($A97,FetchFundies[],I$1+1,FALSE)/Millions,0) -> 1930 | K97: y | L97: Long-term investments, a long-term asset on the balance sheet.
A98: assetsfixedunconsolidated | C98: Unconsolidated Subsidiary Assets (non-operating) | D98: =IFERROR(VLOOKUP($A98,FetchFundies[],D$1+1,FALSE)/Millions,0) -> 0 | E98: =IFERROR(VLOOKUP($A98,FetchFundies[],E$1+1,FALSE)/Millions,0) -> 0 | F98: =IFERROR(VLOOKUP($A98,FetchFundies[],F$1+1,FALSE)/Millions,0) -> 0 | G98: =IFERROR(VLOOKUP($A98,FetchFundies[],G$1+1,FALSE)/Millions,0) -> 0 | H98: =IFERROR(VLOOKUP($A98,FetchFundies[],H$1+1,FALSE)/Millions,0) -> 0 | I98: =IFERROR(VLOOKUP($A98,FetchFundies[],I$1+1,FALSE)/Millions,0) -> 0 | L98: Investment in unconsolidated subsidiaries that are not part of operations. A fixed asset on the balance sheet.
A99: assetsfixeddeferredcompensation | C99: Reported Deferred Compensation Assets | D99: =IFERROR(VLOOKUP($A99,FetchFundies[],D$1+1,FALSE)/Millions,0) -> 0 | E99: =IFERROR(VLOOKUP($A99,FetchFundies[],E$1+1,FALSE)/Millions,0) -> 0 | F99: =IFERROR(VLOOKUP($A99,FetchFundies[],F$1+1,FALSE)/Millions,0) -> 0 | G99: =IFERROR(VLOOKUP($A99,FetchFundies[],G$1+1,FALSE)/Millions,0) -> 0 | H99: =IFERROR(VLOOKUP($A99,FetchFundies[],H$1+1,FALSE)/Millions,0) -> 0 | I99: =IFERROR(VLOOKUP($A99,FetchFundies[],I$1+1,FALSE)/Millions,0) -> 0 | L99: Fixed deferred compensation assets, a fixed asset on the balance sheet.
A100: liabilitiesnoncurrentdiscontinuedoperations | C100: Discontinued Operations (Non-Operating) | D100: =IFERROR(VLOOKUP($A100,FetchFundies[],D$1+1,FALSE)/Millions,0) -> 0 | E100: =IFERROR(VLOOKUP($A100,FetchFundies[],E$1+1,FALSE)/Millions,0) -> 0 | F100: =IFERROR(VLOOKUP($A100,FetchFundies[],F$1+1,FALSE)/Millions,0) -> 0 | G100: =IFERROR(VLOOKUP($A100,FetchFundies[],G$1+1,FALSE)/Millions,0) -> 0 | H100: =IFERROR(VLOOKUP($A100,FetchFundies[],H$1+1,FALSE)/Millions,0) -> 0 | I100: =IFERROR(VLOOKUP($A100,FetchFundies[],I$1+1,FALSE)/Millions,0) -> 0 | L100: Long-term discontinued operations, a long-term liability on the balance sheet.
A101: assetsfixedleasesoperating | C101: Reported Non-Current Operating Lease Assets | D101: =IFERROR(VLOOKUP($A101,FetchFundies[],D$1+1,FALSE)/Millions,0) -> 0 | E101: =IFERROR(VLOOKUP($A101,FetchFundies[],E$1+1,FALSE)/Millions,0) -> 0 | F101: =IFERROR(VLOOKUP($A101,FetchFundies[],F$1+1,FALSE)/Millions,0) -> 0 | G101: =IFERROR(VLOOKUP($A101,FetchFundies[],G$1+1,FALSE)/Millions,0) -> 0 | H101: =IFERROR(VLOOKUP($A101,FetchFundies[],H$1+1,FALSE)/Millions,0) -> 0 | I101: =IFERROR(VLOOKUP($A101,FetchFundies[],I$1+1,FALSE)/Millions,0) -> 0 | L101: Fixed operating lease assets, a fixed asset on the balance sheet.
A102: assetsfixed | C102: Total Fixed Assets | D102: =IF(ISERROR(D88+D89+D90+D91+D92+D93+D94+D95+D96+D97+D98+D99+D100+D101)," ",D88+D89+D90+D91+D92+D93+D94+D95+D96+D97+D98+D99+D100+D101) -> 56698 | E102: 53260 | F102: 51351 | G102: 52582 | H102: 65970 | I102: 68056 | K102: y | L102: Total fixed assets from the balance sheet.
A103: assetsunadjusted | C103: Total Assets (Unadjusted) | D103: =IF(ISERROR(D86+D102)," ",D86+D102) -> 87326 | E103: 85183 | F103: 81881 | G103: 78392 | H103: 86381 | I103: 87296 | K103: y | L103: Total Assets (unadjusted) as reported on the balance sheet.
A104: Current/Investment Liabilities | B104: Balance Sheet - Liabilities and Shareholders' Equity | K104: y
B105: Current/Investment Liabilities | K105: y
A106: accountspayable | C106: Accounts Payable | D106: =IFERROR(VLOOKUP($A106,FetchFundies[],D$1+1,FALSE)/Millions,0) -> 2795 | E106: =IFERROR(VLOOKUP($A106,FetchFundies[],E$1+1,FALSE)/Millions,0) -> 2682 | F106: =IFERROR(VLOOKUP($A106,FetchFundies[],F$1+1,FALSE)/Millions,0) -> 2288 | G106: =IFERROR(VLOOKUP($A106,FetchFundies[],G$1+1,FALSE)/Millions,0) -> 2498 | H106: =IFERROR(VLOOKUP($A106,FetchFundies[],H$1+1,FALSE)/Millions,0) -> 3804 | I106: =IFERROR(VLOOKUP($A106,FetchFundies[],I$1+1,FALSE)/Millions,0) -> 3517 | K106: y | L106: Accounts payable, a current liability on the balance sheet.
A107: nibcldeferredtax | C107: Reported Current Deferred Tax Liability | D107: =IFERROR(VLOOKUP($A107,FetchFundies[],D$1+1,FALSE)/Millions,0) -> 0 | E107: =IFERROR(VLOOKUP($A107,FetchFundies[],E$1+1,FALSE)/Millions,0) -> 692 | F107: =IFERROR(VLOOKUP($A107,FetchFundies[],F$1+1,FALSE)/Millions,0) -> 0 | G107: =IFERROR(VLOOKUP($A107,FetchFundies[],G$1+1,FALSE)/Millions,0) -> 0 | H107: =IFERROR(VLOOKUP($A107,FetchFundies[],H$1+1,FALSE)/Millions,0) -> 0 | I107: =IFERROR(VLOOKUP($A107,FetchFundies[],I$1+1,FALSE)/Millions,0) -> 0 | K107: y | L107: Current deferred tax liability, a current liability on the balance sheet.
A108: nibclrestructuring | C108: Accrued Restructuring Charges | D108: =IFERROR(VLOOKUP($A108,FetchFundies[],D$1+1,FALSE)/Millions,0) -> 0 | E108: =IFERROR(VLOOKUP($A108,FetchFundies[],E$1+1,FALSE)/Millions,0) -> 0 | F108: =IFERROR(VLOOKUP($A108,FetchFundies[],F$1+1,FALSE)/Millions,0) -> 0 | G108: =IFERROR(VLOOKUP($A108,FetchFundies[],G$1+1,FALSE)/Millions,0) -> 0 | H108: =IFERROR(VLOOKUP($A108,FetchFundies[],H$1+1,FALSE)/Millions,0) -> 0 | I108: =IFERROR(VLOOKUP($A108,FetchFundies[],I$1+1,FALSE)/Millions,0) -> 0 | L108: Current liability for restructuring charges, a current liability on the balance sheet.
A109: nibclrevenuedeferred | C109: Current Deferred Revenue | D109: =IFERROR(VLOOKUP($A109,FetchFundies[],D$1+1,FALSE)/Millions,0) -> 0 | E109: =IFERROR(VLOOKUP($A109,FetchFundies[],E$1+1,FALSE)/Millions,0) -> 0 | F109: =IFERROR(VLOOKUP($A109,FetchFundies[],F$1+1,FALSE)/Millions,0) -> 0 | G109: =IFERROR(VLOOKUP($A109,FetchFundies[],G$1+1,FALSE)/Millions,0) -> 0 | H109: =IFERROR(VLOOKUP($A109,FetchFundies[],H$1+1,FALSE)/Millions,0) -> 0 | I109: =IFERROR(VLOOKUP($A109,FetchFundies[],I$1+1,FALSE)/Millions,0) -> 0 | L109: Current deferred revenue, a current liability on the balance sheet.
A110: nibclseparateaccounts | C110: Separate Accounts | D110: =IFERROR(VLOOKUP($A110,FetchFundies[],D$1+1,FALSE)/Millions,0) -> 0 | E110: =IFERROR(VLOOKUP($A110,FetchFundies[],E$1+1,FALSE)/Millions,0) -> 0 | F110: =IFERROR(VLOOKUP($A110,FetchFundies[],F$1+1,FALSE)/Millions,0) -> 0 | G110: =IFERROR(VLOOKUP($A110,FetchFundies[],G$1+1,FALSE)/Millions,0) -> 0 | H110: =IFERROR(VLOOKUP($A110,FetchFundies[],H$1+1,FALSE)/Millions,0) -> 0 | I110: =IFERROR(VLOOKUP($A110,FetchFundies[],I$1+1,FALSE)/Millions,0) -> 0 | L110: Separate accounts, a current liability on the balance sheet.
A111: nibclother | C111: Other NIBCL or Investment Liabilities | D111: =IFERROR(VLOOKUP($A111,FetchFundies[],D$1+1,FALSE)/Millions,0) -> 7196 | E111: =IFERROR(VLOOKUP($A111,FetchFundies[],E$1+1,FALSE)/Millions,0) -> 6423 | F111: =IFERROR(VLOOKUP($A111,FetchFundies[],F$1+1,FALSE)/Millions,0) -> 6870 | G111: =IFERROR(VLOOKUP($A111,FetchFundies[],G$1+1,FALSE)/Millions,0) -> 6812 | H111: =IFERROR(VLOOKUP($A111,FetchFundies[],H$1+1,FALSE)/Millions,0) -> 7922 | I111: =IFERROR(VLOOKUP($A111,FetchFundies[],I$1+1,FALSE)/Millions,0) -> 8416 | K111: y | L111: Other non-interest bearing current liabilities or investment liabilities, a current liability on the balance sheet.
A112: nibcldeferredcompensation | C112: Reported Current Deferred Compensation Liability | D112: =IFERROR(VLOOKUP($A112,FetchFundies[],D$1+1,FALSE)/Millions,0) -> 0 | E112: =IFERROR(VLOOKUP($A112,FetchFundies[],E$1+1,FALSE)/Millions,0) -> 0 | F112: =IFERROR(VLOOKUP($A112,FetchFundies[],F$1+1,FALSE)/Millions,0) -> 0 | G112: =IFERROR(VLOOKUP($A112,FetchFundies[],G$1+1,FALSE)/Millions,0) -> 0 | H112: =IFERROR(VLOOKUP($A112,FetchFundies[],H$1+1,FALSE)/Millions,0) -> 0 | I112: =IFERROR(VLOOKUP($A112,FetchFundies[],I$1+1,FALSE)/Millions,0) -> 0 | L112: Current deferred compensation liability, a current liability on the balance sheet.
A113: nibcldiscontinuedoperations | C113: Current Discontinued Operations (Non-Operating) | D113: =IFERROR(VLOOKUP($A113,FetchFundies[],D$1+1,FALSE)/Millions,0) -> 1133 | E113: =IFERROR(VLOOKUP($A113,FetchFundies[],E$1+1,FALSE)/Millions,0) -> 710 | F113: =IFERROR(VLOOKUP($A113,FetchFundies[],F$1+1,FALSE)/Millions,0) -> 1533 | G113: =IFERROR(VLOOKUP($A113,FetchFundies[],G$1+1,FALSE)/Millions,0) -> 1722 | H113: =IFERROR(VLOOKUP($A113,FetchFundies[],H$1+1,FALSE)/Millions,0) -> 0 | I113: =IFERROR(VLOOKUP($A113,FetchFundies[],I$1+1,FALSE)/Millions,0) -> 0 | K113: y | L113: Current liability for discontinued operations, a current liability on the balance sheet.
A114: debtfinancial | C114: Investment Liabilities - Debt | D114: =IFERROR(VLOOKUP($A114,FetchFundies[],D$1+1,FALSE)/Millions,0) -> 0 | E114: =IFERROR(VLOOKUP($A114,FetchFundies[],E$1+1,FALSE)/Millions,0) -> 0 | F114: =IFERROR(VLOOKUP($A114,FetchFundies[],F$1+1,FALSE)/Millions,0) -> 0 | G114: =IFERROR(VLOOKUP($A114,FetchFundies[],G$1+1,FALSE)/Millions,0) -> 0 | H114: =IFERROR(VLOOKUP($A114,FetchFundies[],H$1+1,FALSE)/Millions,0) -> 0 | I114: =IFERROR(VLOOKUP($A114,FetchFundies[],I$1+1,FALSE)/Millions,0) -> 0 | L114: Short-term and long-term debt for financial companies or segments.
A115: debtshortterm | C115: Short-Term Debt | D115: =IFERROR(VLOOKUP($A115,FetchFundies[],D$1+1,FALSE)/Millions,0) -> 15806 | E115: =IFERROR(VLOOKUP($A115,FetchFundies[],E$1+1,FALSE)/Millions,0) -> 16025 | F115: =IFERROR(VLOOKUP($A115,FetchFundies[],F$1+1,FALSE)/Millions,0) -> 16503 | G115: =IFERROR(VLOOKUP($A115,FetchFundies[],G$1+1,FALSE)/Millions,0) -> 18191 | H115: =IFERROR(VLOOKUP($A115,FetchFundies[],H$1+1,FALSE)/Millions,0) -> 15247 | I115: =IFERROR(VLOOKUP($A115,FetchFundies[],I$1+1,FALSE)/Millions,0) -> 2668 | K115: y | L115: Short-term debt, a current liability on the balance sheet.
A116: nibclleasesoperating | C116: Reported Current Operating Lease Liabilities | D116: =IFERROR(VLOOKUP($A116,FetchFundies[],D$1+1,FALSE)/Millions,0) -> 0 | E116: =IFERROR(VLOOKUP($A116,FetchFundies[],E$1+1,FALSE)/Millions,0) -> 0 | F116: =IFERROR(VLOOKUP($A116,FetchFundies[],F$1+1,FALSE)/Millions,0) -> 0 | G116: =IFERROR(VLOOKUP($A116,FetchFundies[],G$1+1,FALSE)/Millions,0) -> 0 | H116: =IFERROR(VLOOKUP($A116,FetchFundies[],H$1+1,FALSE)/Millions,0) -> 0 | I116: =IFERROR(VLOOKUP($A116,FetchFundies[],I$1+1,FALSE)/Millions,0) -> 0 | L116: Current operating lease liabilities, a current liability on the balance sheet.
A117: liabilitiescurrent | C117: Total Current/Investment Liabilities | D117: =IF(ISERROR(D106+D107+D108+D109+D110+D111+D112+D113+D114+D115+D116)," ",D106+D107+D108+D109+D110+D111+D112+D113+D114+D115+D116) -> 26930 | E117: 26532 | F117: 27194 | G117: 29223 | H117: 26973 | I117: 14601 | K117: y | L117: Total current/investment liabilities.
A118: Long-Term Liabilities and Shareholders' Equity | B118: Long-Term Liabilities and Shareholders' Equity | K118: y
A119: liabilitiesnoncurrentdebt | C119: Long-Term Debt | D119: =IFERROR(VLOOKUP($A119,FetchFundies[],D$1+1,FALSE)/Millions,0) -> 28407 | E119: =IFERROR(VLOOKUP($A119,FetchFundies[],E$1+1,FALSE)/Millions,0) -> 29684 | F119: =IFERROR(VLOOKUP($A119,FetchFundies[],F$1+1,FALSE)/Millions,0) -> 31182 | G119: =IFERROR(VLOOKUP($A119,FetchFundies[],G$1+1,FALSE)/Millions,0) -> 25364 | H119: =IFERROR(VLOOKUP($A119,FetchFundies[],H$1+1,FALSE)/Millions,0) -> 27516 | I119: =IFERROR(VLOOKUP($A119,FetchFundies[],I$1+1,FALSE)/Millions,0) -> 40125 | K119: y | L119: Long-term debt, a long-term, liability on the balance sheet.
A120: liabilitiesnoncurrentdeferredtax | C120: Reported Deferred Tax Liability | D120: =IFERROR(VLOOKUP($A120,FetchFundies[],D$1+1,FALSE)/Millions,0) -> 4691 | E120: =IFERROR(VLOOKUP($A120,FetchFundies[],E$1+1,FALSE)/Millions,0) -> 3753 | F120: =IFERROR(VLOOKUP($A120,FetchFundies[],F$1+1,FALSE)/Millions,0) -> 2522 | G120: =IFERROR(VLOOKUP($A120,FetchFundies[],G$1+1,FALSE)/Millions,0) -> 1933 | H120: =IFERROR(VLOOKUP($A120,FetchFundies[],H$1+1,FALSE)/Millions,0) -> 2284 | I120: =IFERROR(VLOOKUP($A120,FetchFundies[],I$1+1,FALSE)/Millions,0) -> 1833 | K120: y | L120: Long-term deferred tax liabilities, a long-term liability on the balance sheet.
A121: liabilitiesnoncurrentdeferredcompensation | C121: Reported Deferred Compensation Liability | D121: =IFERROR(VLOOKUP($A121,FetchFundies[],D$1+1,FALSE)/Millions,0) -> 0 | E121: =IFERROR(VLOOKUP($A121,FetchFundies[],E$1+1,FALSE)/Millions,0) -> 0 | F121: =IFERROR(VLOOKUP($A121,FetchFundies[],F$1+1,FALSE)/Millions,0) -> 0 | G121: =IFERROR(VLOOKUP($A121,FetchFundies[],G$1+1,FALSE)/Millions,0) -> 0 | H121: =IFERROR(VLOOKUP($A121,FetchFundies[],H$1+1,FALSE)/Millions,0) -> 0 | I121: =IFERROR(VLOOKUP($A121,FetchFundies[],I$1+1,FALSE)/Millions,0) -> 0 | L121: Long-term deferred compensation liability, a long-term liability on the balance sheet.
A122: liabilitiesnoncurrentoperatingdiscontinuedoperations | C122: Discontinued Operations (Operating) | D122: =IFERROR(VLOOKUP($A122,FetchFundies[],D$1+1,FALSE)/Millions,0) -> 0 | E122: =IFERROR(VLOOKUP($A122,FetchFundies[],E$1+1,FALSE)/Millions,0) -> 0 | F122: =IFERROR(VLOOKUP($A122,FetchFundies[],F$1+1,FALSE)/Millions,0) -> 0 | G122: =IFERROR(VLOOKUP($A122,FetchFundies[],G$1+1,FALSE)/Millions,0) -> 0 | H122: =IFERROR(VLOOKUP($A122,FetchFundies[],H$1+1,FALSE)/Millions,0) -> 0 | I122: =IFERROR(VLOOKUP($A122,FetchFundies[],I$1+1,FALSE)/Millions,0) -> 0 | L122: Long-term discontinued operations, a long-term liability on the balance sheet for REITs.
A123: liabilitiesnoncurrentother | C123: Other Long-term Liabilities | D123: =IFERROR(VLOOKUP($A123,FetchFundies[],D$1+1,FALSE)/Millions,0) -> 4301 | E123: =IFERROR(VLOOKUP($A123,FetchFundies[],E$1+1,FALSE)/Millions,0) -> 4081 | F123: =IFERROR(VLOOKUP($A123,FetchFundies[],F$1+1,FALSE)/Millions,0) -> 8021 | G123: =IFERROR(VLOOKUP($A123,FetchFundies[],G$1+1,FALSE)/Millions,0) -> 7638 | H123: =IFERROR(VLOOKUP($A123,FetchFundies[],H$1+1,FALSE)/Millions,0) -> 8510 | I123: =IFERROR(VLOOKUP($A123,FetchFundies[],I$1+1,FALSE)/Millions,0) -> 9453 | K123: y | L123: Other long-term liabilities, a long-term liability on the balance sheet.
A124: interestminority | C124: Minority Interests | D124: =IFERROR(VLOOKUP($A124,FetchFundies[],D$1+1,FALSE)/Millions,0) -> 210 | E124: =IFERROR(VLOOKUP($A124,FetchFundies[],E$1+1,FALSE)/Millions,0) -> 158 | F124: =IFERROR(VLOOKUP($A124,FetchFundies[],F$1+1,FALSE)/Millions,0) -> 1905 | G124: =IFERROR(VLOOKUP($A124,FetchFundies[],G$1+1,FALSE)/Millions,0) -> 2077 | H124: =IFERROR(VLOOKUP($A124,FetchFundies[],H$1+1,FALSE)/Millions,0) -> 2117 | I124: =IFERROR(VLOOKUP($A124,FetchFundies[],I$1+1,FALSE)/Millions,0) -> 1985 | K124: y | L124: Minority interests, a component of shareholder’s equity representing a significant but non-controlling ownership of a company’s voting shares by either an investor or another company.
A125: liabilitiesnoncurrentdiscontinuedoperations | C125: Discontinued Operations (Non-Operating) | D125: =IFERROR(VLOOKUP($A125,FetchFundies[],D$1+1,FALSE)/Millions,0) -> 0 | E125: =IFERROR(VLOOKUP($A125,FetchFundies[],E$1+1,FALSE)/Millions,0) -> 0 | F125: =IFERROR(VLOOKUP($A125,FetchFundies[],F$1+1,FALSE)/Millions,0) -> 0 | G125: =IFERROR(VLOOKUP($A125,FetchFundies[],G$1+1,FALSE)/Millions,0) -> 0 | H125: =IFERROR(VLOOKUP($A125,FetchFundies[],H$1+1,FALSE)/Millions,0) -> 0 | I125: =IFERROR(VLOOKUP($A125,FetchFundies[],I$1+1,FALSE)/Millions,0) -> 0 | L125: Long-term discontinued operations, a long-term liability on the balance sheet.
A126: liabilitiesNonCurrentLeasesOperating | C126: Reported Non-Current Operating Lease Liabilities | D126: =IFERROR(VLOOKUP($A126,FetchFundies[],D$1+1,FALSE)/Millions,0) -> 0 | E126: =IFERROR(VLOOKUP($A126,FetchFundies[],E$1+1,FALSE)/Millions,0) -> 0 | F126: =IFERROR(VLOOKUP($A126,FetchFundies[],F$1+1,FALSE)/Millions,0) -> 0 | G126: =IFERROR(VLOOKUP($A126,FetchFundies[],G$1+1,FALSE)/Millions,0) -> 0 | H126: =IFERROR(VLOOKUP($A126,FetchFundies[],H$1+1,FALSE)/Millions,0) -> 0 | I126: =IFERROR(VLOOKUP($A126,FetchFundies[],I$1+1,FALSE)/Millions,0) -> 0 | L126: Long-term operating lease liability, a long-term liability on the balance sheet.
A127: liabilitiesnoncurrentandinterestminoritytotal | C127: Total Long-term Liabilities and Minority Interest | D127: =IF(ISERROR(D119+D120+D121+D122+D123+D124+D125+D126)," ",D119+D120+D121+D122+D123+D124+D125+D126) -> 37609 | E127: 37676 | F127: 43630 | G127: 37012 | H127: 40427 | I127: 53396 | K127: y | L127: Total Long-term Liabilities and Minority Interest
A128: stockcommon | C128: Common Stock | D128: =IFERROR(VLOOKUP($A128,FetchFundies[],D$1+1,FALSE)/Millions,0) -> 15776 | E128: =IFERROR(VLOOKUP($A128,FetchFundies[],E$1+1,FALSE)/Millions,0) -> 16753 | F128: =IFERROR(VLOOKUP($A128,FetchFundies[],F$1+1,FALSE)/Millions,0) -> 17624 | G128: =IFERROR(VLOOKUP($A128,FetchFundies[],G$1+1,FALSE)/Millions,0) -> 18280 | H128: =IFERROR(VLOOKUP($A128,FetchFundies[],H$1+1,FALSE)/Millions,0) -> 18914 | I128: =IFERROR(VLOOKUP($A128,FetchFundies[],I$1+1,FALSE)/Millions,0) -> 19361 | K128: y | L128: Common stock, from the shareholders’ equity section of the balance sheet.
A129: earningsretained | C129: Retained Earnings | D129: =IFERROR(VLOOKUP($A129,FetchFundies[],D$1+1,FALSE)/Millions,0) -> 65018 | E129: =IFERROR(VLOOKUP($A129,FetchFundies[],E$1+1,FALSE)/Millions,0) -> 65502 | F129: =IFERROR(VLOOKUP($A129,FetchFundies[],F$1+1,FALSE)/Millions,0) -> 60430 | G129: =IFERROR(VLOOKUP($A129,FetchFundies[],G$1+1,FALSE)/Millions,0) -> 63234 | H129: =IFERROR(VLOOKUP($A129,FetchFundies[],H$1+1,FALSE)/Millions,0) -> 65855 | I129: =IFERROR(VLOOKUP($A129,FetchFundies[],I$1+1,FALSE)/Millions,0) -> 66555 | K129: y | L129: Retained earnings, from the shareholders’ equity section of the balance sheet.
A130: stocktreasury | C130: Treasury Stock | D130: =IFERROR(VLOOKUP($A130,FetchFundies[],D$1+1,FALSE)/Millions,0) -> -45066 | E130: =IFERROR(VLOOKUP($A130,FetchFundies[],E$1+1,FALSE)/Millions,0) -> -47988 | F130: =IFERROR(VLOOKUP($A130,FetchFundies[],F$1+1,FALSE)/Millions,0) -> -50677 | G130: =IFERROR(VLOOKUP($A130,FetchFundies[],G$1+1,FALSE)/Millions,0) -> -51719 | H130: =IFERROR(VLOOKUP($A130,FetchFundies[],H$1+1,FALSE)/Millions,0) -> -52244 | I130: =IFERROR(VLOOKUP($A130,FetchFundies[],I$1+1,FALSE)/Millions,0) -> -52016 | K130: y | L130: Treasury stock, from the shareholders’ equity section of the balance sheet.
A131: stockpreferred | C131: Preferred Capital | D131: =IFERROR(VLOOKUP($A131,FetchFundies[],D$1+1,FALSE)/Millions,0) -> 0 | E131: =IFERROR(VLOOKUP($A131,FetchFundies[],E$1+1,FALSE)/Millions,0) -> 0 | F131: =IFERROR(VLOOKUP($A131,FetchFundies[],F$1+1,FALSE)/Millions,0) -> 0 | G131: =IFERROR(VLOOKUP($A131,FetchFundies[],G$1+1,FALSE)/Millions,0) -> 0 | H131: =IFERROR(VLOOKUP($A131,FetchFundies[],H$1+1,FALSE)/Millions,0) -> 0 | I131: =IFERROR(VLOOKUP($A131,FetchFundies[],I$1+1,FALSE)/Millions,0) -> 0 | L131: Total preferred stock from the Shareholder’s Equity section of the balance sheet and the Mezzanine section of the balance sheet.
A132: oci | C132: Accumulated OCI (Other Comprehensive Income) | D132: =IFERROR(VLOOKUP($A132,FetchFundies[],D$1+1,FALSE)/Millions,0) -> -10174 | E132: =IFERROR(VLOOKUP($A132,FetchFundies[],E$1+1,FALSE)/Millions,0) -> -11205 | F132: =IFERROR(VLOOKUP($A132,FetchFundies[],F$1+1,FALSE)/Millions,0) -> -10305 | G132: =IFERROR(VLOOKUP($A132,FetchFundies[],G$1+1,FALSE)/Millions,0) -> -12814 | H132: =IFERROR(VLOOKUP($A132,FetchFundies[],H$1+1,FALSE)/Millions,0) -> -13544 | I132: =IFERROR(VLOOKUP($A132,FetchFundies[],I$1+1,FALSE)/Millions,0) -> -14601 | K132: y | L132: Accumulated Other Comprehensive Income, from the shareholders’ equity section of the balance sheet.
A133: equityshareholderotherdeferredcompensation | C133: Deferred Compensation Shareholders' Equity | D133: =IFERROR(VLOOKUP($A133,FetchFundies[],D$1+1,FALSE)/Millions,0) -> 0 | E133: =IFERROR(VLOOKUP($A133,FetchFundies[],E$1+1,FALSE)/Millions,0) -> 0 | F133: =IFERROR(VLOOKUP($A133,FetchFundies[],F$1+1,FALSE)/Millions,0) -> 0 | G133: =IFERROR(VLOOKUP($A133,FetchFundies[],G$1+1,FALSE)/Millions,0) -> 0 | H133: =IFERROR(VLOOKUP($A133,FetchFundies[],H$1+1,FALSE)/Millions,0) -> 0 | I133: =IFERROR(VLOOKUP($A133,FetchFundies[],I$1+1,FALSE)/Millions,0) -> 0 | L133: Deferred compensation shareholder’s equity, from the shareholders’ equity section of the balance sheet.
A134: equityshareholderotherequity | C134: Other Shareholders' Equity | D134: =IFERROR(VLOOKUP($A134,FetchFundies[],D$1+1,FALSE)/Millions,0) -> 0 | E134: =IFERROR(VLOOKUP($A134,FetchFundies[],E$1+1,FALSE)/Millions,0) -> 0 | F134: =IFERROR(VLOOKUP($A134,FetchFundies[],F$1+1,FALSE)/Millions,0) -> 0 | G134: =IFERROR(VLOOKUP($A134,FetchFundies[],G$1+1,FALSE)/Millions,0) -> 0 | H134: =IFERROR(VLOOKUP($A134,FetchFundies[],H$1+1,FALSE)/Millions,0) -> 0 | I134: =IFERROR(VLOOKUP($A134,FetchFundies[],I$1+1,FALSE)/Millions,0) -> 0 | L134: Other shareholders’ equity, from the shareholders’ equity section of the balance sheet.
A135: equityshareholderothermezzanine | C135: Mezzanine Shareholders' Equity | D135: =IFERROR(VLOOKUP($A135,FetchFundies[],D$1+1,FALSE)/Millions,0) -> 0 | E135: =IFERROR(VLOOKUP($A135,FetchFundies[],E$1+1,FALSE)/Millions,0) -> 0 | F135: =IFERROR(VLOOKUP($A135,FetchFundies[],F$1+1,FALSE)/Millions,0) -> 0 | G135: =IFERROR(VLOOKUP($A135,FetchFundies[],G$1+1,FALSE)/Millions,0) -> 0 | H135: =IFERROR(VLOOKUP($A135,FetchFundies[],H$1+1,FALSE)/Millions,0) -> 0 | I135: =IFERROR(VLOOKUP($A135,FetchFundies[],I$1+1,FALSE)/Millions,0) -> 0 | L135: Mezzanine shareholders’ equity, from the shareholders’ equity section of the balance sheet.
A136: equityshareholder | C136: Total Shareholders' Equity | D136: =IF(ISERROR(D128+D129+D130+D131+D132+D133+D134+D135)," ",D128+D129+D130+D131+D132+D133+D134+D135) -> 25554 | E136: 23062 | F136: 17072 | G136: 16981 | H136: 18981 | I136: 19299 | K136: y | L136: Total shareholders’ equity, from the shareholders’ equity section of the balance sheet.
A137: liabilities | C137: Total Liabilities and Shareholders' Equity | D137: =IF(ISERROR(D127+D136+D117)," ",D127+D136+D117) -> 90093 | E137: 87270 | F137: 87896 | G137: 83216 | H137: 86381 | I137: 87296 | K137: y | L137: Total liabilities and shareholders’ equity.
B139: Cash Flow Statement | K139: y
A140: depreciationandamortizationcashflow | C140: Depreciation and Amortization (Cash Flow) | D140: =IFERROR(VLOOKUP($A140,FetchFundies[],D$1+1,FALSE)/Millions,0) -> 1970 | E140: =IFERROR(VLOOKUP($A140,FetchFundies[],E$1+1,FALSE)/Millions,0) -> 1787 | F140: =IFERROR(VLOOKUP($A140,FetchFundies[],F$1+1,FALSE)/Millions,0) -> 1260 | G140: =IFERROR(VLOOKUP($A140,FetchFundies[],G$1+1,FALSE)/Millions,0) -> 1086 | H140: =IFERROR(VLOOKUP($A140,FetchFundies[],H$1+1,FALSE)/Millions,0) -> 1365 | I140: =IFERROR(VLOOKUP($A140,FetchFundies[],I$1+1,FALSE)/Millions,0) -> 1536 | K140: y | L140: Depreciation and amortization from cash flows from operations section of the cash flow statement.
A141: goodwillamortizationcashflow | C141: Goodwill Amortization (Cash Flow Statement) | D141: =IFERROR(VLOOKUP($A141,FetchFundies[],D$1+1,FALSE)/Millions,0) -> 0 | E141: =IFERROR(VLOOKUP($A141,FetchFundies[],E$1+1,FALSE)/Millions,0) -> 0 | F141: =IFERROR(VLOOKUP($A141,FetchFundies[],F$1+1,FALSE)/Millions,0) -> 0 | G141: =IFERROR(VLOOKUP($A141,FetchFundies[],G$1+1,FALSE)/Millions,0) -> 0 | H141: =IFERROR(VLOOKUP($A141,FetchFundies[],H$1+1,FALSE)/Millions,0) -> 0 | I141: =IFERROR(VLOOKUP($A141,FetchFundies[],I$1+1,FALSE)/Millions,0) -> 0 | L141: Goodwill amortization, from cash flows from operations section of the cash flow statement, collected prior to 2001 when companies where permitted to amortize goodwill.
A142: capex | C142: Capital Expenditures | D142: =IFERROR(VLOOKUP($A142,FetchFundies[],D$1+1,FALSE)/Millions,0) -> -2553 | E142: =IFERROR(VLOOKUP($A142,FetchFundies[],E$1+1,FALSE)/Millions,0) -> -2262 | F142: =IFERROR(VLOOKUP($A142,FetchFundies[],F$1+1,FALSE)/Millions,0) -> -1675 | G142: =IFERROR(VLOOKUP($A142,FetchFundies[],G$1+1,FALSE)/Millions,0) -> -1347 | H142: =IFERROR(VLOOKUP($A142,FetchFundies[],H$1+1,FALSE)/Millions,0) -> -2054 | I142: =IFERROR(VLOOKUP($A142,FetchFundies[],I$1+1,FALSE)/Millions,0) -> -1177 | K142: y | L142: Capital expenditures, from cash flows from investing section of the cash flow statement.
A143: capexacquisition | C143: Acquisition Capital Expenditures | D143: =IFERROR(VLOOKUP($A143,FetchFundies[],D$1+1,FALSE)/Millions,0) -> -2491 | E143: =IFERROR(VLOOKUP($A143,FetchFundies[],E$1+1,FALSE)/Millions,0) -> -838 | F143: =IFERROR(VLOOKUP($A143,FetchFundies[],F$1+1,FALSE)/Millions,0) -> -3900 | G143: =IFERROR(VLOOKUP($A143,FetchFundies[],G$1+1,FALSE)/Millions,0) -> -1040 | H143: =IFERROR(VLOOKUP($A143,FetchFundies[],H$1+1,FALSE)/Millions,0) -> -5542 | I143: =IFERROR(VLOOKUP($A143,FetchFundies[],I$1+1,FALSE)/Millions,0) -> -1052 | K143: y | L143: Acquisition expenditures, from cash flows from investing section of the cash flow statement.
A144: cashflowsharerepurchase | C144: Cash Paid for Share Repurchases | D144: =IFERROR(VLOOKUP($A144,FetchFundies[],D$1+1,FALSE)/Millions,0) -> 0 | E144: =IFERROR(VLOOKUP($A144,FetchFundies[],E$1+1,FALSE)/Millions,0) -> 0 | F144: =IFERROR(VLOOKUP($A144,FetchFundies[],F$1+1,FALSE)/Millions,0) -> -3682 | G144: =IFERROR(VLOOKUP($A144,FetchFundies[],G$1+1,FALSE)/Millions,0) -> -1912 | H144: =IFERROR(VLOOKUP($A144,FetchFundies[],H$1+1,FALSE)/Millions,0) -> -1103 | I144: =IFERROR(VLOOKUP($A144,FetchFundies[],I$1+1,FALSE)/Millions,0) -> -118 | K144: y | L144: Total cash flow from share repurchases.
A145: cashflowoperating | C145: Cash Flow from Operations | D145: =IFERROR(VLOOKUP($A145,FetchFundies[],D$1+1,FALSE)/Millions,0) -> 10528 | E145: =IFERROR(VLOOKUP($A145,FetchFundies[],E$1+1,FALSE)/Millions,0) -> 8796 | F145: =IFERROR(VLOOKUP($A145,FetchFundies[],F$1+1,FALSE)/Millions,0) -> 6995 | G145: =IFERROR(VLOOKUP($A145,FetchFundies[],G$1+1,FALSE)/Millions,0) -> 7320 | H145: =IFERROR(VLOOKUP($A145,FetchFundies[],H$1+1,FALSE)/Millions,0) -> 10471 | I145: =IFERROR(VLOOKUP($A145,FetchFundies[],I$1+1,FALSE)/Millions,0) -> 9844 | K145: =IF(B145<>"","y",IF(SUM(E145:I145)=0,"","y")) -> y | L145: Total cash flow from operations.
A146: cashflowinvesting | C146: Cash Flow from Investing Activities | D146: =IFERROR(VLOOKUP($A146,FetchFundies[],D$1+1,FALSE)/Millions,0) -> -6186 | E146: =IFERROR(VLOOKUP($A146,FetchFundies[],E$1+1,FALSE)/Millions,0) -> -999 | F146: =IFERROR(VLOOKUP($A146,FetchFundies[],F$1+1,FALSE)/Millions,0) -> -2385 | G146: =IFERROR(VLOOKUP($A146,FetchFundies[],G$1+1,FALSE)/Millions,0) -> 6348 | H146: =IFERROR(VLOOKUP($A146,FetchFundies[],H$1+1,FALSE)/Millions,0) -> -3976 | I146: =IFERROR(VLOOKUP($A146,FetchFundies[],I$1+1,FALSE)/Millions,0) -> -1477 | K146: y | L146: Total cash flow from investing activities.
A147: cashflowfinancing | C147: Cash Flow from Financing Activities | D147: =IFERROR(VLOOKUP($A147,FetchFundies[],D$1+1,FALSE)/Millions,0) -> -5113 | E147: =IFERROR(VLOOKUP($A147,FetchFundies[],E$1+1,FALSE)/Millions,0) -> -6545 | F147: =IFERROR(VLOOKUP($A147,FetchFundies[],F$1+1,FALSE)/Millions,0) -> -7409 | G147: =IFERROR(VLOOKUP($A147,FetchFundies[],G$1+1,FALSE)/Millions,0) -> -10552 | H147: =IFERROR(VLOOKUP($A147,FetchFundies[],H$1+1,FALSE)/Millions,0) -> -9004 | I147: =IFERROR(VLOOKUP($A147,FetchFundies[],I$1+1,FALSE)/Millions,0) -> -8070 | K147: y | L147: Total cash flow from financing activities.
C148: Change in CF | D148: =SUM(D145:D147) -> -771 | E148: 1252 | F148: -2799 | G148: 3116 | H148: -2509 | I148: =SUM(I145:I147) -> 297 | K148: y
B149: Calculated Fields and Ratios | K149: y
B150: Filing Period
A151: filingDate | C151: Filing Date | D151: =IFERROR(VLOOKUP($A151,FetchFundies[],D$1+1,FALSE),0) -> 2016-02-25 | E151: =IFERROR(VLOOKUP($A151,FetchFundies[],E$1+1,FALSE),0) -> 2017-02-24 | F151: =IFERROR(VLOOKUP($A151,FetchFundies[],F$1+1,FALSE),0) -> 2018-02-23 | G151: =IFERROR(VLOOKUP($A151,FetchFundies[],G$1+1,FALSE),0) -> 2019-02-21 | H151: =IFERROR(VLOOKUP($A151,FetchFundies[],H$1+1,FALSE),0) -> 2020-02-24 | I151: =IFERROR(VLOOKUP($A151,FetchFundies[],I$1+1,FALSE),0) -> 2021-02-25
A152: filingType | C152: Filing Type | D152: =IFERROR(VLOOKUP($A152,FetchFundies[],D$1+1,FALSE),0) -> 10-K | E152: =IFERROR(VLOOKUP($A152,FetchFundies[],E$1+1,FALSE),0) -> 10-K | F152: =IFERROR(VLOOKUP($A152,FetchFundies[],F$1+1,FALSE),0) -> 10-K | G152: =IFERROR(VLOOKUP($A152,FetchFundies[],G$1+1,FALSE),0) -> 10-K | H152: =IFERROR(VLOOKUP($A152,FetchFundies[],H$1+1,FALSE),0) -> 10-K | I152: =IFERROR(VLOOKUP($A152,FetchFundies[],I$1+1,FALSE),0) -> 10-K
A153: fiscalQuarter | C153: Fiscal Quarter | D153: =IFERROR(VLOOKUP($A153,FetchFundies[],D$1+1,FALSE),0) -> 0 | E153: =IFERROR(VLOOKUP($A153,FetchFundies[],E$1+1,FALSE),0) -> 0 | F153: =IFERROR(VLOOKUP($A153,FetchFundies[],F$1+1,FALSE),0) -> 0 | G153: =IFERROR(VLOOKUP($A153,FetchFundies[],G$1+1,FALSE),0) -> 0 | H153: =IFERROR(VLOOKUP($A153,FetchFundies[],H$1+1,FALSE),0) -> 0 | I153: =IFERROR(VLOOKUP($A153,FetchFundies[],I$1+1,FALSE),0) -> 0
A154: fiscalYear | C154: Fiscal Year | D154: =IFERROR(VLOOKUP($A154,FetchFundies[],D$1+1,FALSE),0) -> 2015 | E154: =IFERROR(VLOOKUP($A154,FetchFundies[],E$1+1,FALSE),0) -> 2016 | F154: =IFERROR(VLOOKUP($A154,FetchFundies[],F$1+1,FALSE),0) -> 2017 | G154: =IFERROR(VLOOKUP($A154,FetchFundies[],G$1+1,FALSE),0) -> 2018 | H154: =IFERROR(VLOOKUP($A154,FetchFundies[],H$1+1,FALSE),0) -> 2019 | I154: =IFERROR(VLOOKUP($A154,FetchFundies[],I$1+1,FALSE),0) -> 2020
B155: Per Share Data | K155: y | L155: Per share data sourced from New Constructs
A156: wabso | C156: Basic Weighted Avg. Shares (Not Split-Adjusted) | D156: =IFERROR(VLOOKUP($A156,FetchFundies[],D$1+1,FALSE)/Millions,0) -> 4352 | E156: =IFERROR(VLOOKUP($A156,FetchFundies[],E$1+1,FALSE)/Millions,0) -> 4317 | F156: =IFERROR(VLOOKUP($A156,FetchFundies[],F$1+1,FALSE)/Millions,0) -> 4272 | G156: =IFERROR(VLOOKUP($A156,FetchFundies[],G$1+1,FALSE)/Millions,0) -> 4259 | H156: =IFERROR(VLOOKUP($A156,FetchFundies[],H$1+1,FALSE)/Millions,0) -> 4276 | I156: =IFERROR(VLOOKUP($A156,FetchFundies[],I$1+1,FALSE)/Millions,0) -> 4295 | K156: y | L156: Basic weighted average shares (not split-adjusted).
A157: wadso | C157: Diluted Weighted Avg. Shares (Not Split-Adjusted) | D157: =IFERROR(VLOOKUP($A157,FetchFundies[],D$1+1,FALSE)/Millions,0) -> 4405 | E157: =IFERROR(VLOOKUP($A157,FetchFundies[],E$1+1,FALSE)/Millions,0) -> 4367 | F157: =IFERROR(VLOOKUP($A157,FetchFundies[],F$1+1,FALSE)/Millions,0) -> 4324 | G157: =IFERROR(VLOOKUP($A157,FetchFundies[],G$1+1,FALSE)/Millions,0) -> 4299 | H157: =IFERROR(VLOOKUP($A157,FetchFundies[],H$1+1,FALSE)/Millions,0) -> 4314 | I157: =IFERROR(VLOOKUP($A157,FetchFundies[],I$1+1,FALSE)/Millions,0) -> 4323 | K157: y | L157: Diluted weighted average shares (not split-adjusted).
A158: incomenetperwabso | C158: Basic EPS (Not Split-Adjusted) | D158: =IF(D$1<=0,"",VLOOKUP($A158,FetchFundies[],D$1+1,FALSE)) -> 1.69 | E158: =IF(E$1<=0,"",VLOOKUP($A158,FetchFundies[],E$1+1,FALSE)) -> 1.51 | F158: =IF(F$1<=0,"",VLOOKUP($A158,FetchFundies[],F$1+1,FALSE)) -> 0.29 | G158: =IF(G$1<=0,"",VLOOKUP($A158,FetchFundies[],G$1+1,FALSE)) -> 1.51 | H158: =IF(H$1<=0,"",VLOOKUP($A158,FetchFundies[],H$1+1,FALSE)) -> 2.09 | I158: =IF(I$1<=0,"",VLOOKUP($A158,FetchFundies[],I$1+1,FALSE)) -> 1.8 | K158: y | L158: Basic earnings per share (not split-adjusted).
A159: incomenetperwadso | C159: Diluted GAAP EPS (Not Split-Adjusted) | D159: =IF(D$1<=0,"",VLOOKUP($A159,FetchFundies[],D$1+1,FALSE)) -> 1.67 | E159: =IF(E$1<=0,"",VLOOKUP($A159,FetchFundies[],E$1+1,FALSE)) -> 1.49 | F159: =IF(F$1<=0,"",VLOOKUP($A159,FetchFundies[],F$1+1,FALSE)) -> 0.29 | G159: =IF(G$1<=0,"",VLOOKUP($A159,FetchFundies[],G$1+1,FALSE)) -> 1.5 | H159: =IF(H$1<=0,"",VLOOKUP($A159,FetchFundies[],H$1+1,FALSE)) -> 2.07 | I159: =IF(I$1<=0,"",VLOOKUP($A159,FetchFundies[],I$1+1,FALSE)) -> 1.79 | K159: y | L159: Diluted earnings per share (not split-adjusted).
A160: wadsosplitadjusted | C160: Weighted Average Diluted Shares Outstanding (Split Adjusted) | D160: =IFERROR(VLOOKUP($A160,FetchFundies[],D$1+1,FALSE)/Millions,0) -> 4405 | E160: =IFERROR(VLOOKUP($A160,FetchFundies[],E$1+1,FALSE)/Millions,0) -> 4367 | F160: =IFERROR(VLOOKUP($A160,FetchFundies[],F$1+1,FALSE)/Millions,0) -> 4324 | G160: =IFERROR(VLOOKUP($A160,FetchFundies[],G$1+1,FALSE)/Millions,0) -> 4299 | H160: =IFERROR(VLOOKUP($A160,FetchFundies[],H$1+1,FALSE)/Millions,0) -> 4314 | I160: =IFERROR(VLOOKUP($A160,FetchFundies[],I$1+1,FALSE)/Millions,0) -> 4323 | K160: y | L160: Weighted average diluted shares oustanding as reported on the income statment, adjusted for stock splits.
A161: incomenetperwadsosplitadjusted | C161: Diluted GAAP EPS | D161: =IF(D$1<=0,"",VLOOKUP($A161,FetchFundies[],D$1+1,FALSE)) -> 1.668785471 | E161: =IF(E$1<=0,"",VLOOKUP($A161,FetchFundies[],E$1+1,FALSE)) -> 1.494618731 | F161: =IF(F$1<=0,"",VLOOKUP($A161,FetchFundies[],F$1+1,FALSE)) -> 0.2886216466 | G161: =IF(G$1<=0,"",VLOOKUP($A161,FetchFundies[],G$1+1,FALSE)) -> 1.496627123 | H161: =IF(H$1<=0,"",VLOOKUP($A161,FetchFundies[],H$1+1,FALSE)) -> 2.067686602 | I161: =IF(I$1<=0,"",VLOOKUP($A161,FetchFundies[],I$1+1,FALSE)) -> 1.792042563 | K161: y | L161: Diluted earnings per share.
A162: incomenetperwadsosplitadjustedyoydeltapercent | C162: Diluted GAAP EPS Annual Growth | D162: =IF(D$1<=0,"",VLOOKUP($A162,FetchFundies[],D$1+1,FALSE)) -> 0.04622363288 | E162: =IF(E$1<=0,"",VLOOKUP($A162,FetchFundies[],E$1+1,FALSE)) -> -0.1043673634 | F162: =IF(F$1<=0,"",VLOOKUP($A162,FetchFundies[],F$1+1,FALSE)) -> -0.8068927944 | G162: =IF(G$1<=0,"",VLOOKUP($A162,FetchFundies[],G$1+1,FALSE)) -> 4.185429229 | H162: =IF(H$1<=0,"",VLOOKUP($A162,FetchFundies[],H$1+1,FALSE)) -> 0.3815642992 | I162: =IF(I$1<=0,"",VLOOKUP($A162,FetchFundies[],I$1+1,FALSE)) -> -0.1333103568 | K162: y | L162: Percent growth in diluted earnings per share year over year.
A163: wabsosplitadjusted | C163: Basic Weighted Avg. Shares | D163: =IFERROR(VLOOKUP($A163,FetchFundies[],D$1+1,FALSE)/Millions,0) -> 4352 | E163: =IFERROR(VLOOKUP($A163,FetchFundies[],E$1+1,FALSE)/Millions,0) -> 4317 | F163: =IFERROR(VLOOKUP($A163,FetchFundies[],F$1+1,FALSE)/Millions,0) -> 4272 | G163: =IFERROR(VLOOKUP($A163,FetchFundies[],G$1+1,FALSE)/Millions,0) -> 4259 | H163: =IFERROR(VLOOKUP($A163,FetchFundies[],H$1+1,FALSE)/Millions,0) -> 4276 | I163: =IFERROR(VLOOKUP($A163,FetchFundies[],I$1+1,FALSE)/Millions,0) -> 4295 | K163: y | L163: Weighted average basic shares oustanding as reported on the income statment, adjusted for stock splits.
A164: incomenetperwabsosplitadjusted | C164: Basic EPS | D164: =IF(D$1<=0,"",VLOOKUP($A164,FetchFundies[],D$1+1,FALSE)) -> 1.689108456 | E164: =IF(E$1<=0,"",VLOOKUP($A164,FetchFundies[],E$1+1,FALSE)) -> 1.511929581 | F164: =IF(F$1<=0,"",VLOOKUP($A164,FetchFundies[],F$1+1,FALSE)) -> 0.2921348315 | G164: =IF(G$1<=0,"",VLOOKUP($A164,FetchFundies[],G$1+1,FALSE)) -> 1.510683259 | H164: =IF(H$1<=0,"",VLOOKUP($A164,FetchFundies[],H$1+1,FALSE)) -> 2.08606174 | I164: =IF(I$1<=0,"",VLOOKUP($A164,FetchFundies[],I$1+1,FALSE)) -> 1.803725262 | K164: y | L164: Basic earnings per share.
A165: incomenetperwabsosplitadjustedyoydeltapercent | C165: Basic EPS Annual Growth | D165: =IF(D$1<=0,"",VLOOKUP($A165,FetchFundies[],D$1+1,FALSE)) -> 0.0439727805 | E165: =IF(E$1<=0,"",VLOOKUP($A165,FetchFundies[],E$1+1,FALSE)) -> -0.1048949075 | F165: =IF(F$1<=0,"",VLOOKUP($A165,FetchFundies[],F$1+1,FALSE)) -> -0.8067801337 | G165: =IF(G$1<=0,"",VLOOKUP($A165,FetchFundies[],G$1+1,FALSE)) -> 4.171185002 | H165: =IF(H$1<=0,"",VLOOKUP($A165,FetchFundies[],H$1+1,FALSE)) -> 0.3808730106 | I165: =IF(I$1<=0,"",VLOOKUP($A165,FetchFundies[],I$1+1,FALSE)) -> -0.1353442578 | K165: y | L165: Percent growth in basic earnings per share year over year.
C166: Book Value per share | D166: =+D136/D156 -> 5.871783088 | E166: 5.342135742 | F166: 3.996254682 | G166: 3.98708617 | H166: 4.438961646 | I166: 4.493364377 | L166: Equity Value per share
C167: Dividend per share | D167: NA | E167: NA | F167: =IF(Settings!B12=TRUE,SUMIF(FetchDividends[YearQuarter],F5,FetchDividends[amount])+SUMIF(FetchDividends[YearQuarter],F6,FetchDividends[amount])+SUMIF(FetchDividends[YearQuarter],F7,FetchDividends[amount])+SUMIF(FetchDividends[YearQuarter],F8,FetchDividends[amount]),"") -> 1.48 | G167: =IF(Settings!B12=TRUE,SUMIF(FetchDividends[YearQuarter],G5,FetchDividends[amount])+SUMIF(FetchDividends[YearQuarter],G6,FetchDividends[amount])+SUMIF(FetchDividends[YearQuarter],G7,FetchDividends[amount])+SUMIF(FetchDividends[YearQuarter],G8,FetchDividends[amount]),"") -> 1.56 | H167: =IF(Settings!B12=TRUE,SUMIF(FetchDividends[YearQuarter],H5,FetchDividends[amount])+SUMIF(FetchDividends[YearQuarter],H6,FetchDividends[amount])+SUMIF(FetchDividends[YearQuarter],H7,FetchDividends[amount])+SUMIF(FetchDividends[YearQuarter],H8,FetchDividends[amount]),"") -> 1.6 | I167: =IF(Settings!B12=TRUE,SUMIF(FetchDividends[YearQuarter],I5,FetchDividends[amount])+SUMIF(FetchDividends[YearQuarter],I6,FetchDividends[amount])+SUMIF(FetchDividends[YearQuarter],I7,FetchDividends[amount])+SUMIF(FetchDividends[YearQuarter],I8,FetchDividends[amount]),"") -> 1.64 | K167: y | L167: Dividend paid in period
B168: Valuation Inputs | K168: y | L168: Inputs used for valuation ratios
A169: expensesStockCompensation | C169: Stock Price (Closing) | D169: =IF(prices_loaded=TRUE,VLOOKUP(D170,FetchPrices[#All],2,TRUE)) -> 42.96 | E169: =IF(prices_loaded=TRUE,VLOOKUP(E170,FetchPrices[#All],2,TRUE)) -> 41.46 | F169: =IF(prices_loaded=TRUE,VLOOKUP(F170,FetchPrices[#All],2,TRUE)) -> 45.88 | G169: =IF(prices_loaded=TRUE,VLOOKUP(G170,FetchPrices[#All],2,TRUE)) -> 47.35 | H169: =IF(prices_loaded=TRUE,VLOOKUP(H170,FetchPrices[#All],2,TRUE)) -> 55.35 | I169: =IF(prices_loaded=TRUE,VLOOKUP(I170,FetchPrices[#All],2,TRUE)) -> 54.84 | K169: y | L169: End of period share price
C170: Price Date | D170: =VLOOKUP(D11,FetchPrices[#All],1,TRUE) -> 2015-12-31 | E170: =VLOOKUP(E11,FetchPrices[#All],1,TRUE) -> 2016-12-30 | F170: =VLOOKUP(F11,FetchPrices[#All],1,TRUE) -> 2017-12-29 | G170: =VLOOKUP(G11,FetchPrices[#All],1,TRUE) -> 2018-12-31 | H170: =VLOOKUP(H11,FetchPrices[#All],1,TRUE) -> 2019-12-31 | I170: =VLOOKUP(I11,FetchPrices[#All],1,TRUE) -> 2020-12-31
C171: Market Cap (end of period) | D171: =IF(prices_loaded=TRUE,IFERROR(D163*D169,"")) -> 186961.92 | E171: 178982.82 | F171: 195999.36 | G171: 201663.65 | H171: 236676.6 | I171: 235537.8 | K171: y | L171: Basic Weighted Avg shares x period end price
C172: Net Debt | D172: =+D115+D114+D119-D73 -> 24313 | E172: =+E115+E114+E119-E73 -> 23508 | F172: 27010 | G172: 27591 | H172: =+H115+H114+H119-H73 -> 31588 | I172: =+I115+I114+I119-I73 -> 31879 | K172: y | L172: Short and long term debt on the balance sheet, less cash
A173: =+A124 -> interestminority | C173: Minorities | D173: =+D124 -> 210 | E173: 158 | F173: 1905 | G173: 2077 | H173: 2117 | I173: 1985 | K173: y | L173: Minority interests, a component of shareholder’s equity representing a significant but non-controlling ownership of a company’s voting shares by either an investor or another company.
C174: Enterprise Value (EV) | D174: =IF(prices_loaded=TRUE,IFERROR(D171+D172+D173,"")) -> 211484.92 | E174: 202648.82 | F174: 224914.36 | G174: 231331.65 | H174: 270381.6 | I174: 269401.8 | K174: y | L174: Market Cap plus Net Debt plus Minorities
C175: Net Working Capital (Current Assets - Current Liabilities) | D175: =+D86-D117 -> 3698 | E175: 5391 | F175: 3336 | G175: -3413 | H175: -6562 | I175: 4639 | K175: y | L175: Current Asset - Current Liabilities
C176: =+C88 -> Net Property, Plant, and Equipment | D176: =+D88 -> 12571 | E176: 10635 | F176: 8203 | G176: 8232 | H176: 10838 | I176: 10777 | L176: =+L88 -> Property, plant, and equipment, net, a fixed asset on the balance sheet.
C177: Goodwill and Intangibles | D177: =+D89+D90 -> 24132 | E177: =+E89+E90 -> 21128 | F177: 16636 | G177: 17270 | H177: 26766 | I177: 28550 | L177: Goodwill net and other intangibles
C178: Invested Capital | D178: =+D175+D176+D177 -> 40401 | E178: =+E175+E176+E177 -> 37154 | F178: =+F175+F176+F177 -> 28175 | G178: 22089 | H178: 31042 | I178: 43966 | L178: Net working capital + PP&E + Goodwill & intangibles
A179: =+A60 -> incomeNetPreTax | C179: =+C60 -> Pre-Tax Income | D179: 9605 | E179: 8136 | F179: 6742 | G179: 8350 | H179: 10786 | I179: 9749 | K179: y | L179: Pre-tax income (EBIT)
A180: ebitReported | C180: EBIT (NC) | D180: =IFERROR(VLOOKUP($A180,FetchFundies[],D$1+1,FALSE)/Millions,0) -> 10874 | E180: =IFERROR(VLOOKUP($A180,FetchFundies[],E$1+1,FALSE)/Millions,0) -> 10971 | F180: =IFERROR(VLOOKUP($A180,FetchFundies[],F$1+1,FALSE)/Millions,0) -> 10729 | G180: =IFERROR(VLOOKUP($A180,FetchFundies[],G$1+1,FALSE)/Millions,0) -> 10787 | H180: =IFERROR(VLOOKUP($A180,FetchFundies[],H$1+1,FALSE)/Millions,0) -> 11593 | I180: =IFERROR(VLOOKUP($A180,FetchFundies[],I$1+1,FALSE)/Millions,0) -> 10828 | K180: y | L180: Earnings before tax and interest
A181: ebitdaReported | C181: EBITDA (NC) | D181: =IFERROR(VLOOKUP($A181,FetchFundies[],D$1+1,FALSE)/Millions,0) -> 12844 | E181: =IFERROR(VLOOKUP($A181,FetchFundies[],E$1+1,FALSE)/Millions,0) -> 12758 | F181: =IFERROR(VLOOKUP($A181,FetchFundies[],F$1+1,FALSE)/Millions,0) -> 11989 | G181: =IFERROR(VLOOKUP($A181,FetchFundies[],G$1+1,FALSE)/Millions,0) -> 11873 | H181: =IFERROR(VLOOKUP($A181,FetchFundies[],H$1+1,FALSE)/Millions,0) -> 12958 | I181: =IFERROR(VLOOKUP($A181,FetchFundies[],I$1+1,FALSE)/Millions,0) -> 12364 | K181: y | L181: Earnings before tax, interest, depreciation and amortization
C182: Net Operating Profit After Tax (NOPAT) | E182: =+E180*(1-E62) -> 8832.356195 | F182: =+F180*(1-F62) -> 1880.99644 | G182: =+G180*(1-G62) -> 8690.317246 | H182: =+H180*(1-H62) -> 9657.250603 | I182: =+I180*(1-I62) -> 8627.746846 | L182: EBIT * (1-Tax Rate)
C183: Free Cash Flow | E183: =+E68+E140+E142-(E175-D175) -> 4359 | F183: =+F68+F140+F142-(F175-E175) -> 2888 | G183: =+G68+G140+G142-(G175-F175) -> 12922 | H183: =+H68+H140+H142-(H175-G175) -> 11380 | I183: =+I68+I140+I142-(I175-H175) -> -3095 | K183: y | L183: Net profit + D&A (Cashflow) + Capex + Change in net working capital
B184: Valuation Ratios | K184: y | L184: Measures of how cheap or expensive the stock was during the accounting period
C185: EV/Sales | E185: =IFERROR(E174/E18,"") -> 4.840762009 | F185: =IFERROR(F174/F18,"") -> 6.351718724 | G185: =IFERROR(G174/G18,"") -> 7.261792127 | H185: =IFERROR(H174/H18,"") -> 7.255450008 | I185: =IFERROR(I174/I18,"") -> 8.160228994 | K185: y | L185: EV/Revenues
C186: EV/EBIT | E186: =IFERROR(E174/E180,"") -> 18.47131711 | F186: =IFERROR(F174/F180,"") -> 20.96321745 | G186: =IFERROR(G174/G180,"") -> 21.44541114 | H186: =IFERROR(H174/H180,"") -> 23.32283274 | I186: =IFERROR(I174/I180,"") -> 24.88010713 | K186: y | L186: EV/EBIT
C187: EV/EBITDA | E187: =IFERROR(E174/E181,"") -> 15.88405863 | F187: =IFERROR(F174/F181,"") -> 18.76006006 | G187: =IFERROR(G174/G181,"") -> 19.48384149 | H187: =IFERROR(H174/H181,"") -> 20.86599784 | I187: =IFERROR(I174/I181,"") -> 21.78921061 | K187: y | L187: EV/EBITDA
C188: P/E | E188: =IFERROR(E171/E68,"") -> 27.42191206 | F188: =IFERROR(F171/F68,"") -> 157.0507692 | G188: =IFERROR(G171/G68,"") -> 31.34343332 | H188: =IFERROR(H171/H68,"") -> 26.53325112 | I188: =IFERROR(I171/I68,"") -> 30.40374338 | K188: y | L188: Price Earnings Ratio
C189: P/BV | E189: =IFERROR(E171/E136,"") -> 7.760940942 | F189: =IFERROR(F171/F136,"") -> 11.48074977 | G189: =IFERROR(G171/G136,"") -> 11.87584065 | H189: =IFERROR(H171/H136,"") -> 12.46913229 | I189: =IFERROR(I171/I136,"") -> 12.20466345 | L189: Price to Book Value Ratio
C190: Free Cashflow Yield (%) | E190: =IFERROR(E183/E171,"") -> 0.02435429278 | F190: =IFERROR(F183/F171,"") -> 0.01473474199 | G190: =IFERROR(G183/G171,"") -> 0.06407699156 | H190: =IFERROR(H183/H171,"") -> 0.04808248893 | I190: =IFERROR(I183/I171,"") -> -0.01314014141 | K190: y | L190: Free Cashflow / Market Cap
C191: Dividend Yield (%) | E191: =IFERROR(E167/E169,"") ->  | F191: =IFERROR(F167/F169,"") -> 0.03225806452 | G191: =IFERROR(G167/G169,"") -> 0.03294614572 | H191: =IFERROR(H167/H169,"") -> 0.02890695574 | I191: =IFERROR(I167/I169,"") -> 0.0299051787 | K191: y | L191: Annual Dividend payment / Price (based on calendar year end)
B192: Margin Analysis | K192: y | L192: Measures of profitability
C193: Gross Margin | D193: =+D30 -> 0.6053190048 | E193: 0.6066932614 | F193: 0.6256424739 | G193: 0.6305248619 | H193: 0.6077121237 | I193: 0.5931120131 | K193: y | L193: Gross Profit / Net Revenue
C194: Operating Margin | D194: =IFERROR(D180/D18,"") -> 0.245496004 | E194: 0.2620691303 | F194: 0.3029935047 | G194: 0.3386175289 | H194: 0.3110878549 | I194: 0.3279820682 | K194: y | L194: EBIT / Net Revenue
C195: Net Margin | D195: =IFERROR(D68/D18,"") -> 0.1659592721 | E195: 0.1559133364 | F195: 0.03524428128 | G195: 0.2019713712 | H195: 0.2393602748 | I195: 0.2346580239 | K195: y | L195: Net Profit / Revenue
C196: Operating Cash Flow Margin | D196: =IFERROR(D145/D18,"") -> 0.2376845622 | E196: 0.2101139431 | F196: 0.1975430669 | G196: 0.2297840281 | H196: 0.2809799818 | I196: 0.2981765312 | K196: y | L196: Operating cashflow / Revenue
C197: Free Cashflow Margin | E197: =IFERROR(E183/E18,"") -> 0.1041253613 | F197: =IFERROR(F183/F18,"") -> 0.08155888167 | G197: =IFERROR(G183/G18,"") -> 0.4056378704 | H197: =IFERROR(H183/H18,"") -> 0.3053721891 | I197: =IFERROR(I183/I18,"") -> -0.09374810686 | K197: y | L197: Free Cashflow / Revenue
C198: Return on Capital Employed (ROCE) | E198: =+E180/(E103-E117) -> 0.1870556342 | F198: =+F180/(F103-F117) -> 0.1961892223 | G198: =+G180/(G103-G117) -> 0.2193861986 | H198: =+H180/(H103-H117) -> 0.1951420684 | I198: =+I180/(I103-I117) -> 0.148951097 | K198: y | L198: EBIT/(Assets-current liabilities)
C199: Return on Invested Capital (ROIC) | E199: =E182/AVERAGE(D178:E178) -> 0.2277701294 | F199: =F182/AVERAGE(E178:F178) -> 0.05758534312 | G199: =G182/AVERAGE(F178:G178) -> 0.3457869348 | H199: =H182/AVERAGE(G178:H178) -> 0.3635260245 | I199: =I182/AVERAGE(H178:I178) -> 0.2300487107 | K199: y | L199: NOPAT / 2 year Average Capital Employed
B200: Growth Analysis | K200: y
C201: Revenue growth | E201: =IFERROR(E18/D18-1,"") -> -0.0548832799 | F201: =IFERROR(F18/E18-1,"") -> -0.1541456656 | G201: =IFERROR(G18/F18-1,"") -> -0.1003671279 | H201: =IFERROR(H18/G18-1,"") -> 0.1698267202 | I201: =IFERROR(I18/H18-1,"") -> -0.1140986422 | K201: y | L201: Revenue growth
C202: EBIT growth | E202: =IFERROR(E180/D180-1,"") -> 0.008920360493 | F202: =IFERROR(F180/E180-1,"") -> -0.02205815331 | G202: =IFERROR(G180/F180-1,"") -> 0.005405909218 | H202: =IFERROR(H180/G180-1,"") -> 0.07471956985 | I202: =IFERROR(I180/H180-1,"") -> -0.06598809626 | K202: y | L202: EBIT growth
C203: Net Profit growth | E203: =IFERROR(E68/D68-1,"") -> -0.1120935927 | F203: =IFERROR(F68/E68-1,"") -> -0.8087942393 | G203: =IFERROR(G68/F68-1,"") -> 4.155448718 | H203: =IFERROR(H68/G68-1,"") -> 0.3863848306 | I203: =IFERROR(I68/H68-1,"") -> -0.1315022422 | K203: y | L203: Net Profit growth
C204: Net Working Capital growth | E204: =IFERROR(E175/D175-1,"") -> 0.4578150352 | F204: =IFERROR(F175/E175-1,"") -> -0.3811908737 | G204: =IFERROR(G175/F175-1,"") -> -2.023081535 | H204: =IFERROR(H175/G175-1,"") -> 0.9226486962 | I204: =IFERROR(I175/H175-1,"") -> -1.706949101 | K204: y | L204: Net Working Capital growth
... 24 more rows

Sheet Charts
A1: =+'Financial Statements and Ratios'!B10 -> 
A2: =IF(Millions=1000000," Amounts in millions, except per share data"," Amounts in USD") -> Amounts in millions, except per share data
M35: =IF(Settings!B12<>TRUE,Settings!B12,"") -> 
H104: Source data provided by New Constructs, LLC © All rights reserved. Dividend data provided by EDI. Delivered by iexcloud.io
B245: =+'Financial Statements and Ratios'!E11 -> 2016-12-31 | D245: =+'Financial Statements and Ratios'!F11 -> 2017-12-31 | F245: =+'Financial Statements and Ratios'!G11 -> 2018-12-31 | H245: =+'Financial Statements and Ratios'!H11 -> 2019-12-31 | J245: =+'Financial Statements and Ratios'!I11 -> 2020-12-31
B246: Assets | C246: Liabs & Equity | D246: Assets | E246: =+C246 -> Liabs & Equity | F246: Assets | G246: =+E246 -> Liabs & Equity | H246: Assets | I246: =+G246 -> Liabs & Equity | J246: Assets | K246: =+I246 -> Liabs & Equity
A247: =+'Financial Statements and Ratios'!C86 -> Total Current/Investment Assets (Unadjusted) | B247: =+'Financial Statements and Ratios'!E86 -> 31923 | D247: =+'Financial Statements and Ratios'!F86 -> 30530 | F247: =+'Financial Statements and Ratios'!G86 -> 25810 | H247: =+'Financial Statements and Ratios'!H86 -> 20411 | J247: =+'Financial Statements and Ratios'!I86 -> 19240
A248: =+'Financial Statements and Ratios'!C102 -> Total Fixed Assets | B248: =+'Financial Statements and Ratios'!E102 -> 53260 | D248: =+'Financial Statements and Ratios'!F102 -> 51351 | F248: =+'Financial Statements and Ratios'!G102 -> 52582 | H248: =+'Financial Statements and Ratios'!H102 -> 65970 | J248: =+'Financial Statements and Ratios'!I102 -> 68056
A249: =+'Financial Statements and Ratios'!C117 -> Total Current/Investment Liabilities | C249: =+'Financial Statements and Ratios'!E117 -> 26532 | E249: =+'Financial Statements and Ratios'!F117 -> 27194 | G249: =+'Financial Statements and Ratios'!G117 -> 29223 | I249: =+'Financial Statements and Ratios'!H117 -> 26973 | K249: =+'Financial Statements and Ratios'!I117 -> 14601
A250: =+'Financial Statements and Ratios'!C127 -> Total Long-term Liabilities and Minority Interest | C250: =+'Financial Statements and Ratios'!E127 -> 37676 | E250: =+'Financial Statements and Ratios'!F127 -> 43630 | G250: =+'Financial Statements and Ratios'!G127 -> 37012 | I250: =+'Financial Statements and Ratios'!H127 -> 40427 | K250: =+'Financial Statements and Ratios'!I127 -> 53396
A251: =+'Financial Statements and Ratios'!C136 -> Total Shareholders' Equity | C251: =+'Financial Statements and Ratios'!E136 -> 23062 | E251: =+'Financial Statements and Ratios'!F136 -> 17072 | G251: =+'Financial Statements and Ratios'!G136 -> 16981 | I251: =+'Financial Statements and Ratios'!H136 -> 18981 | K251: =+'Financial Statements and Ratios'!I136 -> 19299

Sheet Fundies (hidden)
A1: Column1 | B1: Column2 | C1: Column3 | D1: Column4 | E1: Column5 | F1: Column6 | G1: Column7 | H1: Column8
A2: accountsPayable | B2: 2089000000 | C2: 2795000000 | D2: 2682000000 | E2: 2288000000 | F2: 2498000000 | G2: 3804000000 | H2: 3517000000
A3: accountsPayableTurnover | B3: 22.01914792 | C3: 15.84758497 | D3: 15.60887397 | E3: 15.4763986 | F3: 12.75260208 | G3: 9.796529968 | H3: 9.386977538
A4: accountsReceivable | B4: 4466000000 | C4: 3941000000 | D4: 3856000000 | E4: 3667000000 | F4: 3396000000 | G4: 3971000000 | H4: 3144000000
A5: accountsReceivableTurnover | B5: 10.29959695 | C5: 11.23927937 | D5: 10.85658714 | E5: 9.656394873 | F5: 9.380447585 | G5: 9.3845379 | H5: 10.50063613
A6: asOfDate | B6: 2021-04-28 | C6: 2021-04-28 | D6: 2021-04-28 | E6: 2021-04-28 | F6: 2021-04-28 | G6: 2021-04-28 | H6: 2021-04-28
A7: assetsCurrentCash | B7: 21675000000 | C7: 19900000000 | D7: 22201000000 | E7: 20675000000 | F7: 15964000000 | G7: 11175000000 | H7: 10914000000
A8: assetsCurrentCashRestricted | B8: 0 | C8: 0 | D8: 0 | E8: 0 | F8: 0 | G8: 0 | H8: 0
A9: assetsCurrentDeferredCompensation | B9: 0 | C9: 0 | D9: 0 | E9: 0 | F9: 0 | G9: 0 | H9: 0
A10: assetsCurrentDeferredTax | B10: 0 | C10: 0 | D10: 0 | E10: 0 | F10: 0 | G10: 0 | H10: 0
A11: assetsCurrentDiscontinuedOperations | B11: 679000000 | C11: 3900000000 | D11: 2797000000 | E11: 7548000000 | F11: 6546000000 | G11: 0 | H11: 0
A12: assetsCurrentInvestments | B12: 0 | C12: 0 | D12: 0 | E12: 0 | F12: 0 | G12: 0 | H12: 0
A13: assetsCurrentLeasesOperating | B13: 0 | C13: 0 | D13: 0 | E13: 0 | F13: 0 | G13: 0 | H13: 0
A14: assetsCurrentLoansNet | B14: 0 | C14: 0 | D14: 0 | E14: 0 | F14: 0 | G14: 0 | H14: 0
A15: assetsCurrentOther | B15: 3066000000 | C15: 2752000000 | D15: 2481000000 | E15: 2000000000 | F15: 1962000000 | G15: 1886000000 | H15: 1916000000
A16: assetsCurrentSeparateAccounts | B16: 0 | C16: 0 | D16: 0 | E16: 0 | F16: 0 | G16: 0 | H16: 0
A17: assetsCurrentUnadjusted | B17: 32986000000 | C17: 33395000000 | D17: 34010000000 | E17: 36545000000 | F17: 30634000000 | G17: 20411000000 | H17: 19240000000
A18: assetsFixed | B18: 59037000000 | C18: 56698000000 | D18: 53260000000 | E18: 51351000000 | F18: 52582000000 | G18: 65970000000 | H18: 68056000000
A19: assetsFixedDeferredCompensation | B19: 0 | C19: 0 | D19: 0 | E19: 0 | F19: 0 | G19: 0 | H19: 0
A20: assetsFixedDeferredTax | B20: 0 | C20: 0 | D20: 0 | E20: 0 | F20: 2667000000 | G20: 2412000000 | H20: 2460000000
A21: assetsFixedDiscontinuedOperations | B21: 0 | C21: 0 | D21: 0 | E21: 0 | F21: 0 | G21: 0 | H21: 0
A22: assetsFixedLeasesOperating | B22: 0 | C22: 0 | D22: 0 | E22: 0 | F22: 0 | G22: 0 | H22: 0
A23: assetsFixedOperatingDiscontinuedOperations | B23: 0 | C23: 0 | D23: 0 | E23: 0 | F23: 0 | G23: 0 | H23: 0
A24: assetsFixedOperatingSubsidiaryUnconsolidated | B24: 9947000000 | C24: 12318000000 | D24: 16260000000 | E24: 20856000000 | F24: 19407000000 | G24: 19025000000 | H24: 19273000000
A25: assetsFixedOreo | B25: 0 | C25: 0 | D25: 0 | E25: 0 | F25: 0 | G25: 0 | H25: 0
A26: assetsFixedOther | B26: 3433000000 | C26: 3189000000 | D26: 3135000000 | E26: 3283000000 | F26: 2917000000 | G26: 4700000000 | H26: 5066000000
A27: assetsFixedUnconsolidated | B27: 0 | C27: 0 | D27: 0 | E27: 0 | F27: 0 | G27: 0 | H27: 0
A28: assetsUnadjusted | B28: 92023000000 | C28: 90093000000 | D28: 87270000000 | E28: 87896000000 | F28: 83216000000 | G28: 86381000000 | H28: 87296000000
A29: capex | B29: -2406000000 | C29: -2553000000 | D29: -2262000000 | E29: -1675000000 | F29: -1347000000 | G29: -2054000000 | H29: -1177000000
A30: capexAcquisition | B30: -389000000 | C30: -2491000000 | D30: -838000000 | E30: -3900000000 | F30: -1040000000 | G30: -5542000000 | H30: -1052000000
A31: capexMaintenance | B31: 0 | C31: 0 | D31: 0 | E31: 0 | F31: 0 | G31: 0 | H31: 0
A32: cashConversionCycle | B32: 43.46069394 | C32: 33.35711383 | D32: 33.55910948 | E32: 41.58175657 | F32: 41.98141637 | G32: 34.7311222 | H32: 31.98476404
A33: cashFlowFinancing | B33: -3631000000 | C33: -5113000000 | D33: -6545000000 | E33: -7409000000 | F33: -10552000000 | G33: -9004000000 | H33: -8070000000
A34: cashFlowInvesting | B34: -7506000000 | C34: -6186000000 | D34: -999000000 | E34: -2385000000 | F34: 6348000000 | G34: -3976000000 | H34: -1477000000
A35: cashFlowOperating | B35: 10615000000 | C35: 10528000000 | D35: 8796000000 | E35: 6995000000 | F35: 7320000000 | G35: 10471000000 | H35: 9844000000
A36: cashFlowShareRepurchase | B36: 0 | C36: 0 | D36: 0 | E36: -3682000000 | F36: -1912000000 | G36: -1103000000 | H36: -118000000
A37: cashLongTerm | B37: 4652000000 | C37: 4488000000 | D37: 2102000000 | E37: 2373000000 | F37: 2089000000 | G37: 2229000000 | H37: 1930000000
A38: cashOperating | B38: 0 | C38: 0 | D38: 0 | E38: 0 | F38: 0 | G38: 0 | H38: 0
A39: cashPaidForIncomeTaxes | B39: 1926000000 | C39: 2357000000 | D39: 1554000000 | E39: 1904000000 | F39: 0 | G39: 0 | H39: 0
A40: cashPaidForInterest | B40: 498000000 | C40: 515000000 | D40: 663000000 | E40: 757000000 | F40: 0 | G40: 0 | H40: 0
A41: cashRestricted | B41: 0 | C41: 0 | D41: 0 | E41: 0 | F41: 0 | G41: 0 | H41: 0
A42: chargeAfterTax | B42: 26000000 | C42: 15000000 | D42: 23000000 | E42: -66000000 | F42: 293000000 | G42: 65000000 | H42: 21000000
A43: chargeAfterTaxDiscontinuedOperations | B43: 0 | C43: 0 | D43: 0 | E43: -101000000 | F43: 251000000 | G43: 0 | H43: 0
A44: chargesAfterTaxOther | B44: 0 | C44: 0 | D44: 0 | E44: 0 | F44: 0 | G44: 0 | H44: 0
A45: cik | B45: 0000021344 | C45: 0000021344 | D45: 0000021344 | E45: 0000021344 | F45: 0000021344 | G45: 0000021344 | H45: 0000021344
A46: creditLossProvision | B46: 0 | C46: 0 | D46: 0 | E46: 0 | F46: 0 | G46: 0 | H46: 0
A47: dataGenerationDate | B47: 2021-04-28 | C47: 2021-04-28 | D47: 2021-04-28 | E47: 2021-04-28 | F47: 2021-04-28 | G47: 2021-04-28 | H47: 2021-04-28
A48: daysInAccountsPayable | B48: 16.57648159 | C48: 23.03190048 | D48: 23.38413396 | E48: 23.58429822 | F48: 28.62160974 | G48: 37.25809048 | H48: 38.88365542
A49: daysInInventory | B49: 24.5988956 | C49: 23.91362261 | D49: 23.32310155 | E49: 27.36726913 | F49: 31.69230286 | G49: 33.09544893 | H49: 36.10862059
A50: daysInRevenueDeferred | B50: 0 | C50: 0 | D50: 0 | E50: 0 | F50: 0 | G50: 0 | H50: 0
A51: daysRevenueOutstanding | B51: 35.43827993 | C51: 32.4753917 | D51: 33.62014189 | E51: 37.79878565 | F51: 38.91072325 | G51: 38.89376375 | H51: 34.75979887
A52: debtFinancial | B52: 0 | C52: 0 | D52: 0 | E52: 0 | F52: 0 | G52: 0 | H52: 0
A53: debtShortTerm | B53: 22682000000 | C53: 15806000000 | D53: 16025000000 | E53: 16503000000 | F53: 18191000000 | G53: 15247000000 | H53: 2668000000
A54: depreciationAndAmortizationAccumulated | B54: 10625000000 | C54: 9783000000 | D54: 10621000000 | E54: 8246000000 | F54: 8013000000 | G54: 8083000000 | H54: 8923000000
A55: depreciationAndAmortizationCashFlow | B55: 1976000000 | C55: 1970000000 | D55: 1787000000 | E55: 1260000000 | F55: 1086000000 | G55: 1365000000 | H55: 1536000000
A56: dividendsPreferred | B56: 0 | C56: 0 | D56: 0 | E56: 0 | F56: 0 | G56: 0 | H56: 0
A57: dividendsPreferredRedeemableMandatorily | B57: 0 | C57: 0 | D57: 0 | E57: 0 | F57: 0 | G57: 0 | H57: 0
A58: earningsRetained | B58: 63408000000 | C58: 65018000000 | D58: 65502000000 | E58: 60430000000 | F58: 63234000000 | G58: 65855000000 | H58: 66555000000
A59: ebitReported | B59: 11660000000 | C59: 10874000000 | D59: 10971000000 | E59: 10729000000 | F59: 10787000000 | G59: 11593000000 | H59: 10828000000
A60: ebitdaReported | B60: 13636000000 | C60: 12844000000 | D60: 12758000000 | E60: 11989000000 | F60: 11873000000 | G60: 12958000000 | H60: 12364000000
A61: equityShareholder | B61: 30320000000 | C61: 25554000000 | D61: 23062000000 | E61: 17072000000 | F61: 16981000000 | G61: 18981000000 | H61: 19299000000
A62: equityShareholderOther | B62: 0 | C62: 0 | D62: 0 | E62: 0 | F62: 0 | G62: 0 | H62: 0
A63: equityShareholderOtherDeferredCompensation | B63: 0 | C63: 0 | D63: 0 | E63: 0 | F63: 0 | G63: 0 | H63: 0
A64: equityShareholderOtherEquity | B64: 0 | C64: 0 | D64: 0 | E64: 0 | F64: 0 | G64: 0 | H64: 0
A65: equityShareholderOtherMezzanine | B65: 0 | C65: 0 | D65: 0 | E65: 0 | F65: 0 | G65: 0 | H65: 0
A66: expenses | B66: 37442000000 | C66: 35178000000 | D66: 34562000000 | E66: 29739000000 | F66: 24514000000 | G66: 27529000000 | H66: 24243000000
A67: expensesAcquisitionMerger | B67: 0 | C67: 0 | D67: 0 | E67: 0 | F67: 0 | G67: 0 | H67: 0
A68: expensesCompensation | B68: 0 | C68: 0 | D68: 0 | E68: 0 | F68: 0 | G68: 0 | H68: 0
A69: expensesDepreciationAndAmortization | B69: 0 | C69: 0 | D69: 0 | E69: 0 | F69: 0 | G69: 0 | H69: 0
A70: expensesDerivative | B70: 0 | C70: 0 | D70: 0 | E70: 0 | F70: 0 | G70: 0 | H70: 0
A71: expensesDiscontinuedOperations | B71: 0 | C71: 0 | D71: 0 | E71: 0 | F71: 0 | G71: 0 | H71: 0
A72: expensesDiscontinuedOperationsReits | B72: 0 | C72: 0 | D72: 0 | E72: 0 | F72: 0 | G72: 0 | H72: 0
A73: expensesEnergy | B73: 0 | C73: 0 | D73: 0 | E73: 0 | F73: 0 | G73: 0 | H73: 0
A74: expensesForeignCurrency | B74: 0 | C74: 0 | D74: 0 | E74: 0 | F74: 0 | G74: 0 | H74: 0
A75: expensesInterest | B75: -111000000 | C75: 243000000 | D75: 91000000 | E75: 164000000 | F75: 237000000 | G75: 383000000 | H75: 1067000000
A76: expensesInterestFinancials | B76: 0 | C76: 0 | D76: 0 | E76: 0 | F76: 0 | G76: 0 | H76: 0
A77: expensesInterestMinority | B77: 26000000 | C77: 15000000 | D77: 23000000 | E77: 35000000 | F77: 42000000 | G77: 65000000 | H77: 21000000
A78: expensesLegalRegulatoryInsurance | B78: 0 | C78: 0 | D78: 0 | E78: 0 | F78: 0 | G78: 0 | H78: 0
A79: expensesNonOperatingCompanyDefinedOther | B79: 1263000000 | C79: -631000000 | D79: 1234000000 | E79: 1666000000 | F79: 1121000000 | G79: -34000000 | H79: -841000000
A80: expensesNonOperatingOther | B80: 0 | C80: 0 | D80: 0 | E80: 0 | F80: 0 | G80: 0 | H80: 0
A81: expensesNonOperatingSubsidiaryUnconsolidated | B81: 0 | C81: 0 | D81: 0 | E81: 0 | F81: 0 | G81: 0 | H81: 0
A82: expensesNonRecurringOther | B82: 1183000000 | C82: 1657000000 | D82: 1510000000 | E82: 2157000000 | F82: 1079000000 | G82: 458000000 | H82: 853000000
A83: expensesOperating | B83: 35107000000 | C83: 33909000000 | D83: 31727000000 | E83: 25752000000 | F83: 22077000000 | G83: 26722000000 | H83: 23164000000
A84: expensesOperatingOther | B84: 0 | C84: 0 | D84: 0 | E84: 0 | F84: 0 | G84: 0 | H84: 0
A85: expensesOperatingSubsidiaryUnconsolidated | B85: 0 | C85: 0 | D85: 0 | E85: 0 | F85: 0 | G85: 0 | H85: 0
A86: expensesOreo | B86: 0 | C86: 0 | D86: 0 | E86: 0 | F86: 0 | G86: 0 | H86: 0
A87: expensesOreoReits | B87: 0 | C87: 0 | D87: 0 | E87: 0 | F87: 0 | G87: 0 | H87: 0
A88: expensesOtherFinancing | B88: 0 | C88: 0 | D88: 0 | E88: 0 | F88: 0 | G88: 0 | H88: 0
A89: expensesRestructuring | B89: 0 | C89: 0 | D89: 0 | E89: 0 | F89: 0 | G89: 0 | H89: 0
A90: expensesSga | B90: 17218000000 | C90: 16427000000 | D90: 15262000000 | E90: 12496000000 | F90: 10307000000 | G90: 12103000000 | H90: 9731000000
A91: expensesStockCompensation | B91: 0 | C91: 0 | D91: 0 | E91: 0 | F91: 0 | G91: 0 | H91: 0
A92: expensesWriteDown | B92: 0 | C92: 0 | D92: 0 | E92: 0 | F92: 0 | G92: 0 | H92: 0
A93: ffo | B93: 0 | C93: 0 | D93: 0 | E93: 0 | F93: 0 | G93: 0 | H93: 0
A94: figi | B94: BBG000BMX289 | C94: BBG000BMX289 | D94: BBG000BMX289 | E94: BBG000BMX289 | F94: BBG000BMX289 | G94: BBG000BMX289 | H94: BBG000BMX289
A95: filingDate | B95: 2015-02-25 | C95: 2016-02-25 | D95: 2017-02-24 | E95: 2018-02-23 | F95: 2019-02-21 | G95: 2020-02-24 | H95: 2021-02-25
A96: filingType | B96: 10-K | C96: 10-K | D96: 10-K | E96: 10-K | F96: 10-K | G96: 10-K | H96: 10-K
A97: fiscalQuarter | B97: 0 | C97: 0 | D97: 0 | E97: 0 | F97: 0 | G97: 0 | H97: 0
A98: fiscalYear | B98: 2014 | C98: 2015 | D98: 2016 | E98: 2017 | F98: 2018 | G98: 2019 | H98: 2020
A99: goodwillAmortizationCashFlow | B99: 0 | C99: 0 | D99: 0 | E99: 0 | F99: 0 | G99: 0 | H99: 0
A100: goodwillAmortizationIncomeStatement | B100: 0 | C100: 0 | D100: 0 | E100: 0 | F100: 0 | G100: 0 | H100: 0
A101: goodwillAndIntangiblesNetOther | B101: 14272000000 | C101: 12843000000 | D101: 10499000000 | E101: 7235000000 | F101: 7007000000 | G101: 10002000000 | H101: 11044000000
A102: goodwillNet | B102: 12100000000 | C102: 11289000000 | D102: 10629000000 | E102: 9401000000 | F102: 10263000000 | G102: 16764000000 | H102: 17506000000
A103: incomeFromOperations | B103: 9708000000 | C103: 8728000000 | D103: 8626000000 | E103: 7501000000 | F103: 8700000000 | G103: 10086000000 | H103: 8997000000
A104: incomeNet | B104: 7098000000 | C104: 7351000000 | D104: 6527000000 | E104: 1248000000 | F104: 6434000000 | G104: 8920000000 | H104: 7747000000
A105: incomeNetPerRevenue | B105: 0.154311057 | C105: 0.1659592721 | D105: 0.1559133364 | E105: 0.03524428128 | F105: 0.2019713712 | G105: 0.2393602748 | H105: 0.2346580239
A106: incomeNetPerWabso | B106: 1.62 | C106: 1.69 | D106: 1.51 | E106: 0.29 | F106: 1.51 | G106: 2.09 | H106: 1.8
A107: incomeNetPerWabsoSplitAdjusted | B107: 1.617962161 | C107: 1.689108456 | D107: 1.511929581 | E107: 0.2921348315 | F107: 1.510683259 | G107: 2.08606174 | H107: 1.803725262
A108: incomeNetPerWabsoSplitAdjustedYoyDeltaPercent | B108: -0.164253935 | C108: 0.0439727805 | D108: -0.1048949075 | E108: -0.8067801337 | F108: 4.171185002 | G108: 0.3808730106 | H108: -0.1353442578
A109: incomeNetPerWadso | B109: 1.6 | C109: 1.67 | D109: 1.49 | E109: 0.29 | F109: 1.5 | G109: 2.07 | H109: 1.79
A110: incomeNetPerWadsoSplitAdjusted | B110: 1.59505618 | C110: 1.668785471 | D110: 1.494618731 | E110: 0.2886216466 | F110: 1.496627123 | G110: 2.067686602 | H110: 1.792042563
A111: incomeNetPerWadsoSplitAdjustedYoyDeltaPercent | B111: -0.162149544 | C111: 0.04622363288 | D111: -0.1043673634 | E111: -0.8068927944 | F111: 4.185429229 | G111: 0.3815642992 | H111: -0.1333103568
A112: incomeNetPreTax | B112: 9325000000 | C112: 9605000000 | D112: 8136000000 | E112: 6742000000 | F112: 8350000000 | G112: 10786000000 | H112: 9749000000
A113: incomeNetYoyDelta | B113: -1486000000 | C113: 253000000 | D113: -824000000 | E113: -5279000000 | F113: 5186000000 | G113: 2486000000 | H113: -1173000000
A114: incomeOperating | B114: 769000000 | C114: 489000000 | D114: 835000000 | E114: 1071000000 | F114: 1008000000 | G114: 1049000000 | H114: 978000000
A115: incomeOperatingDiscontinuedOperations | B115: 0 | C115: 0 | D115: 0 | E115: 0 | F115: 0 | G115: 0 | H115: 0
A116: incomeOperatingOther | B116: 0 | C116: 0 | D116: 0 | E116: 0 | F116: 0 | G116: 0 | H116: 0
A117: incomeOperatingSubsidiaryUnconsolidated | B117: 769000000 | C117: 489000000 | D117: 835000000 | E117: 1071000000 | F117: 1008000000 | G117: 1049000000 | H117: 978000000
A118: incomeOperatingSubsidiaryUnconsolidatedAfterTax | B118: 0 | C118: 0 | D118: 0 | E118: 0 | F118: 0 | G118: 0 | H118: 0
A119: incomeTax | B119: 2201000000 | C119: 2239000000 | D119: 1586000000 | E119: 5560000000 | F119: 1623000000 | G119: 1801000000 | H119: 1981000000
A120: incomeTaxCurrent | B120: 2241000000 | C120: 2166000000 | D120: 2442000000 | E120: 6816000000 | F120: 2073000000 | G120: 2081000000 | H120: 1999000000
A121: incomeTaxDeferred | B121: -40000000 | C121: 73000000 | D121: -856000000 | E121: -1256000000 | F121: -450000000 | G121: -280000000 | H121: -18000000
A122: incomeTaxDiscontinuedOperations | B122: 0 | C122: 0 | D122: 0 | E122: 0 | F122: 0 | G122: 0 | H122: 0
A123: incomeTaxOther | B123: 0 | C123: 0 | D123: 0 | E123: 0 | F123: 0 | G123: 0 | H123: 0
A124: incomeTaxRate | B124: 0.2360321716 | C124: 0.2331077564 | D124: 0.1949360865 | E124: 0.8246811035 | F124: 0.1943712575 | G124: 0.1669757093 | H124: 0.2032003282
A125: interestMinority | B125: 241000000 | C125: 210000000 | D125: 158000000 | E125: 1905000000 | F125: 2077000000 | G125: 2117000000 | H125: 1985000000
A126: inventory | B126: 3100000000 | C126: 2902000000 | D126: 2675000000 | E126: 2655000000 | F126: 2766000000 | G126: 3379000000 | H126: 3266000000
A127: inventoryTurnover | B127: 14.83806452 | C127: 15.26326671 | D127: 15.64971963 | E127: 13.33709981 | F127: 11.51699205 | G127: 11.02870672 | H127: 10.10838947
A128: liabilities | B128: 92023000000 | C128: 90093000000 | D128: 87270000000 | E128: 87896000000 | F128: 83216000000 | G128: 86381000000 | H128: 87296000000
A129: liabilitiesCurrent | B129: 32374000000 | C129: 26930000000 | D129: 26532000000 | E129: 27194000000 | F129: 29223000000 | G129: 26973000000 | H129: 14601000000
A130: liabilitiesNonCurrentAndInterestMinorityTotal | B130: 29329000000 | C130: 37609000000 | D130: 37676000000 | E130: 43630000000 | F130: 37012000000 | G130: 40427000000 | H130: 53396000000
A131: liabilitiesNonCurrentDebt | B131: 19063000000 | C131: 28407000000 | D131: 29684000000 | E131: 31182000000 | F131: 25364000000 | G131: 27516000000 | H131: 40125000000
A132: liabilitiesNonCurrentDeferredCompensation | B132: 0 | C132: 0 | D132: 0 | E132: 0 | F132: 0 | G132: 0 | H132: 0
A133: liabilitiesNonCurrentDeferredTax | B133: 5636000000 | C133: 4691000000 | D133: 3753000000 | E133: 2522000000 | F133: 1933000000 | G133: 2284000000 | H133: 1833000000
A134: liabilitiesNonCurrentDiscontinuedOperations | B134: 0 | C134: 0 | D134: 0 | E134: 0 | F134: 0 | G134: 0 | H134: 0
A135: liabilitiesNonCurrentLeasesOperating | B135: 0 | C135: 0 | D135: 0 | E135: 0 | F135: 0 | G135: 0 | H135: 0
A136: liabilitiesNonCurrentLongTerm | B136: 4630000000 | C136: 4511000000 | D136: 4239000000 | E136: 9926000000 | F136: 9715000000 | G136: 10627000000 | H136: 11438000000
A137: liabilitiesNonCurrentOperatingDiscontinuedOperations | B137: 0 | C137: 0 | D137: 0 | E137: 0 | F137: 0 | G137: 0 | H137: 0
A138: liabilitiesNonCurrentOther | B138: 4389000000 | C138: 4301000000 | D138: 4081000000 | E138: 8021000000 | F138: 7638000000 | G138: 8510000000 | H138: 9453000000
A139: nibclDeferredCompensation | B139: 0 | C139: 0 | D139: 0 | E139: 0 | F139: 0 | G139: 0 | H139: 0
A140: nibclDeferredTax | B140: 0 | C140: 0 | D140: 692000000 | E140: 0 | F140: 0 | G140: 0 | H140: 0
A141: nibclDiscontinuedOperations | B141: 58000000 | C141: 1133000000 | D141: 710000000 | E141: 1533000000 | F141: 1722000000 | G141: 0 | H141: 0
A142: nibclLeasesOperating | B142: 0 | C142: 0 | D142: 0 | E142: 0 | F142: 0 | G142: 0 | H142: 0
A143: nibclOther | B143: 7545000000 | C143: 7196000000 | D143: 6423000000 | E143: 6870000000 | F143: 6812000000 | G143: 7922000000 | H143: 8416000000
A144: nibclRestructuring | B144: 0 | C144: 0 | D144: 0 | E144: 0 | F144: 0 | G144: 0 | H144: 0
A145: nibclRevenueDeferred | B145: 0 | C145: 0 | D145: 0 | E145: 0 | F145: 0 | G145: 0 | H145: 0
A146: nibclRevenueDeferredTurnover | B146: 0 | C146: 0 | D146: 0 | E146: 0 | F146: 0 | G146: 0 | H146: 0
A147: nibclSeparateAccounts | B147: 0 | C147: 0 | D147: 0 | E147: 0 | F147: 0 | G147: 0 | H147: 0
A148: oci | B148: -5777000000 | C148: -10174000000 | D148: -11205000000 | E148: -10305000000 | F148: -12814000000 | G148: -13544000000 | H148: -14601000000
A149: periodEndDate | B149: 2014-12-31 | C149: 2015-12-31 | D149: 2016-12-31 | E149: 2017-12-31 | F149: 2018-12-31 | G149: 2019-12-31 | H149: 2020-12-31
A150: ppAndENet | B150: 14633000000 | C150: 12571000000 | D150: 10635000000 | E150: 8203000000 | F150: 8232000000 | G150: 10838000000 | H150: 10777000000
A151: pricePerEarnings | B151: 26.46928712 | C151: 25.74327302 | D151: 27.73951586 | E151: 158.9624359 | F151: 31.63780696 | G151: 26.76904709 | H151: 30.60195172
A152: pricePerEarningsPerRevenueYoyDeltaPercent | B152: -14.48822405 | C152: -6.949172961 | D152: -5.054274436 | E152: -10.31248172 | F152: -3.15220806 | G152: 1.576256495 | H152: -2.68206099
A153: profitGross | B153: 28109000000 | C153: 26812000000 | D153: 25398000000 | E153: 22154000000 | F153: 20086000000 | G153: 22647000000 | H153: 19581000000
A154: profitGrossPerRevenue | B154: 0.6110917866 | C154: 0.6053190048 | D154: 0.6066932614 | E154: 0.6256424739 | F154: 0.6305248619 | G154: 0.6077121237 | H154: 0.5931120131
A155: reportDate | B155: 2/25/2015 | C155: 2/25/2016 | D155: 2/24/2017 | E155: 2/23/2018 | F155: 2/21/2019 | G155: 2/24/2020 | H155: 2/25/2021
A156: researchAndDevelopmentExpense | B156: 0 | C156: 0 | D156: 0 | E156: 0 | F156: 0 | G156: 0 | H156: 0
A157: reserves | B157: 0 | C157: 0 | D157: 0 | E157: 0 | F157: 0 | G157: 0 | H157: 0
A158: reservesInventory | B158: 0 | C158: 0 | D158: 0 | E158: 0 | F158: 0 | G158: 0 | H158: 0
A159: reservesLifo | B159: 0 | C159: 0 | D159: 0 | E159: 0 | F159: 0 | G159: 0 | H159: 0
A160: reservesLoanLoss | B160: 0 | C160: 0 | D160: 0 | E160: 0 | F160: 0 | G160: 0 | H160: 0
A161: revenue | B161: 45998000000 | C161: 44294000000 | D161: 41863000000 | E161: 35410000000 | F161: 31856000000 | G161: 37266000000 | H161: 33014000000
A162: revenueCostOther | B162: 17889000000 | C162: 17482000000 | D162: 16465000000 | E162: 13256000000 | F162: 11770000000 | G162: 14619000000 | H162: 13433000000
A163: revenueIncomeInterest | B163: 0 | C163: 0 | D163: 0 | E163: 0 | F163: 0 | G163: 0 | H163: 0
A164: revenueOther | B164: 45998000000 | C164: 44294000000 | D164: 41863000000 | E164: 35410000000 | F164: 31856000000 | G164: 37266000000 | H164: 33014000000
A165: revenueSubsidiaryUnconsolidated | B165: 0 | C165: 0 | D165: 0 | E165: 0 | F165: 0 | G165: 0 | H165: 0
A166: salesCost | B166: 17889000000 | C166: 17482000000 | D166: 16465000000 | E166: 13256000000 | F166: 11770000000 | G166: 14619000000 | H166: 13433000000
A167: sharesIssued | B167: 7040000000 | C167: 7040000000 | D167: 7040000000 | E167: 7040000000 | F167: 7040000000 | G167: 7040000000 | H167: 7040000000
A168: sharesOutstandingPeDateBs | B168: 0 | C168: 0 | D168: 0 | E168: 0 | F168: 0 | G168: 0 | H168: 0
A169: sharesTreasury | B169: 2674000000 | C169: 2716000000 | D169: 2752000000 | E169: 2781000000 | F169: 2772000000 | G169: 2760000000 | H169: 2738000000
A170: stockCommon | B170: 14914000000 | C170: 15776000000 | D170: 16753000000 | E170: 17624000000 | F170: 18280000000 | G170: 18914000000 | H170: 19361000000
A171: stockPreferred | B171: 0 | C171: 0 | D171: 0 | E171: 0 | F171: 0 | G171: 0 | H171: 0
A172: stockPreferredEquity | B172: 0 | C172: 0 | D172: 0 | E172: 0 | F172: 0 | G172: 0 | H172: 0
A173: stockPreferredMezzanine | B173: 0 | C173: 0 | D173: 0 | E173: 0 | F173: 0 | G173: 0 | H173: 0
A174: stockTreasury | B174: -42225000000 | C174: -45066000000 | D174: -47988000000 | E174: -50677000000 | F174: -51719000000 | G174: -52244000000 | H174: -52016000000
A175: symbol | B175: KO | C175: KO | D175: KO | E175: KO | F175: KO | G175: KO | H175: KO
A176: wabso | B176: 4387000000 | C176: 4352000000 | D176: 4317000000 | E176: 4272000000 | F176: 4259000000 | G176: 4276000000 | H176: 4295000000
A177: wabsoSplitAdjusted | B177: 4387000000 | C177: 4352000000 | D177: 4317000000 | E177: 4272000000 | F177: 4259000000 | G177: 4276000000 | H177: 4295000000
A178: wadso | B178: 4450000000 | C178: 4405000000 | D178: 4367000000 | E178: 4324000000 | F178: 4299000000 | G178: 4314000000 | H178: 4323000000
A179: wadsoSplitAdjusted | B179: 4450000000 | C179: 4405000000 | D179: 4367000000 | E179: 4324000000 | F179: 4299000000 | G179: 4314000000 | H179: 4323000000
A180: id | B180: FUNDAMENTALS | C180: FUNDAMENTALS | D180: FUNDAMENTALS | E180: FUNDAMENTALS | F180: FUNDAMENTALS | G180: FUNDAMENTALS | H180: FUNDAMENTALS
A181: key | B181: KO | C181: KO | D181: KO | E181: KO | F181: KO | G181: KO | H181: KO
A182: subkey | B182: annual | C182: annual | D182: annual | E182: annual | F182: annual | G182: annual | H182: annual
A183: date | B183: 1419984000000 | C183: 1451520000000 | D183: 1483142400000 | E183: 1514678400000 | F183: 1546214400000 | G183: 1577750400000 | H183: 1609372800000
A184: updated | B184: 1619798864000 | C184: 1619798864000 | D184: 1619798864000 | E184: 1619798864000 | F184: 1619798864000 | G184: 1619798864000 | H184: 1619798864000
B186: =+B183/86400000+25569 -> 2014-12-31 | C186: 2015-12-31 | D186: 2016-12-31 | E186: 2017-12-31 | F186: 2018-12-31 | G186: 2019-12-31 | H186: 2020-12-31 | Y186: =+#REF!/86400000+25569 -> 
B187: 2021-04-30T16:07:44 | C187: 2021-04-30T16:07:44 | D187: 2021-04-30T16:07:44 | E187: 2021-04-30T16:07:44 | F187: 2021-04-30T16:07:44 | G187: 2021-04-30T16:07:44 | H187: 2021-04-30T16:07:44 | Y187: =+#REF!/86400000+25569 -> 

Sheet Dividends (hidden)
A1: paymentDate | B1: amount | C1: currency | D1: description | E1: flag | F1: frequency | G1: date | H1: symbol | I1: declaredDate | J1: exDate | K1: recordDate | L1: Year | M1: Quarter | N1: DayOfWeek | O1: Month | P1: YearQuarter
A2: 2016-04-01 | B2: 0.35 | C2: USD | D2: Ordinary Shares | E2: Cash | F2: quarterly | G2: 2016-03-11 | H2: KO | I2: 2016-02-18 | J2: 2016-03-11 | K2: 2016-03-15 | L2: 2016 | M2: 2 | N2: 5 | O2: 4 | P2: 2016Q2
A3: 2016-07-01 | B3: 0.35 | C3: USD | D3: Ordinary Shares | E3: Cash | F3: quarterly | G3: 2016-06-13 | H3: KO | I3: 2016-04-28 | J3: 2016-06-13 | K3: 2016-06-15 | L3: 2016 | M3: 3 | N3: 5 | O3: 7 | P3: 2016Q3
A4: 2016-10-03 | B4: 0.35 | C4: USD | D4: Ordinary Shares | E4: Cash | F4: quarterly | G4: 2016-09-13 | H4: KO | I4: 2016-07-21 | J4: 2016-09-13 | K4: 2016-09-15 | L4: 2016 | M4: 4 | N4: 1 | O4: 10 | P4: 2016Q4
A5: 2016-12-15 | B5: 0.35 | C5: USD | D5: Ordinary Shares | E5: Cash | F5: quarterly | G5: 2016-11-29 | H5: KO | I5: 2016-10-20 | J5: 2016-11-29 | K5: 2016-12-01 | L5: 2016 | M5: 4 | N5: 4 | O5: 12 | P5: 2016Q4
A6: 2017-04-03 | B6: 0.37 | C6: USD | D6: Ordinary Shares | E6: Cash | F6: quarterly | G6: 2017-03-13 | H6: KO | I6: 2017-02-16 | J6: 2017-03-13 | K6: 2017-03-15 | L6: 2017 | M6: 2 | N6: 1 | O6: 4 | P6: 2017Q2
A7: 2017-07-03 | B7: 0.37 | C7: USD | D7: Ordinary Shares | E7: Cash | F7: quarterly | G7: 2017-06-13 | H7: KO | I7: 2017-04-27 | J7: 2017-06-13 | K7: 2017-06-15 | L7: 2017 | M7: 3 | N7: 1 | O7: 7 | P7: 2017Q3
A8: 2017-10-02 | B8: 0.37 | C8: USD | D8: Ordinary Shares | E8: Cash | F8: quarterly | G8: 2017-09-14 | H8: KO | I8: 2017-07-20 | J8: 2017-09-14 | K8: 2017-09-15 | L8: 2017 | M8: 4 | N8: 1 | O8: 10 | P8: 2017Q4
A9: 2017-12-15 | B9: 0.37 | C9: USD | D9: Ordinary Shares | E9: Cash | F9: quarterly | G9: 2017-11-30 | H9: KO | I9: 2017-10-19 | J9: 2017-11-30 | K9: 2017-12-01 | L9: 2017 | M9: 4 | N9: 5 | O9: 12 | P9: 2017Q4
A10: 2018-04-02 | B10: 0.39 | C10: USD | D10: Ordinary Shares | E10: Cash | F10: quarterly | G10: 2018-03-14 | H10: KO | I10: 2018-02-15 | J10: 2018-03-14 | K10: 2018-03-15 | L10: 2018 | M10: 2 | N10: 1 | O10: 4 | P10: 2018Q2
A11: 2018-07-02 | B11: 0.39 | C11: USD | D11: Ordinary Shares | E11: Cash | F11: quarterly | G11: 2018-06-14 | H11: KO | I11: 2018-04-26 | J11: 2018-06-14 | K11: 2018-06-15 | L11: 2018 | M11: 3 | N11: 1 | O11: 7 | P11: 2018Q3
A12: 2018-10-01 | B12: 0.39 | C12: USD | D12: Ordinary Shares | E12: Cash | F12: quarterly | G12: 2018-09-13 | H12: KO | I12: 2018-07-19 | J12: 2018-09-13 | K12: 2018-09-14 | L12: 2018 | M12: 4 | N12: 1 | O12: 10 | P12: 2018Q4
A13: 2018-12-14 | B13: 0.39 | C13: USD | D13: Ordinary Shares | E13: Cash | F13: quarterly | G13: 2018-11-29 | H13: KO | I13: 2018-10-18 | J13: 2018-11-29 | K13: 2018-11-30 | L13: 2018 | M13: 4 | N13: 5 | O13: 12 | P13: 2018Q4
A14: 2019-04-01 | B14: 0.4 | C14: USD | D14: Ordinary Shares | E14: Cash | F14: quarterly | G14: 2019-03-14 | H14: KO | I14: 2019-02-21 | J14: 2019-03-14 | K14: 2019-03-15 | L14: 2019 | M14: 2 | N14: 1 | O14: 4 | P14: 2019Q2
A15: 2019-07-01 | B15: 0.4 | C15: USD | D15: Ordinary Shares | E15: Cash | F15: quarterly | G15: 2019-06-13 | H15: KO | I15: 2019-04-25 | J15: 2019-06-13 | K15: 2019-06-14 | L15: 2019 | M15: 3 | N15: 1 | O15: 7 | P15: 2019Q3
A16: 2019-10-01 | B16: 0.4 | C16: USD | D16: Ordinary Shares | E16: Cash | F16: quarterly | G16: 2019-09-13 | H16: KO | I16: 2019-07-18 | J16: 2019-09-13 | K16: 2019-09-16 | L16: 2019 | M16: 4 | N16: 2 | O16: 10 | P16: 2019Q4
A17: 2019-12-16 | B17: 0.4 | C17: USD | D17: Ordinary Shares | E17: Cash | F17: quarterly | G17: 2019-11-29 | H17: KO | I17: 2019-10-17 | J17: 2019-11-29 | K17: 2019-12-02 | L17: 2019 | M17: 4 | N17: 1 | O17: 12 | P17: 2019Q4
A18: 2020-04-01 | B18: 0.41 | C18: USD | D18: Ordinary Shares | E18: Cash | F18: quarterly | G18: 2020-03-13 | H18: KO | I18: 2020-02-20 | J18: 2020-03-13 | K18: 2020-03-16 | L18: 2020 | M18: 2 | N18: 3 | O18: 4 | P18: 2020Q2
A19: 2020-07-01 | B19: 0.41 | C19: USD | D19: Ordinary Shares | E19: Cash | F19: quarterly | G19: 2020-06-12 | H19: KO | I19: 2020-04-22 | J19: 2020-06-12 | K19: 2020-06-15 | L19: 2020 | M19: 3 | N19: 3 | O19: 7 | P19: 2020Q3
A20: 2020-10-01 | B20: 0.41 | C20: USD | D20: Ordinary Shares | E20: Cash | F20: quarterly | G20: 2020-09-14 | H20: KO | I20: 2020-07-16 | J20: 2020-09-14 | K20: 2020-09-15 | L20: 2020 | M20: 4 | N20: 4 | O20: 10 | P20: 2020Q4
A21: 2020-12-15 | B21: 0.41 | C21: USD | D21: Ordinary Shares | E21: Cash | F21: quarterly | G21: 2020-11-30 | H21: KO | I21: 2020-10-15 | J21: 2020-11-30 | K21: 2020-12-01 | L21: 2020 | M21: 4 | N21: 2 | O21: 12 | P21: 2020Q4
A22: 2021-04-01 | B22: 0.42 | C22: USD | D22: Ordinary Shares | E22: Cash | F22: quarterly | G22: 2021-03-12 | H22: KO | I22: 2021-02-18 | J22: 2021-03-12 | K22: 2021-03-15 | L22: 2021 | M22: 2 | N22: 4 | O22: 4 | P22: 2021Q2
A23: 2021-07-01 | B23: 0.42 | C23: USD | D23: Ordinary Shares | E23: Cash | F23: quarterly | G23: 2021-06-14 | H23: KO | I23: 2021-04-21 | J23: 2021-06-14 | K23: 2021-06-15 | L23: 2021 | M23: 3 | N23: 4 | O23: 7 | P23: 2021Q3

Sheet Price_Vol (hidden)
A1: date | B1: Price | C1: Volume (m) | D1: symbol
A2: 2013-06-27 | B2: 40.26 | C2: 11.46135 | D2: KO
A3: 2013-06-28 | B3: 40.11 | C3: 16.319518 | D3: KO
A4: 2013-07-01 | B4: 40.46 | C4: 10.754583 | D4: KO
A5: 2013-07-02 | B5: 40.37 | C5: 12.248784 | D5: KO
A6: 2013-07-03 | B6: 40.49 | C6: 5.264817 | D6: KO
A7: 2013-07-04 | B7: 40.49 | C7: 5.264817 | D7: KO
A8: 2013-07-05 | B8: 40.52 | C8: 10.40225 | D8: KO
A9: 2013-07-08 | B9: 40.54 | C9: 9.936974 | D9: KO
A10: 2013-07-09 | B10: 40.83 | C10: 8.762106 | D10: KO
A11: 2013-07-10 | B11: 40.68 | C11: 9.541546 | D11: KO
A12: 2013-07-11 | B12: 41.03 | C12: 13.489716 | D12: KO
A13: 2013-07-12 | B13: 41.03 | C13: 10.686347 | D13: KO
A14: 2013-07-15 | B14: 41.01 | C14: 11.42336 | D14: KO
A15: 2013-07-16 | B15: 40.23 | C15: 33.581325 | D15: KO
A16: 2013-07-17 | B16: 40.84 | C16: 18.516852 | D16: KO
A17: 2013-07-18 | B17: 40.81 | C17: 9.708855 | D17: KO
A18: 2013-07-19 | B18: 41.09 | C18: 11.408605 | D18: KO
A19: 2013-07-22 | B19: 40.84 | C19: 9.427675 | D19: KO
A20: 2013-07-23 | B20: 40.96 | C20: 9.405642 | D20: KO
A21: 2013-07-24 | B21: 40.86 | C21: 10.512444 | D21: KO
A22: 2013-07-25 | B22: 40.84 | C22: 9.148367 | D22: KO
A23: 2013-07-26 | B23: 40.64 | C23: 12.27965 | D23: KO
A24: 2013-07-29 | B24: 40.28 | C24: 10.132339 | D24: KO
A25: 2013-07-30 | B25: 40.32 | C25: 10.769816 | D25: KO
A26: 2013-07-31 | B26: 40.08 | C26: 13.557988 | D26: KO
A27: 2013-08-01 | B27: 40.57 | C27: 12.001513 | D27: KO
A28: 2013-08-02 | B28: 40.22 | C28: 25.516983 | D28: KO
A29: 2013-08-05 | B29: 40.29 | C29: 9.933155 | D29: KO
A30: 2013-08-06 | B30: 40.37 | C30: 8.646231 | D30: KO
A31: 2013-08-07 | B31: 40.15 | C31: 9.306078 | D31: KO
A32: 2013-08-08 | B32: 40.2 | C32: 9.481129 | D32: KO
A33: 2013-08-09 | B33: 40.16 | C33: 9.021737 | D33: KO
A34: 2013-08-12 | B34: 39.83 | C34: 13.970568 | D34: KO
A35: 2013-08-13 | B35: 39.65 | C35: 13.548896 | D35: KO
A36: 2013-08-14 | B36: 39.53 | C36: 13.793185 | D36: KO
A37: 2013-08-15 | B37: 39.09 | C37: 14.229747 | D37: KO
A38: 2013-08-16 | B38: 39.05 | C38: 20.57007 | D38: KO
A39: 2013-08-19 | B39: 38.78 | C39: 11.920345 | D39: KO
A40: 2013-08-20 | B40: 38.65 | C40: 10.238163 | D40: KO
A41: 2013-08-21 | B41: 38.28 | C41: 15.800303 | D41: KO
A42: 2013-08-22 | B42: 38.31 | C42: 10.309257 | D42: KO
A43: 2013-08-23 | B43: 38.52 | C43: 11.303083 | D43: KO
A44: 2013-08-26 | B44: 38.12 | C44: 12.740595 | D44: KO
A45: 2013-08-27 | B45: 38.15 | C45: 16.742431 | D45: KO
A46: 2013-08-28 | B46: 38.35 | C46: 19.245419 | D46: KO
A47: 2013-08-29 | B47: 38.1 | C47: 14.217637 | D47: KO
A48: 2013-08-30 | B48: 38.18 | C48: 14.296781 | D48: KO
A49: 2013-09-03 | B49: 37.9 | C49: 19.069017 | D49: KO
A50: 2013-09-04 | B50: 38.54 | C50: 19.144161 | D50: KO
A51: 2013-09-05 | B51: 38.24 | C51: 14.29108 | D51: KO
A52: 2013-09-06 | B52: 38.35 | C52: 13.977744 | D52: KO
A53: 2013-09-09 | B53: 38.52 | C53: 10.608582 | D53: KO
A54: 2013-09-10 | B54: 38.63 | C54: 11.759743 | D54: KO
A55: 2013-09-11 | B55: 38.78 | C55: 11.997644 | D55: KO
A56: 2013-09-12 | B56: 38.44 | C56: 12.11431 | D56: KO
A57: 2013-09-13 | B57: 38.69 | C57: 11.623631 | D57: KO
A58: 2013-09-16 | B58: 38.86 | C58: 13.400179 | D58: KO
A59: 2013-09-17 | B59: 38.79 | C59: 12.883282 | D59: KO
A60: 2013-09-18 | B60: 39.59 | C60: 18.085571 | D60: KO
A61: 2013-09-19 | B61: 39.31 | C61: 14.254642 | D61: KO
A62: 2013-09-20 | B62: 39.4 | C62: 30.69854 | D62: KO
A63: 2013-09-23 | B63: 38.63 | C63: 19.017398 | D63: KO
A64: 2013-09-24 | B64: 38.53 | C64: 15.083286 | D64: KO
A65: 2013-09-25 | B65: 38.33 | C65: 11.44622 | D65: KO
A66: 2013-09-26 | B66: 38.74 | C66: 10.941177 | D66: KO
A67: 2013-09-27 | B67: 38.4 | C67: 12.610159 | D67: KO
A68: 2013-09-30 | B68: 37.88 | C68: 18.104384 | D68: KO
A69: 2013-10-01 | B69: 37.95 | C69: 13.19599 | D69: KO
A70: 2013-10-02 | B70: 37.43 | C70: 25.670796 | D70: KO
A71: 2013-10-03 | B71: 37.16 | C71: 14.437945 | D71: KO
A72: 2013-10-04 | B72: 37.2 | C72: 17.21913 | D72: KO
A73: 2013-10-07 | B73: 37.05 | C73: 16.708632 | D73: KO
A74: 2013-10-08 | B74: 37.28 | C74: 20.471333 | D74: KO
A75: 2013-10-09 | B75: 37.08 | C75: 19.001966 | D75: KO
A76: 2013-10-10 | B76: 37.78 | C76: 17.177894 | D76: KO
A77: 2013-10-11 | B77: 37.77 | C77: 14.266861 | D77: KO
A78: 2013-10-14 | B78: 37.91 | C78: 14.2029 | D78: KO
A79: 2013-10-15 | B79: 37.66 | C79: 21.676647 | D79: KO
A80: 2013-10-16 | B80: 38 | C80: 17.996947 | D80: KO
A81: 2013-10-17 | B81: 38.55 | C81: 15.900176 | D81: KO
A82: 2013-10-18 | B82: 38.78 | C82: 18.897288 | D82: KO
A83: 2013-10-21 | B83: 38.82 | C83: 12.977494 | D83: KO
A84: 2013-10-22 | B84: 39.09 | C84: 17.110211 | D84: KO
A85: 2013-10-23 | B85: 39.09 | C85: 12.601279 | D85: KO
A86: 2013-10-24 | B86: 38.8 | C86: 17.143771 | D86: KO
A87: 2013-10-25 | B87: 39.03 | C87: 14.391341 | D87: KO
A88: 2013-10-28 | B88: 39.61 | C88: 16.552094 | D88: KO
A89: 2013-10-29 | B89: 39.8 | C89: 14.199602 | D89: KO
A90: 2013-10-30 | B90: 39.62 | C90: 12.359952 | D90: KO
A91: 2013-10-31 | B91: 39.57 | C91: 14.853535 | D91: KO
A92: 2013-11-01 | B92: 39.61 | C92: 12.430394 | D92: KO
A93: 2013-11-04 | B93: 39.51 | C93: 10.253227 | D93: KO
A94: 2013-11-05 | B94: 39.5 | C94: 10.582003 | D94: KO
A95: 2013-11-06 | B95: 40.05 | C95: 17.197998 | D95: KO
A96: 2013-11-07 | B96: 39.83 | C96: 16.233163 | D96: KO
A97: 2013-11-08 | B97: 40.05 | C97: 11.903577 | D97: KO
A98: 2013-11-11 | B98: 39.87 | C98: 9.568206 | D98: KO
A99: 2013-11-12 | B99: 39.88 | C99: 10.509186 | D99: KO
A100: 2013-11-13 | B100: 40.12 | C100: 11.771162 | D100: KO
A101: 2013-11-14 | B101: 40.21 | C101: 10.894366 | D101: KO
A102: 2013-11-15 | B102: 40.22 | C102: 12.021512 | D102: KO
A103: 2013-11-18 | B103: 40.17 | C103: 9.553863 | D103: KO
A104: 2013-11-19 | B104: 40.14 | C104: 11.014819 | D104: KO
A105: 2013-11-20 | B105: 40.06 | C105: 14.422486 | D105: KO
A106: 2013-11-21 | B106: 40.43 | C106: 26.364544 | D106: KO
A107: 2013-11-22 | B107: 40.43 | C107: 26.397103 | D107: KO
A108: 2013-11-25 | B108: 40.37 | C108: 14.059132 | D108: KO
A109: 2013-11-26 | B109: 40.25 | C109: 14.240538 | D109: KO
A110: 2013-11-27 | B110: 40.19 | C110: 9.909068 | D110: KO
A111: 2013-11-29 | B111: 40.19 | C111: 9.909068 | D111: KO
A112: 2013-12-02 | B112: 40.08 | C112: 16.73968 | D112: KO
A113: 2013-12-03 | B113: 40.35 | C113: 16.592298 | D113: KO
A114: 2013-12-04 | B114: 40.37 | C114: 13.196116 | D114: KO
A115: 2013-12-05 | B115: 39.83 | C115: 18.171207 | D115: KO
A116: 2013-12-06 | B116: 40.46 | C116: 12.557216 | D116: KO
A117: 2013-12-09 | B117: 40.4 | C117: 12.237657 | D117: KO
A118: 2013-12-10 | B118: 39.85 | C118: 15.967788 | D118: KO
A119: 2013-12-11 | B119: 40.13 | C119: 14.963476 | D119: KO
A120: 2013-12-12 | B120: 39.21 | C120: 19.817651 | D120: KO
A121: 2013-12-13 | B121: 39.23 | C121: 14.03738 | D121: KO
A122: 2013-12-16 | B122: 39.27 | C122: 14.562149 | D122: KO
A123: 2013-12-17 | B123: 39.1 | C123: 17.664055 | D123: KO
A124: 2013-12-18 | B124: 40.02 | C124: 23.887038 | D124: KO
A125: 2013-12-19 | B125: 39.86 | C125: 14.791981 | D125: KO
A126: 2013-12-20 | B126: 40.04 | C126: 22.244802 | D126: KO
A127: 2013-12-23 | B127: 40.16 | C127: 10.952475 | D127: KO
A128: 2013-12-24 | B128: 40.19 | C128: 4.783757 | D128: KO
A129: 2013-12-26 | B129: 40.49 | C129: 8.588472 | D129: KO
A130: 2013-12-27 | B130: 40.66 | C130: 6.762203 | D130: KO
A131: 2013-12-30 | B131: 41.09 | C131: 10.927592 | D131: KO
A132: 2013-12-31 | B132: 41.31 | C132: 11.73017 | D132: KO
A133: 2014-01-02 | B133: 40.66 | C133: 12.720197 | D133: KO
A134: 2014-01-03 | B134: 40.46 | C134: 10.403834 | D134: KO
A135: 2014-01-06 | B135: 40.27 | C135: 11.041224 | D135: KO
A136: 2014-01-07 | B136: 40.39 | C136: 11.879587 | D136: KO
A137: 2014-01-08 | B137: 39.94 | C137: 15.357527 | D137: KO
A138: 2014-01-09 | B138: 39.73 | C138: 14.074835 | D138: KO
A139: 2014-01-10 | B139: 40.13 | C139: 13.314525 | D139: KO
A140: 2014-01-13 | B140: 39.53 | C140: 14.136793 | D140: KO
A141: 2014-01-14 | B141: 39.69 | C141: 12.808195 | D141: KO
A142: 2014-01-15 | B142: 39.76 | C142: 12.845194 | D142: KO
A143: 2014-01-16 | B143: 39.71 | C143: 11.076882 | D143: KO
A144: 2014-01-17 | B144: 39.28 | C144: 14.027351 | D144: KO
A145: 2014-01-21 | B145: 39.92 | C145: 17.590424 | D145: KO
A146: 2014-01-22 | B146: 39.9 | C146: 9.856355 | D146: KO
A147: 2014-01-23 | B147: 39.24 | C147: 14.867404 | D147: KO
A148: 2014-01-24 | B148: 38.84 | C148: 16.533729 | D148: KO
A149: 2014-01-27 | B149: 38.73 | C149: 14.603927 | D149: KO
A150: 2014-01-28 | B150: 38.87 | C150: 8.931212 | D150: KO
A151: 2014-01-29 | B151: 37.9 | C151: 23.776371 | D151: KO
A152: 2014-01-30 | B152: 38.17 | C152: 13.663569 | D152: KO
A153: 2014-01-31 | B153: 37.82 | C153: 16.185576 | D153: KO
A154: 2014-02-03 | B154: 37.2 | C154: 23.195836 | D154: KO
A155: 2014-02-04 | B155: 37.48 | C155: 17.797978 | D155: KO
A156: 2014-02-05 | B156: 37.61 | C156: 13.716618 | D156: KO
A157: 2014-02-06 | B157: 38.03 | C157: 22.665049 | D157: KO
A158: 2014-02-07 | B158: 37.95 | C158: 20.495016 | D158: KO
A159: 2014-02-10 | B159: 38.57 | C159: 20.915498 | D159: KO
A160: 2014-02-11 | B160: 38.64 | C160: 15.417558 | D160: KO
A161: 2014-02-12 | B161: 38.51 | C161: 10.633637 | D161: KO
A162: 2014-02-13 | B162: 38.65 | C162: 10.449553 | D162: KO
A163: 2014-02-14 | B163: 38.93 | C163: 16.047482 | D163: KO
A164: 2014-02-18 | B164: 37.47 | C164: 46.195701 | D164: KO
A165: 2014-02-19 | B165: 37.1 | C165: 26.650629 | D165: KO
A166: 2014-02-20 | B166: 37.3 | C166: 22.652321 | D166: KO
A167: 2014-02-21 | B167: 37.18 | C167: 19.440449 | D167: KO
A168: 2014-02-24 | B168: 37.5 | C168: 24.225051 | D168: KO
A169: 2014-02-25 | B169: 37.77 | C169: 22.879234 | D169: KO
A170: 2014-02-26 | B170: 37.87 | C170: 18.20251 | D170: KO
A171: 2014-02-27 | B171: 38.07 | C171: 18.441483 | D171: KO
A172: 2014-02-28 | B172: 38.2 | C172: 15.765571 | D172: KO
A173: 2014-03-03 | B173: 38.12 | C173: 18.732279 | D173: KO
A174: 2014-03-04 | B174: 38.31 | C174: 20.456788 | D174: KO
A175: 2014-03-05 | B175: 38.35 | C175: 14.367749 | D175: KO
A176: 2014-03-06 | B176: 38.47 | C176: 14.740674 | D176: KO
A177: 2014-03-07 | B177: 38.55 | C177: 17.074233 | D177: KO
A178: 2014-03-10 | B178: 38.65 | C178: 14.541439 | D178: KO
A179: 2014-03-11 | B179: 38.8 | C179: 13.845663 | D179: KO
A180: 2014-03-12 | B180: 38.47 | C180: 15.692277 | D180: KO
A181: 2014-03-13 | B181: 37.97 | C181: 18.302808 | D181: KO
A182: 2014-03-14 | B182: 38.17 | C182: 14.687231 | D182: KO
A183: 2014-03-17 | B183: 38.27 | C183: 19.202973 | D183: KO
A184: 2014-03-18 | B184: 38.4 | C184: 16.880363 | D184: KO
A185: 2014-03-19 | B185: 38.14 | C185: 20.882157 | D185: KO
A186: 2014-03-20 | B186: 38.45 | C186: 13.227981 | D186: KO
A187: 2014-03-21 | B187: 38.44 | C187: 19.210757 | D187: KO
A188: 2014-03-24 | B188: 38.4 | C188: 15.693042 | D188: KO
A189: 2014-03-25 | B189: 38.62 | C189: 16.898937 | D189: KO
A190: 2014-03-26 | B190: 38.61 | C190: 15.835535 | D190: KO
A191: 2014-03-27 | B191: 38.82 | C191: 13.031474 | D191: KO
A192: 2014-03-28 | B192: 38.95 | C192: 11.502051 | D192: KO
A193: 2014-03-31 | B193: 38.66 | C193: 24.489838 | D193: KO
A194: 2014-04-01 | B194: 38.41 | C194: 20.516452 | D194: KO
A195: 2014-04-02 | B195: 38.33 | C195: 15.709122 | D195: KO
A196: 2014-04-03 | B196: 38.07 | C196: 18.113991 | D196: KO
A197: 2014-04-04 | B197: 38.22 | C197: 15.391577 | D197: KO
A198: 2014-04-07 | B198: 38.62 | C198: 17.295654 | D198: KO
A199: 2014-04-08 | B199: 38.9 | C199: 14.770515 | D199: KO
A200: 2014-04-09 | B200: 38.99 | C200: 12.03136 | D200: KO
... 1789 more rows

Sheet Price_Dividend (hidden)
A1: symbol | B1: date | C1: Price | D1: Volume (m) | E1: paymentDate | F1: Dividend | G1: currency | H1: description | I1: frequency | J1: Year | K1: Quarter | L1: DayOfWeek
A2: KO | B2: 2017-01-09 | C2: 41.32 | D2: 14.822501
A3: KO | B3: 2017-01-10 | C3: 41.04 | D3: 19.706782
A4: KO | B4: 2017-01-11 | C4: 41.05 | D4: 9.266213
A5: KO | B5: 2017-01-12 | C5: 40.95 | D5: 8.541181
A6: KO | B6: 2017-01-13 | C6: 40.88 | D6: 8.123494
A7: KO | B7: 2017-01-17 | C7: 41.22 | D7: 12.469432
A8: KO | B8: 2017-01-18 | C8: 41.29 | D8: 10.390485
A9: KO | B9: 2017-01-19 | C9: 41.14 | D9: 10.987072
A10: KO | B10: 2017-01-20 | C10: 41.32 | D10: 14.695409
A11: KO | B11: 2017-01-23 | C11: 41.43 | D11: 11.628909
A12: KO | B12: 2017-01-24 | C12: 41.9 | D12: 17.040102
A13: KO | B13: 2017-01-25 | C13: 42.12 | D13: 12.538163
A14: KO | B14: 2017-01-26 | C14: 41.81 | D14: 8.977135
A15: KO | B15: 2017-01-27 | C15: 41.45 | D15: 12.967361
A16: KO | B16: 2017-01-30 | C16: 41.38 | D16: 11.626225
A17: KO | B17: 2017-01-31 | C17: 41.57 | D17: 12.677977
A18: KO | B18: 2017-02-01 | C18: 41.26 | D18: 11.136077
A19: KO | B19: 2017-02-02 | C19: 41.4 | D19: 9.459722
A20: KO | B20: 2017-02-03 | C20: 41.54 | D20: 11.882373
A21: KO | B21: 2017-02-06 | C21: 41.56 | D21: 15.742824
A22: KO | B22: 2017-02-07 | C22: 41.9 | D22: 13.315185
A23: KO | B23: 2017-02-08 | C23: 42.02 | D23: 14.219667
A24: KO | B24: 2017-02-09 | C24: 41.25 | D24: 27.240268
A25: KO | B25: 2017-02-10 | C25: 40.58 | D25: 28.847307
A26: KO | B26: 2017-02-13 | C26: 40.62 | D26: 23.617075
A27: KO | B27: 2017-02-14 | C27: 40.53 | D27: 32.177836
A28: KO | B28: 2017-02-15 | C28: 40.44 | D28: 26.600788
A29: KO | B29: 2017-02-16 | C29: 41.2 | D29: 22.214839
A30: KO | B30: 2017-02-17 | C30: 41.23 | D30: 15.065148
A31: KO | B31: 2017-02-21 | C31: 41.46 | D31: 17.072551
A32: KO | B32: 2017-02-22 | C32: 41.6 | D32: 11.186823
A33: KO | B33: 2017-02-23 | C33: 41.66 | D33: 12.856844
A34: KO | B34: 2017-02-24 | C34: 41.78 | D34: 13.215306
A35: KO | B35: 2017-02-27 | C35: 41.67 | D35: 12.186364
A36: KO | B36: 2017-02-28 | C36: 41.96 | D36: 15.946816
A37: KO | B37: 2017-03-01 | C37: 42.16 | D37: 14.662016
A38: KO | B38: 2017-03-02 | C38: 42.47 | D38: 15.507623
A39: KO | B39: 2017-03-03 | C39: 42.48 | D39: 11.74303
A40: KO | B40: 2017-03-06 | C40: 42.18 | D40: 16.307783
A41: KO | B41: 2017-03-07 | C41: 41.99 | D41: 11.273704
A42: KO | B42: 2017-03-08 | C42: 41.99 | D42: 14.641689
A43: KO | B43: 2017-03-09 | C43: 42.03 | D43: 14.496447
A44: KO | B44: 2017-03-10 | C44: 42.29 | D44: 16.369676
A45: KO | B45: 2017-03-13 | C45: 42.03 | D45: 12.831543 | E45: 2017-04-03 | F45: 0.37 | G45: USD | H45: Ordinary Shares | I45: quarterly | J45: 2017 | K45: 2 | L45: 1
A46: KO | B46: 2017-03-14 | C46: 41.97 | D46: 9.844453
A47: KO | B47: 2017-03-15 | C47: 42.12 | D47: 22.757762
A48: KO | B48: 2017-03-16 | C48: 42.25 | D48: 16.004192
A49: KO | B49: 2017-03-17 | C49: 42.03 | D49: 37.526506
A50: KO | B50: 2017-03-20 | C50: 42.18 | D50: 11.484233
A51: KO | B51: 2017-03-21 | C51: 42.5 | D51: 17.187257
A52: KO | B52: 2017-03-22 | C52: 42.38 | D52: 11.605453
A53: KO | B53: 2017-03-23 | C53: 42.17 | D53: 11.503322
A54: KO | B54: 2017-03-24 | C54: 42.12 | D54: 13.804411
A55: KO | B55: 2017-03-27 | C55: 42.32 | D55: 12.387364
A56: KO | B56: 2017-03-28 | C56: 42.43 | D56: 14.123756
A57: KO | B57: 2017-03-29 | C57: 42.42 | D57: 9.58006
A58: KO | B58: 2017-03-30 | C58: 42.6 | D58: 11.99991
A59: KO | B59: 2017-03-31 | C59: 42.44 | D59: 11.551767
A60: KO | B60: 2017-04-03 | C60: 42.41 | D60: 11.240037
A61: KO | B61: 2017-04-04 | C61: 42.68 | D61: 10.94623
A62: KO | B62: 2017-04-05 | C62: 42.57 | D62: 10.142817
A63: KO | B63: 2017-04-06 | C63: 42.67 | D63: 14.597765
A64: KO | B64: 2017-04-07 | C64: 42.61 | D64: 11.028772
A65: KO | B65: 2017-04-10 | C65: 42.69 | D65: 9.426908
A66: KO | B66: 2017-04-11 | C66: 42.66 | D66: 8.909379
A67: KO | B67: 2017-04-12 | C67: 42.94 | D67: 13.417205
A68: KO | B68: 2017-04-13 | C68: 42.79 | D68: 9.891941
A69: KO | B69: 2017-04-17 | C69: 43.07 | D69: 11.318086
A70: KO | B70: 2017-04-18 | C70: 43.48 | D70: 13.18159
A71: KO | B71: 2017-04-19 | C71: 43.23 | D71: 13.893062
A72: KO | B72: 2017-04-20 | C72: 43.09 | D72: 10.838274
A73: KO | B73: 2017-04-21 | C73: 43.07 | D73: 13.833772
A74: KO | B74: 2017-04-24 | C74: 43.28 | D74: 16.7038
A75: KO | B75: 2017-04-25 | C75: 43.11 | D75: 18.745112
A76: KO | B76: 2017-04-26 | C76: 43.24 | D76: 13.626625
A77: KO | B77: 2017-04-27 | C77: 43.01 | D77: 10.386244
A78: KO | B78: 2017-04-28 | C78: 43.15 | D78: 10.337768
A79: KO | B79: 2017-05-01 | C79: 43.22 | D79: 13.208246
A80: KO | B80: 2017-05-02 | C80: 43.39 | D80: 11.823916
A81: KO | B81: 2017-05-03 | C81: 43.32 | D81: 10.389027
A82: KO | B82: 2017-05-04 | C82: 43.66 | D82: 10.193084
A83: KO | B83: 2017-05-05 | C83: 43.69 | D83: 8.133039
A84: KO | B84: 2017-05-08 | C84: 43.89 | D84: 14.284342
A85: KO | B85: 2017-05-09 | C85: 43.51 | D85: 8.694355
A86: KO | B86: 2017-05-10 | C86: 43.57 | D86: 7.597653
A87: KO | B87: 2017-05-11 | C87: 43.67 | D87: 6.860135
A88: KO | B88: 2017-05-12 | C88: 43.59 | D88: 7.275825
A89: KO | B89: 2017-05-15 | C89: 43.73 | D89: 8.493046
A90: KO | B90: 2017-05-16 | C90: 43.85 | D90: 10.454121
A91: KO | B91: 2017-05-17 | C91: 43.93 | D91: 14.538754
A92: KO | B92: 2017-05-18 | C92: 43.8 | D92: 13.832197
A93: KO | B93: 2017-05-19 | C93: 43.9 | D93: 11.796762
A94: KO | B94: 2017-05-22 | C94: 44.18 | D94: 12.857913
A95: KO | B95: 2017-05-23 | C95: 44.39 | D95: 11.996138
A96: KO | B96: 2017-05-24 | C96: 45.03 | D96: 12.872039
A97: KO | B97: 2017-05-25 | C97: 45.41 | D97: 16.704206
A98: KO | B98: 2017-05-26 | C98: 45.39 | D98: 11.341383
A99: KO | B99: 2017-05-30 | C99: 45.43 | D99: 13.093537
A100: KO | B100: 2017-05-31 | C100: 45.47 | D100: 14.14804
A101: KO | B101: 2017-06-01 | C101: 45.79 | D101: 11.049283
A102: KO | B102: 2017-06-02 | C102: 45.89 | D102: 9.923724
A103: KO | B103: 2017-06-05 | C103: 45.99 | D103: 10.015163
A104: KO | B104: 2017-06-06 | C104: 45.98 | D104: 9.836725
A105: KO | B105: 2017-06-07 | C105: 45.51 | D105: 12.776279
A106: KO | B106: 2017-06-08 | C106: 45.13 | D106: 12.878998
A107: KO | B107: 2017-06-09 | C107: 45.32 | D107: 9.358824
A108: KO | B108: 2017-06-12 | C108: 45.33 | D108: 11.228502
A109: KO | B109: 2017-06-13 | C109: 45.03 | D109: 10.023358 | E109: 2017-07-03 | F109: 0.37 | G109: USD | H109: Ordinary Shares | I109: quarterly | J109: 2017 | K109: 3 | L109: 1
A110: KO | B110: 2017-06-14 | C110: 45.3 | D110: 11.49752
A111: KO | B111: 2017-06-15 | C111: 45.25 | D111: 9.908718
A112: KO | B112: 2017-06-16 | C112: 45.31 | D112: 27.025333
A113: KO | B113: 2017-06-19 | C113: 45.38 | D113: 7.624663
A114: KO | B114: 2017-06-20 | C114: 45.61 | D114: 14.920858
A115: KO | B115: 2017-06-21 | C115: 45.22 | D115: 9.515844
A116: KO | B116: 2017-06-22 | C116: 45.07 | D116: 7.4463
A117: KO | B117: 2017-06-23 | C117: 45.25 | D117: 9.544792
A118: KO | B118: 2017-06-26 | C118: 45.43 | D118: 7.747057
A119: KO | B119: 2017-06-27 | C119: 45.05 | D119: 11.432191
A120: KO | B120: 2017-06-28 | C120: 45.32 | D120: 9.21875
A121: KO | B121: 2017-06-29 | C121: 44.83 | D121: 9.283457
A122: KO | B122: 2017-06-30 | C122: 44.85 | D122: 9.352785
A123: KO | B123: 2017-07-03 | C123: 44.76 | D123: 6.43446
A124: KO | B124: 2017-07-05 | C124: 44.82 | D124: 6.853558
A125: KO | B125: 2017-07-06 | C125: 44.4 | D125: 13.113019
A126: KO | B126: 2017-07-07 | C126: 44.39 | D126: 9.566044
A127: KO | B127: 2017-07-10 | C127: 44.38 | D127: 9.671953
A128: KO | B128: 2017-07-11 | C128: 44.33 | D128: 10.300706
A129: KO | B129: 2017-07-12 | C129: 44.51 | D129: 7.737362
A130: KO | B130: 2017-07-13 | C130: 44.43 | D130: 6.371855
A131: KO | B131: 2017-07-14 | C131: 44.68 | D131: 8.558718
A132: KO | B132: 2017-07-17 | C132: 44.73 | D132: 7.189214
A133: KO | B133: 2017-07-18 | C133: 44.67 | D133: 9.037162
A134: KO | B134: 2017-07-19 | C134: 44.83 | D134: 6.986937
A135: KO | B135: 2017-07-20 | C135: 44.82 | D135: 7.430262
A136: KO | B136: 2017-07-21 | C136: 45.03 | D136: 8.54556
A137: KO | B137: 2017-07-24 | C137: 44.84 | D137: 9.103586
A138: KO | B138: 2017-07-25 | C138: 45.24 | D138: 14.096307
A139: KO | B139: 2017-07-26 | C139: 45.74 | D139: 13.608926
A140: KO | B140: 2017-07-27 | C140: 46.12 | D140: 15.195172
A141: KO | B141: 2017-07-28 | C141: 46.01 | D141: 11.94527
A142: KO | B142: 2017-07-31 | C142: 45.84 | D142: 13.622891
A143: KO | B143: 2017-08-01 | C143: 45.7 | D143: 10.30681
A144: KO | B144: 2017-08-02 | C144: 45.59 | D144: 10.187921
A145: KO | B145: 2017-08-03 | C145: 45.67 | D145: 14.2614
A146: KO | B146: 2017-08-04 | C146: 45.5 | D146: 9.523593
A147: KO | B147: 2017-08-07 | C147: 45.64 | D147: 6.226315
A148: KO | B148: 2017-08-08 | C148: 45.6 | D148: 5.747919
A149: KO | B149: 2017-08-09 | C149: 45.59 | D149: 9.63526
A150: KO | B150: 2017-08-10 | C150: 45.74 | D150: 8.901554
A151: KO | B151: 2017-08-11 | C151: 45.59 | D151: 8.357607
A152: KO | B152: 2017-08-14 | C152: 45.8 | D152: 8.421179
A153: KO | B153: 2017-08-15 | C153: 46.19 | D153: 9.638061
A154: KO | B154: 2017-08-16 | C154: 46.2 | D154: 8.087313
A155: KO | B155: 2017-08-17 | C155: 45.86 | D155: 8.476994
A156: KO | B156: 2017-08-18 | C156: 45.67 | D156: 10.879794
A157: KO | B157: 2017-08-21 | C157: 45.68 | D157: 9.429736
A158: KO | B158: 2017-08-22 | C158: 45.6 | D158: 10.536716
A159: KO | B159: 2017-08-23 | C159: 45.54 | D159: 6.528402
A160: KO | B160: 2017-08-24 | C160: 45.41 | D160: 7.534364
A161: KO | B161: 2017-08-25 | C161: 45.57 | D161: 8.807143
A162: KO | B162: 2017-08-28 | C162: 45.42 | D162: 8.024028
A163: KO | B163: 2017-08-29 | C163: 45.45 | D163: 7.762162
A164: KO | B164: 2017-08-30 | C164: 45.39 | D164: 7.13491
A165: KO | B165: 2017-08-31 | C165: 45.55 | D165: 14.264572
A166: KO | B166: 2017-09-01 | C166: 45.78 | D166: 7.391249
A167: KO | B167: 2017-09-05 | C167: 45.92 | D167: 10.463902
A168: KO | B168: 2017-09-06 | C168: 45.96 | D168: 9.238867
A169: KO | B169: 2017-09-07 | C169: 46.28 | D169: 9.418365
A170: KO | B170: 2017-09-08 | C170: 46.3 | D170: 10.534915
A171: KO | B171: 2017-09-11 | C171: 46.52 | D171: 10.430254
A172: KO | B172: 2017-09-12 | C172: 46.72 | D172: 8.567619
A173: KO | B173: 2017-09-13 | C173: 46.87 | D173: 10.217985
A174: KO | B174: 2017-09-14 | C174: 46.11 | D174: 13.768837 | E174: 2017-10-02 | F174: 0.37 | G174: USD | H174: Ordinary Shares | I174: quarterly | J174: 2017 | K174: 4 | L174: 1
A175: KO | B175: 2017-09-15 | C175: 46.18 | D175: 16.141413
A176: KO | B176: 2017-09-18 | C176: 46.11 | D176: 8.535331
A177: KO | B177: 2017-09-19 | C177: 45.98 | D177: 7.297932
A178: KO | B178: 2017-09-20 | C178: 45.78 | D178: 11.026594
A179: KO | B179: 2017-09-21 | C179: 45.4 | D179: 7.555292
A180: KO | B180: 2017-09-22 | C180: 45.49 | D180: 8.024827
A181: KO | B181: 2017-09-25 | C181: 45.69 | D181: 9.215326
A182: KO | B182: 2017-09-26 | C182: 45.57 | D182: 6.480138
A183: KO | B183: 2017-09-27 | C183: 44.64 | D183: 14.816247
A184: KO | B184: 2017-09-28 | C184: 44.91 | D184: 8.789517
A185: KO | B185: 2017-09-29 | C185: 45.01 | D185: 10.082221
A186: KO | B186: 2017-10-02 | C186: 44.8 | D186: 10.707763
A187: KO | B187: 2017-10-03 | C187: 45.19 | D187: 12.038102
A188: KO | B188: 2017-10-04 | C188: 45.5 | D188: 14.060338
A189: KO | B189: 2017-10-05 | C189: 45.52 | D189: 10.215323
A190: KO | B190: 2017-10-06 | C190: 45.49 | D190: 5.437871
A191: KO | B191: 2017-10-09 | C191: 45.41 | D191: 5.268348
A192: KO | B192: 2017-10-10 | C192: 45.87 | D192: 6.310445
A193: KO | B193: 2017-10-11 | C193: 46.1 | D193: 6.638173
A194: KO | B194: 2017-10-12 | C194: 46.11 | D194: 7.710216
A195: KO | B195: 2017-10-13 | C195: 46.18 | D195: 7.12602
A196: KO | B196: 2017-10-16 | C196: 46.62 | D196: 12.708563
A197: KO | B197: 2017-10-17 | C197: 46.52 | D197: 7.699367
A198: KO | B198: 2017-10-18 | C198: 46.4 | D198: 6.272155
A199: KO | B199: 2017-10-19 | C199: 46.59 | D199: 7.515545
A200: KO | B200: 2017-10-20 | C200: 46.38 | D200: 9.64679
... 896 more rows

Sheet URL_Builder (hidden)
A1: Fundamentals
A2: Token | B2: Secret_Token | C2: Source | D2: Ticker | E2: Period_type | F2: No_of_periods | G2: Base_Url | H2: Full_URL
A3: =+my_token -> 0 | B3: =+Secret_Token -> 0 | C3: fundamentals | D3: =+Ticker -> KO | E3: =period_type -> annual | F3: =no_of_periods -> 7y | G3: https://cloud.iexapis.com/stable/time-series/ | H3: =+Fundamentals[[#This Row],[Base_Url]]&Fundamentals[[#This Row],[Source]]&"/"&Fundamentals[[#This Row],[Ticker]]&"/"&Fundamentals[[#This Row],[Period_type]]&"?token="&Fundamentals[[#This Row],[Token]]&"&range="&Fundamentals[[#This Row],[No_of_periods]] -> https://cloud.iexapis.com/stable/time-series/fundamentals/KO/annual?token=0&range=7y
A5: Your token' | C5: fundamentals | D5: any US Listed Ticker | E5: quarterly | F5: 2q or 5y | G5: Turn on Cloud Cache = TRUE | H5: The iexcloud base URL | I5: The URL used by power query
E6: ttm | F6: 4q or 7y
E7: annual | F7: 5y
A8: Prices
A9: Token | B9: Secret_Token | C9: Source | D9: Ticker | E9: from | F9: to | G9: Base_Url | H9: Full_URL
A10: =+my_token -> 0 | B10: =+Secret_Token -> 0 | C10: historical_prices | D10: =+Ticker -> KO | E10: =TEXT(YEAR(PriceRangeSettings[From]),"0000")&TEXT(MONTH(PriceRangeSettings[From]),"00")&TEXT(DAY(PriceRangeSettings[From]),"00") -> 20130627 | F10: =TEXT(YEAR(PriceRangeSettings[To]),"0000")&TEXT(MONTH(PriceRangeSettings[To]),"00")&TEXT(DAY(PriceRangeSettings[To]),"00") -> 20210516 | G10: https://cloud.iexapis.com/stable/time-series/ | H10: =+Prices[[#This Row],[Base_Url]]&Prices[[#This Row],[Source]]&"/"&Prices[[#This Row],[Ticker]]&"?from="&Prices[[#This Row],[from]]&"&to="&Prices[[#This Row],[to]]&"&token="&Prices[[#This Row],[Token]] -> https://cloud.iexapis.com/stable/time-series/historical_prices/KO?from=20130627&to=20210516&token=0
A12: Dividends
A13: Token | B13: Secret_Token | C13: Source | D13: Ticker | E13: Period | F13: last | G13: Base_Url | H13: Full_URL
A14: =+my_token -> 0 | B14: =+Secret_Token -> 0 | C14: dividends | D14: =+Ticker -> KO | F14: &last=50 | G14: https://cloud.iexapis.com/stable/stock/ | H14: =+Dividends[[#This Row],[Base_Url]]&Dividends[[#This Row],[Ticker]]&"/"&Dividends[[#This Row],[Source]]&"/"&Dividends[[#This Row],[Period]]&"?token="&Dividends[[#This Row],[Token]]&Dividends[[#This Row],[last]] -> https://cloud.iexapis.com/stable/stock/KO/dividends/?token=0&last=50
A16: Account Data
A17: Token | B17: Secret_Token | C17: Base_Url | D17: Full_URL
A18: =+Secret_Token -> 0 | B18: =+Secret_Token -> 0 | C18: https://cloud.iexapis.com/stable/account/metadata?token= | D18: =+account[[#This Row],[Base_Url]]&account[[#This Row],[Secret_Token]] -> https://cloud.iexapis.com/stable/account/metadata?token=0
A20: As Reported
A21: Token | B21: Base_URL | C21: Source | D21: Ticker | E21: Report | F21: Period | G21: Full_URL
A22: =+my_token -> 0 | B22: https://cloud.iexapis.com/stable/time-series/ | C22: REPORTED_FINANCIALS | D22: =+Ticker -> KO | E22: 10-Q | F22: last=7 | G22: =+asReported[[#This Row],[Base_URL]]&"/"&asReported[[#This Row],[Source]]&"/"&asReported[[#This Row],[Ticker]]&"/"&asReported[[#This Row],[Report]]&"?"&asReported[[#This Row],[Period]]&"&token="&asReported[[#This Row],[Token]] -> https://cloud.iexapis.com/stable/time-series//REPORTED_FINANCIALS/KO/10-Q?last=7&token=0
A24: "Recommendation" | B24: ="= Json.Document(Web.Contents(Excel.CurrentWorkbook(){[Name="&A24&"]}[Content]{0}[Full_URL]))" -> = Json.Document(Web.Contents(Excel.CurrentWorkbook(){[Name="Recommendation"]}[Content]{0}[Full_URL]))
A25: Token | B25: Base_URL | C25: Source | D25: Ticker | E25: Full_URL
A26: =+my_token -> 0 | B26: https://cloud.iexapis.com/stable/stock/ | C26: recommendation-trends | D26: =+Ticker -> KO | E26: =+Recommendation10[[#This Row],[Base_URL]]&Recommendation10[[#This Row],[Ticker]]&"/"&Recommendation10[[#This Row],[Source]]&"?token="&Recommendation10[[#This Row],[Token]] -> https://cloud.iexapis.com/stable/stock/KO/recommendation-trends?token=0
A28: "Estimates_Annual" | B28: ="= Json.Document(Web.Contents(Excel.CurrentWorkbook(){[Name="&A28&"]}[Content]{0}[Full_URL]))" -> = Json.Document(Web.Contents(Excel.CurrentWorkbook(){[Name="Estimates_Annual"]}[Content]{0}[Full_URL]))
A29: Token | B29: Base_URL | C29: Source | D29: Period | E29: Ticker | F29: Full_URL
A30: =+my_token -> 0 | B30: https://cloud.iexapis.com/stable/stock/ | C30: estimates | D30: annual | E30: =+Ticker -> KO | F30: =+Estimates_Annual[[#This Row],[Base_URL]]&Estimates_Annual[[#This Row],[Ticker]]&"/"&Estimates_Annual[[#This Row],[Source]]&"?token="&Estimates_Annual[[#This Row],[Token]]&"&period="&Estimates_Annual[[#This Row],[Period]] -> https://cloud.iexapis.com/stable/stock/KO/estimates?token=0&period=annual
A32: "Estimates_Quarter" | B32: ="= Json.Document(Web.Contents(Excel.CurrentWorkbook(){[Name="&A32&"]}[Content]{0}[Full_URL]))" -> = Json.Document(Web.Contents(Excel.CurrentWorkbook(){[Name="Estimates_Quarter"]}[Content]{0}[Full_URL]))
A33: Token | B33: Base_URL | C33: Source | D33: Period | E33: Ticker | F33: Full_URL
A34: =+my_token -> 0 | B34: https://cloud.iexapis.com/stable/stock/ | C34: estimates | D34: quarter | E34: =+Ticker -> KO | F34: =+Estimates_Quarter[[#This Row],[Base_URL]]&Estimates_Quarter[[#This Row],[Ticker]]&"/"&Estimates_Quarter[[#This Row],[Source]]&"?token="&Estimates_Quarter[[#This Row],[Token]]&"&period="&Estimates_Quarter[[#This Row],[Period]] -> https://cloud.iexapis.com/stable/stock/KO/estimates?token=0&period=quarter
A36: Period
A37: y
A38: q

Sheet account (hidden)
A1: Column1 | B1: Column2
A2: payAsYouGoEnabled | B2: FALSE
A3: effectiveDate | B3: 44232
A4: subscriptionTermType | B4: annual
A5: tierName | B5: start
A6: messageLimit | B6: 50000
A7: creditLimit | B7: 50000
A8: messagesUsed | B8: 50000
A9: creditsUsed | B9: 50000
A10: circuitBreaker | B10: 0

Sheet bugs and notes (hidden)
A1: On settings, allow company lookup
A2: Can we get fundamaentals end point to deliver LTM financials in last period as well as annuals
A3: macro to automatically apply ticker and cloud credentials to the data query | B3: done
A4: creative commons license?
A5: Improve logic to get the full name, and the chart info | B5: done
A6: Add dividend payments / amounts | B6: done
A7: Add disclaimer, and link to iexcloud terms
A8: Setup community email addresses
A9: Banks version
A10: Include forward estimates and EBITD for valuation | B10: EPS done. EBITDA required end point revision
